Capital or Revenue,Directorate,SERCOP High Level Category,SERCOP Detailed Category,Transaction Number,Date,Service Area,Expenses Type,Amount,Supplier Name,
Revenue,Place,Planning services,Environmental Initiatives,5105646678,06.09.2017,East Wight Landscape Partnership,Grants to External Bodies,"3,325.00",REDACTED PERSONAL DATA,6
Revenue,Adult Services,Adult Social Care,Learning Disab Supp (to be reallocated),5105647610,20.09.2017,Westminster House,Property Services - Day to day Maintenance,185.84,A & M APPLIANCE CARE,7
Revenue,Place,Cultural and Related Services,Open Spaces,5105646627,06.09.2017,Tree Felling / Replacement,Payment to Private Contractors,450.00,A GUSTAR T/A IVY TREE CARE,8
Revenue,Place,Cultural and Related Services,Open Spaces,5105648210,27.09.2017,Tree Felling / Replacement,Payment to Private Contractors,450.00,A GUSTAR T/A IVY TREE CARE,9
Revenue,Place,Environmental & Regulatory Services,"Cemetery, Cremation & Mortuary Services",5105647545,15.09.2017,Cemeteries-Northwood,Grounds Maintenance,550.00,A GUSTAR T/A IVY TREE CARE,10
Revenue,Resources,Central Services,Support Services,5105648121,27.09.2017,Litigation Costs,Legal Fees - Other Parties,400.00,"COLLEGE CHAMBERS, BARRISTERS",11
Revenue,Resources,Central Services,Support Services,5105647138,15.09.2017,Litigation Costs,Legal Fees - Other Parties,500.00,"COLLEGE CHAMBERS, BARRISTERS",12
Revenue,Resources,Central Services,Support Services,5105648245,29.09.2017,Litigation Costs,Legal Fees - Other Parties,400.00,"COLLEGE CHAMBERS, BARRISTERS",13
Revenue,Regeneration,Planning services,Economic Development,5105646722,06.09.2017,Newport Harbour Regeneration,Consultants Fees,648.99,ASH SAKULA ARCHITECTS,14
Revenue,Childrens Services,Children's & Education Services,Family Support Services,5105647518,20.09.2017,Short Breaks,Grants to External Bodies,432.29,BEBE'CINNO,15
Revenue,Adult Services,Adult Social Care,Central Codes (to be reallocated),5105647529,20.09.2017,Mental Health Day Services,Grounds Maintenance,380.00,C & J GROUND MAINTENANCE,16
Revenue,Regeneration,Central Services,Support Services,5105647616,20.09.2017,Properties  - Other Properties,Grounds Maintenance,875.70,C & J GROUND MAINTENANCE,17
Revenue,Regeneration,Central Services,Support Services,5105647107,15.09.2017,Properties  - Other Properties,Grounds Maintenance,572.10,C & J GROUND MAINTENANCE,18
Revenue,Childrens Services,Children's & Education Services,Other Education and Community Budget,5105645488,20.09.2017,Home to College Post 16 Transport,Taxis - Contract Hire,96.00,CAROLS TAXIS,19
Revenue,Childrens Services,Children's & Education Services,Other Education and Community Budget,5105645487,20.09.2017,Home to College Post 16 Transport,Taxis - Contract Hire,20.00,CAROLS TAXIS,20
Revenue,Place,Cultural and Related Services,Open Spaces,5105646696,06.09.2017,Other Grounds Maintenance,Payment to Private Contractors,496.59,C N SERVICES,21
Capital,Place,Capital,Capital,5105647117,13.09.2017,Bus Infrastructure,Payment to Contractors - Capital,421.54,C N SERVICES,22
Revenue,Place,Environmental & Regulatory Services,"Cemetery, Cremation & Mortuary Services",5105647118,13.09.2017,Cemeteries-St Pauls Newport,Grounds Maintenance,495.00,C N SERVICES,23
Revenue,Place,Cultural and Related Services,Open Spaces,5105648207,27.09.2017,Play Areas Health & Safety work,Payment to Private Contractors,"3,509.88",C N SERVICES,24
Revenue,Place,Cultural and Related Services,Open Spaces,5105646697,06.09.2017,Play Areas Health & Safety work,Payment to Private Contractors,"1,601.25",C N SERVICES,25
Revenue,Place,Environmental & Regulatory Services,Coast Protection,5105646700,06.09.2017,Coast Protection,Payment to Private Contractors,235.79,C N SERVICES,26
Capital,Place,Capital,Capital,5105646698,06.09.2017,Rights Of Way Capital Programme,Payment to Contractors - Capital,92.00,C N SERVICES,27
Revenue,Place,Planning services,Planning Policy,5105647630,20.09.2017,Development Control,Consultants Fees,"1,950.00",CORNERSTONE BARRISTERS,28
Revenue,Place,Environmental & Regulatory Services,Service Management and Support Services,5105647187,13.09.2017,Environment officers,Payment to Private Contractors,"1,267.50",REDACTED PERSONAL DATA,29
Revenue,Resources,Central Services,Support Services,5105648460,29.09.2017,Litigation Costs,Legal Fees - Other Parties,700.00,REDACTED PERSONAL DATA,30
Revenue,Resources,Central Services,Support Services,5105648531,29.09.2017,Litigation Costs,Legal Fees - Other Parties,400.00,REDACTED PERSONAL DATA,31
Revenue,Resources,Central Services,Support Services,5105648460,29.09.2017,Litigation Costs,Legal Fees - Other Parties,500.00,REDACTED PERSONAL DATA,32
Revenue,Adult Services,Adult Social Care,Social Care Activities,5105647170,13.09.2017,DoLS/MCA,Professional Services,187.67,DR ALEXIS BOWERS LTD,33
Revenue,Childrens Services,Children's & Education Services,Safeguarding Children/Young Peoples Svs,5105644935,06.09.2017,Court Work & Consultancy Services,Hire of facilities,100.00,REDACTED PERSONAL DATA,34
Revenue,Adult Services,Adult Social Care,Physical Support - older people (65+),5105646728,06.09.2017,Physical Support Other ST Support 65+,Charges from Independent Providers,"3,200.00",EXTRACTA CLEANING,35
Revenue,Childrens Services,Children's & Education Services,Family Support Services,5105648153,27.09.2017,Short Breaks,Professional Services,75.00,FAT SAMBA,36
Revenue,Place,Cultural and Related Services,Recreation and Sport,5105648527,29.09.2017,The Heights,Stock Purchases,49.40,FULL SPREAD LIMITED,37
Revenue,Place,Cultural and Related Services,Recreation and Sport,5105648530,29.09.2017,The Heights,Stock Purchases,50.31,FULL SPREAD LIMITED,38
Revenue,Place,Cultural and Related Services,Recreation and Sport,5105646661,06.09.2017,The Heights,Stock Purchases,66.01,FULL SPREAD LIMITED,39
Revenue,Place,Cultural and Related Services,Recreation and Sport,5105646653,06.09.2017,The Heights,Stock Purchases,81.61,FULL SPREAD LIMITED,40
Revenue,Childrens Services,Children's & Education Services,Safeguarding Children/Young Peoples Svs,5105648466,29.09.2017,Court Work & Consultancy Services,Professional Services,259.54,GARY TAYLOR ASSOCIATES LIMITED,41
Revenue,Regeneration,Planning services,Economic Development,5105647077,13.09.2017,One Public Estate,Consultants Fees,"2,602.00",INNER CIRCLE CONSULTING LTD,42
Revenue,Regeneration,Planning services,Economic Development,5105647079,13.09.2017,One Public Estate,Consultants Fees,130.20,INNER CIRCLE CONSULTING LTD,43
Revenue,Regeneration,Cultural and Related Services,Culture and Heritage,5105647164,15.09.2017,Cowes Week,Consultants Fees,"7,000.00",ISLAND HIGHWAY & TRANSPORT,44
Revenue,Regeneration,Planning services,Economic Development,5105647172,15.09.2017,BAE Systems Office Block Regeneration,Consultants Fees,637.50,ISLAND HIGHWAY & TRANSPORT,45
Capital,Resources,Capital,Capital,5105647171,15.09.2017,Capital Receipts,Consultants Fees,"2,000.00",ISLAND HIGHWAY & TRANSPORT,46
Revenue,Resources,Central Services,Support Services,5105647086,13.09.2017,ICT Contracts,Computer Maintenance,300.00,REDACTED PERSONAL DATA,47
Revenue,Resources,Central Services,Support Services,5105648240,27.09.2017,Litigation Costs,Legal Fees - Other Parties,750.00,"COLLEGE CHAMBERS, BARRISTERS",48
Revenue,Resources,Central Services,Support Services,5105648237,27.09.2017,Litigation Costs,Legal Fees - Other Parties,400.00,"COLLEGE CHAMBERS, BARRISTERS",49
Revenue,Resources,Central Services,Support Services,5105648244,29.09.2017,Litigation Costs,Legal Fees - Other Parties,450.00,"COLLEGE CHAMBERS, BARRISTERS",50
Revenue,Resources,Central Services,Support Services,5105648243,29.09.2017,Litigation Costs,Legal Fees - Other Parties,400.00,"COLLEGE CHAMBERS, BARRISTERS",51
Revenue,Resources,Central Services,Support Services,5105648246,29.09.2017,Litigation Costs,Legal Fees - Other Parties,400.00,"COLLEGE CHAMBERS, BARRISTERS",52
Revenue,Resources,Central Services,Support Services,5105648247,29.09.2017,Litigation Costs,Legal Fees - Other Parties,400.00,"COLLEGE CHAMBERS, BARRISTERS",53
Revenue,Public Health,Public Health,Miscellaneous Public Health Services,5105646704,13.09.2017,Local Area Coordinators - Gen Prevention,Training,"1,000.00",REDACTED PERSONAL DATA,54
Revenue,Place,Cultural and Related Services,Recreation and Sport,5105647575,20.09.2017,Play Development,Grants to External Bodies,"1,080.00",REDACTED PERSONAL DATA,55
Revenue,Childrens Services,Children's & Education Services,Services for Young People,5105646984,08.09.2017,Youth Commissioning,Payments to Voluntary and Other Associations,150.00,REDACTED PERSONAL DATA,56
Revenue,Resources,Central Services,Support Services,5105647576,20.09.2017,Litigation Costs,Legal Fees - Other Parties,"1,050.00",REDACTED PERSONAL DATA,57
Revenue,Resources,Central Services,Support Services,5105646988,13.09.2017,Litigation Costs,Legal Fees - Other Parties,750.00,REDACTED PERSONAL DATA,58
Revenue,Resources,Central Services,Support Services,5105645021,06.09.2017,Litigation Costs,Legal Fees - Other Parties,750.00,REDACTED PERSONAL DATA,59
Revenue,Childrens Services,Children's & Education Services,Family Support Services,5105648223,27.09.2017,Short Breaks,Charges from Independent Providers,128.00,REDACTED PERSONAL DATA,60
Revenue,Regeneration,Central Services,Support Services,5105634472,06.09.2017,Properties  - Other Properties,Property Services - Day to day Maintenance,250.00,LINSCH CONSULTANTS,61
Revenue,Childrens Services,Adult Social Care,Information & Early Intervention,5105647186,15.09.2017,Adult Social Care - Workforce Development,Training,405.00,MAKING CONNECTIONS (IW) LTD,62
Capital,Place,Capital,Capital,5105646693,08.09.2017,Rights Of Way Capital Programme,Payment to Contractors - Capital,"5,305.00",REDACTED PERSONAL DATA,63
Capital,Place,Capital,Capital,5105647517,15.09.2017,Rights Of Way Capital Programme,Payment to Contractors - Capital,"1,200.00",REDACTED PERSONAL DATA,64
Revenue,Childrens Services,Children's & Education Services,Other Education and Community Budget,5105647631,20.09.2017,Specialist Cross-Council Training,Training,98.00,REDACTED PERSONAL DATA,65
Revenue,Childrens Services,Children's & Education Services,Other Education and Community Budget,5105647631,20.09.2017,Specialist Cross-Council Training,Training,112.00,REDACTED PERSONAL DATA,66
Revenue,Childrens Services,Children's & Education Services,Other Education and Community Budget,5105647631,20.09.2017,Specialist Cross-Council Training,Training,112.00,REDACTED PERSONAL DATA,67
Revenue,Childrens Services,Children's & Education Services,Other Education and Community Budget,5105647631,20.09.2017,Specialist Cross-Council Training,Training,112.00,REDACTED PERSONAL DATA,68
Revenue,Childrens Services,Children's & Education Services,Other Education and Community Budget,5105647631,20.09.2017,Specialist Cross-Council Training,Training,112.00,REDACTED PERSONAL DATA,69
Revenue,Childrens Services,Children's & Education Services,Other Education and Community Budget,5105647631,20.09.2017,Specialist Cross-Council Training,Training,112.00,REDACTED PERSONAL DATA,70
Revenue,Childrens Services,Children's & Education Services,Other Education and Community Budget,5105647631,20.09.2017,Specialist Cross-Council Training,Training,112.00,REDACTED PERSONAL DATA,71
Revenue,Childrens Services,Children's & Education Services,Other Education and Community Budget,5105647631,20.09.2017,Specialist Cross-Council Training,Training,112.00,REDACTED PERSONAL DATA,72
Revenue,Childrens Services,Children's & Education Services,Other Education and Community Budget,5105647631,20.09.2017,Specialist Cross-Council Training,Training,112.00,REDACTED PERSONAL DATA,73
Revenue,Childrens Services,Children's & Education Services,Management & Support Services,5105643711,13.09.2017,Special Educational Needs Transport,Taxis - Contract Hire,"1,700.00",MUSTI'S TAXIS,74
Revenue,Childrens Services,Children's & Education Services,Management & Support Services,5105647541,15.09.2017,Special Educational Needs Transport,Taxis - Contract Hire,"1,200.00",MUSTI'S TAXIS,75
Revenue,Adult Services,Adult Social Care,Social Care Activities,5105647636,20.09.2017,Local Safeguarding Adults Board,Conference Expenses,73.60,REDACTED PERSONAL DATA,76
Revenue,Resources,Central Services,Support Services,5105647084,13.09.2017,Legal Services Section,Sundry Office Expenses,59.97,OD CONSULTANCY LTD,77
Revenue,Place,Cultural and Related Services,Library Service,5105646997,13.09.2017,Newport Library,Cleaning Contracts,195.00,REDACTED PERSONAL DATA,78
Revenue,Place,Housing Services,Homelessness,5105647742,22.09.2017,Leaseholds by LA,Accommodation Costs - Leaseholder Payments,695.89,REDACTED PERSONAL DATA,79
Revenue,Place,Housing Services,Homelessness,5105647742,22.09.2017,Leaseholds by LA,Accommodation Costs - Leaseholder Payments,695.89,REDACTED PERSONAL DATA,80
Revenue,Place,Housing Services,Homelessness,5105647742,22.09.2017,Leaseholds by LA,Accommodation Costs - Leaseholder Payments,695.89,REDACTED PERSONAL DATA,81
Revenue,Place,Housing Services,Homelessness,5105647742,22.09.2017,Leaseholds by LA,Accommodation Costs - Leaseholder Payments,695.89,REDACTED PERSONAL DATA,82
Revenue,Place,Housing Services,Homelessness,5105647742,22.09.2017,Leaseholds by LA,Accommodation Costs - Leaseholder Payments,695.89,REDACTED PERSONAL DATA,83
Capital,Place,Capital,Capital,5105647515,15.09.2017,Cowes Floating Brdge,Payment to Contractors - Capital,"1,034.50",PREMIER SOLUTIONS,84
Revenue,Regeneration,Central Services,Support Services,5105648608,29.09.2017,Strategic Assets Team,Professional Services,"1,442.13",PRINCIPAL SURVEYORS LTD,85
Revenue,Adult Services,Adult Social Care,Commissioning & Service Delivery,5105647585,20.09.2017,Deferred Payment Fees,Professional Services,150.00,PRINCIPAL SURVEYORS LTD,86
Revenue,Place,Environmental & Regulatory Services,Service Management and Support Services,5105647500,15.09.2017,Environment officers,Operational Equipment,78.00,PRO-TECH GROUP,87
Revenue,Adult Services,Adult Social Care,Learning Disability Suppt-adults (18-64),5105645941,01.09.2017,Learning Disability Other LT Care 18-64,Taxis - Contract Hire,400.00,ROUNSEVELLS TAXIS,88
Revenue,Adult Services,Adult Social Care,Learning Disability Suppt-adults (18-64),5105648114,27.09.2017,Learning Disability Other LT Care 18-64,Taxis - Contract Hire,360.00,ROUNSEVELLS TAXIS,89
Revenue,Resources,Central Services,Support Services,5105648238,27.09.2017,Litigation Costs,Legal Fees - Other Parties,400.00,"COLLEGE CHAMBERS, BARRISTERS",90
Revenue,Resources,Central Services,Support Services,5105648178,27.09.2017,Litigation Costs,Legal Fees - Other Parties,650.00,"COLLEGE CHAMBERS, BARRISTERS",91
Capital,Place,Capital,Capital,5105647253,13.09.2017,Cowes Floating Brdge,Payment to Contractors - Capital,"4,400.00",SHORELINE SURVEYS LIMITED,92
Capital,Place,Capital,Capital,5105647728,20.09.2017,Cowes Floating Brdge,Payment to Contractors - Capital,"4,400.00",SHORELINE SURVEYS LIMITED,93
Capital,Place,Capital,Capital,5105647726,20.09.2017,Cowes Floating Brdge,Payment to Contractors - Capital,"4,400.00",SHORELINE SURVEYS LIMITED,94
Revenue,Adult Services,Adult Social Care,Social Care Activities,5105647099,13.09.2017,DoLS/MCA,Professional Services,"1,105.92",REDACTED PERSONAL DATA,95
Revenue,Childrens Services,Children's & Education Services,Family Support Services,5105647207,13.09.2017,Short Breaks,Charges from Independent Providers,197.25,SPLAT MESSY PLAY LTD,96
Revenue,Childrens Services,Children's & Education Services,Family Support Services,5105647208,13.09.2017,Short Breaks,Charges from Independent Providers,328.75,SPLAT MESSY PLAY LTD,97
Revenue,Childrens Services,Adult Social Care,Information & Early Intervention,5105646744,20.09.2017,Adult Social Care - Workforce Development,Training,535.50,ST THOMAS TRAINING,98
Revenue,Childrens Services,Children's & Education Services,Safeguarding Children/Young Peoples Svs,5105648113,27.09.2017,LSCB (Local Safeguarding Childrens Board),Training,500.00,REDACTED PERSONAL DATA,99
Revenue,Childrens Services,Children's & Education Services,Safeguarding Children/Young Peoples Svs,5105648113,27.09.2017,LSCB (Local Safeguarding Childrens Board),Travel Expenses,178.45,REDACTED PERSONAL DATA,100
Revenue,Childrens Services,Children's & Education Services,Other Education and Community Budget,5105641886,27.09.2017,Complaints (Children & Families),Professional Services,425.15,REDACTED PERSONAL DATA,101
Revenue,Childrens Services,Children's & Education Services,Other Education and Community Budget,5105648135,27.09.2017,Family Learning,Grants to External Bodies,"6,000.00",THE CROSSLEY COMPANY (IOW) LTD,102
Revenue,Childrens Services,Children's & Education Services,Services for Young People,5105647180,13.09.2017,Youth Commissioning,Payments to Voluntary and Other Associations,"1,580.00",THE VECTIS RADIO 4PS TRAINING,103
Revenue,Place,Cultural and Related Services,Culture and Heritage,5105645954,20.09.2017,Dinosaur Isle Museum (Sandown Geology),Marketing Costs,449.00,REDACTED PERSONAL DATA,104
Revenue,Childrens Services,Children's & Education Services,Special Schools & Alternative Provision,5105646752,13.09.2017,Island Learning Centre,Cleaning Contracts,924.49,TOP MOPS LIMITED,105
Revenue,Childrens Services,Children's & Education Services,Special Schools & Alternative Provision,5105646753,13.09.2017,Island Learning Centre,Cleaning Contracts,390.00,TOP MOPS LIMITED,106
Revenue,Childrens Services,Children's & Education Services,Special Schools & Alternative Provision,5105644976,01.09.2017,Island Learning Centre,Cleaning Contracts,"1,435.65",TOP MOPS LIMITED,107
Revenue,Childrens Services,Children's & Education Services,Special Schools & Alternative Provision,5105646751,13.09.2017,Island Learning Centre,Consumable Cleaning Materials,58.69,TOP MOPS LIMITED,108
Revenue,Childrens Services,Children's & Education Services,Special Schools & Alternative Provision,5105647198,13.09.2017,Island Learning Centre,Security of Buildings,12.00,VECTIS GROUP SECURITY LTD,109
Revenue,Place,Planning services,Management & Support Services,5105645217,15.09.2017,Planning Management,Agency staff,"1,400.00",VIVID RESOURCING,110
Revenue,Place,Planning services,Management & Support Services,5105645222,15.09.2017,Planning Management,Agency staff,"1,400.00",VIVID RESOURCING,111
Revenue,Place,Planning services,Management & Support Services,5105645924,15.09.2017,Planning Management,Agency staff,"1,520.00",VIVID RESOURCING,112
Revenue,Place,Planning services,Management & Support Services,5105647073,15.09.2017,Planning Management,Agency staff,"1,520.00",VIVID RESOURCING,113
Revenue,Place,Planning services,Management & Support Services,5105647664,20.09.2017,Planning Management,Agency staff,"1,216.00",VIVID RESOURCING,114
Revenue,Adult Services,Adult Social Care,Social Care Activities,5105645925,15.09.2017,DoLS/MCA,Professional Services,921.60,REDACTED PERSONAL DATA,115
Revenue,Adult Services,Adult Social Care,Social Care Activities,5105647542,20.09.2017,DoLS/MCA,Professional Services,"1,105.92",REDACTED PERSONAL DATA,116
Revenue,Childrens Services,Children's & Education Services,Other Education and Community Budget,5105644452,01.09.2017,Home to School Mainstream Transport,Taxis - Contract Hire,812.00,HAVEN TAXIS & PRIVATE HIRE,117
Revenue,Place,Fire & Rescue Services,Fire fighting and Rescue Operations,5105648166,27.09.2017,Business Support  - Fire,Property Services - Day to day Maintenance,45.00,WIGHT HEATING LTD,118
Revenue,Adult Services,Adult Social Care,Central Codes (to be reallocated),5105647105,13.09.2017,Gouldings Resource Centre,Property Services - Day to day Maintenance,45.00,WIGHT HEATING LTD,119
Revenue,Childrens Services,Children's & Education Services,Support Service & Management Costs,5105647104,13.09.2017,Childrens Centres Maintenance,Minor Works,115.00,WIGHT HEATING LTD,120
Revenue,Place,Housing Services,Homelessness,5105647757,22.09.2017,Leaseholds by LA,Accommodation Costs - Leaseholder Payments,866.67,2K PROPERTY,121
Revenue,Place,Cultural and Related Services,Culture and Heritage,5105646605,06.09.2017,Dinosaur Isle Museum (Sandown Geology),Marketing Costs,606.67,3 MEDIA LTD,122
Revenue,Resources,Central Services,Support Services,5105648457,29.09.2017,Litigation Costs,Legal Fees - Other Parties,600.00,3PB THE CHAMBERS OF IAN LAWRIE QC,123
Revenue,Childrens Services,Children's & Education Services,Children Looked After,5105647713,22.09.2017,Purchased Fostering,Charges from Independent Providers,"4,114.50",5 FOSTERING,124
Revenue,Regeneration,Planning services,Economic Development,5105646624,06.09.2017,Director of Regeneration,Vehicle Hire External,330.00,REDACTED PERSONAL DATA,125
Revenue,Place,Cultural and Related Services,Culture and Heritage,5105648525,29.09.2017,Dinosaur Isle Museum (Sandown Geology),Heritage Acquisitions,600.00,REDACTED PERSONAL DATA,127
Revenue,Childrens Services,Children's & Education Services,Children Looked After,5105647322,15.09.2017,Special Guardianship Order Costs,Support Children,105.00,REDACTED PERSONAL DATA,135
Revenue,Childrens Services,Children's & Education Services,Children Looked After,5105647807,22.09.2017,Special Guardianship Order Costs,Support Children,105.00,REDACTED PERSONAL DATA,136
Revenue,Childrens Services,Children's & Education Services,Children Looked After,5105647807,22.09.2017,Special Guardianship Order Costs,Support Children,168.39,REDACTED PERSONAL DATA,137
Revenue,Childrens Services,Children's & Education Services,Children Looked After,5105647322,15.09.2017,Special Guardianship Order Costs,Support Children,168.39,REDACTED PERSONAL DATA,138
Revenue,Childrens Services,Children's & Education Services,Children Looked After,5105648280,29.09.2017,Special Guardianship Order Costs,Support Children,168.39,REDACTED PERSONAL DATA,139
Revenue,Childrens Services,Children's & Education Services,Children Looked After,5105646786,08.09.2017,Special Guardianship Order Costs,Support Children,105.00,REDACTED PERSONAL DATA,140
Revenue,Childrens Services,Children's & Education Services,Children Looked After,5105646786,08.09.2017,Special Guardianship Order Costs,Support Children,168.39,REDACTED PERSONAL DATA,141
Revenue,Childrens Services,Children's & Education Services,Children Looked After,5105647886,29.09.2017,Leaving Care Costs,Support Children,138.16,REDACTED PERSONAL DATA,144
Revenue,Childrens Services,Children's & Education Services,Children Looked After,5105648334,29.09.2017,Leaving Care Costs,Support Children,120.89,REDACTED PERSONAL DATA,145
Revenue,Childrens Services,Children's & Education Services,Children Looked After,5105648334,29.09.2017,Leaving Care Costs,Support Children,68.50,REDACTED PERSONAL DATA,146
Revenue,Childrens Services,Children's & Education Services,Children Looked After,5105647886,29.09.2017,Leaving Care Costs,Support Children,78.28,REDACTED PERSONAL DATA,147
Revenue,Childrens Services,Children's & Education Services,Children Looked After,5105647886,29.09.2017,Leaving Care Costs,Support Children,3.31,REDACTED PERSONAL DATA,148
Revenue,Childrens Services,Children's & Education Services,Children Looked After,5105648334,29.09.2017,Leaving Care Costs,Support Children,2.90,REDACTED PERSONAL DATA,149
Revenue,Place,Housing Services,Homelessness,5105647753,22.09.2017,Leaseholds by LA,Accommodation Costs - Leaseholder Payments,510.25,REDACTED PERSONAL DATA,151
Revenue,Place,Housing Services,Homelessness,5105647753,22.09.2017,Leaseholds by LA,Accommodation Costs - Leaseholder Payments,510.25,REDACTED PERSONAL DATA,152
Revenue,Place,Housing Services,Homelessness,5105647753,22.09.2017,Leaseholds by LA,Accommodation Costs - Leaseholder Payments,510.25,REDACTED PERSONAL DATA,153
Revenue,Place,Housing Services,Homelessness,5105647753,22.09.2017,Leaseholds by LA,Accommodation Costs - Leaseholder Payments,510.25,REDACTED PERSONAL DATA,154
Revenue,Place,Housing Services,Homelessness,5105647753,22.09.2017,Leaseholds by LA,Accommodation Costs - Leaseholder Payments,510.25,REDACTED PERSONAL DATA,155
Revenue,Place,Housing Services,Homelessness,5105647753,22.09.2017,Leaseholds by LA,Accommodation Costs - Leaseholder Payments,510.25,REDACTED PERSONAL DATA,156
Revenue,Childrens Services,Children's & Education Services,Children Looked After,5105648267,29.09.2017,Adoption Costs,Support Children,225.83,REDACTED PERSONAL DATA,158
Revenue,Childrens Services,Children's & Education Services,Children Looked After,5105647794,22.09.2017,Adoption Costs,Support Children,225.83,REDACTED PERSONAL DATA,159
Revenue,Childrens Services,Children's & Education Services,Children Looked After,5105647309,15.09.2017,Adoption Costs,Support Children,225.83,REDACTED PERSONAL DATA,160
Revenue,Childrens Services,Children's & Education Services,Children Looked After,5105646772,08.09.2017,Adoption Costs,Support Children,225.83,REDACTED PERSONAL DATA,161
Revenue,Childrens Services,Children's & Education Services,Children Looked After,5105646816,08.09.2017,In-house Fostering,Boarding Out Allowances,500.00,REDACTED PERSONAL DATA,164
Revenue,Childrens Services,Children's & Education Services,Children Looked After,5105646816,08.09.2017,In-house Fostering,Boarding Out Allowances,500.00,REDACTED PERSONAL DATA,165
Revenue,Childrens Services,Children's & Education Services,Children Looked After,5105647352,15.09.2017,In-house Fostering,Boarding Out Allowances,500.00,REDACTED PERSONAL DATA,166
Revenue,Childrens Services,Children's & Education Services,Children Looked After,5105647855,22.09.2017,In-house Fostering,Boarding Out Allowances,500.00,REDACTED PERSONAL DATA,167
Revenue,Childrens Services,Children's & Education Services,Children Looked After,5105647855,22.09.2017,In-house Fostering,Boarding Out Allowances,500.00,REDACTED PERSONAL DATA,168
Revenue,Childrens Services,Children's & Education Services,Children Looked After,5105647352,15.09.2017,In-house Fostering,Boarding Out Allowances,500.00,REDACTED PERSONAL DATA,169
Revenue,Childrens Services,Children's & Education Services,Children Looked After,5105648309,29.09.2017,In-house Fostering,Boarding Out Allowances,500.00,REDACTED PERSONAL DATA,170
Revenue,Childrens Services,Children's & Education Services,Children Looked After,5105648309,29.09.2017,In-house Fostering,Boarding Out Allowances,500.00,REDACTED PERSONAL DATA,171
Revenue,Place,Housing Services,Homelessness,5105647744,22.09.2017,Leaseholds by LA,Accommodation Costs - Leaseholder Payments,700.00,REDACTED PERSONAL DATA,176
Revenue,Place,Housing Services,Homelessness,5105647744,22.09.2017,Leaseholds by LA,Accommodation Costs - Leaseholder Payments,835.08,REDACTED PERSONAL DATA,177
Revenue,Place,Housing Services,Homelessness,5105647744,22.09.2017,Leaseholds by LA,Accommodation Costs - Leaseholder Payments,789.01,REDACTED PERSONAL DATA,178
Revenue,Place,Housing Services,Homelessness,5105647744,22.09.2017,Leaseholds by LA,Accommodation Costs - Leaseholder Payments,649.83,REDACTED PERSONAL DATA,179
Revenue,Place,Planning services,Planning Policy,5105647544,15.09.2017,Local Development Framework,Consultants Fees,"9,482.50",A TO THERE SOLUTIONS LTD,181
Revenue,Adult Services,Adult Social Care,Support - Memory /Cognition-older people (65+),5105646577,06.09.2017,Memory & Cognition Residential 65+,Charges from Independent Providers,"3,200.12",ABBERDALE LIMITED,186
Revenue,Adult Services,Adult Social Care,Support - Memory /Cognition-older people (65+),5105646199,06.09.2017,Memory & Cognition Residential 65+,Charges from Independent Providers,"1,950.20",ACACIA CARE HOME,187
Revenue,Adult Services,Adult Social Care,Social Support - Support for Carer,5105646199,06.09.2017,Carers Residential,Charges from Independent Providers,"1,950.20",ACACIA CARE HOME,188
Revenue,Adult Services,Adult Social Care,Physical Support - older people (65+),5105646199,06.09.2017,Physical Support Residential 65+,Charges from Independent Providers,"1,862.00",ACACIA CARE HOME,189
Revenue,Adult Services,Adult Social Care,Physical Support - older people (65+),5105646199,06.09.2017,Physical Support Residential 65+,Charges from Independent Providers,"1,950.20",ACACIA CARE HOME,190
Revenue,Adult Services,Balance Sheet,Balance Sheet,5105646199,06.09.2017,REDACTED PERSONAL DATA,Order Settlement to Bal Sht GL,"1,862.00",ACACIA CARE HOME,191
Revenue,Childrens Services,Children's & Education Services,Other Education and Community Budget,5105648141,27.09.2017,Specialist Cross-Council Training,Training,"1,995.00",ACAS,192
Revenue,Place,Environmental & Regulatory Services,Regulatory Services,5105647643,20.09.2017,Licensing Services,Professional Services,24.00,ACCESS PERSONAL CHECKING SERVICES LTD,193
Revenue,Place,Environmental & Regulatory Services,Regulatory Services,5105647643,20.09.2017,Licensing Services,Professional Services,176.00,ACCESS PERSONAL CHECKING SERVICES LTD,194
Revenue,Childrens Services,Children's & Education Services,Children Looked After,5105647139,15.09.2017,Purchased Fostering,Charges from Independent Providers,"3,874.38",ACTION FOR CHILDREN SERVICES LTD,195
Revenue,Resources,Central Services,Support Services,5105646652,08.09.2017,ICT Refresh Programme,Computer Maintenance,"17,825.85",ADAM CONTINUITY LTD,197
Revenue,Place,Fire & Rescue Services,Fire fighting and Rescue Operations,5105648230,27.09.2017,Fire Technical Support,Vehicle Maintenance Costs,-352.90,ADAMS MOREY LTD,199
Revenue,Childrens Services,Children's & Education Services,Children Looked After,5105646065,01.09.2017,In-house Fostering,Advertising & Publicity,377.00,ADGIFTDISCOUNTS LTD,200
Revenue,Place,Cultural and Related Services,Recreation and Sport,5105646629,08.09.2017,Commercial Sales Team,Advertising & Publicity,314.00,ADGIFTDISCOUNTS LTD,201
Revenue,Childrens Services,Children's & Education Services,Other Education and Community Budget,5105646067,06.09.2017,Specialist Cross-Council Training,Training,"1,250.00",ADLER & ALLAN,202
Revenue,Childrens Services,Children's & Education Services,Management & Support Services,5105647280,22.09.2017,Special Discretionary Grants,Charges from Independent Providers,"4,015.00",ADRC SOUTHAMPTON LTD,203
Revenue,Adult Services,Adult Social Care,Learning Disab Supp (to be reallocated),5105647584,25.09.2017,Westminster House,Property Services - Day to day Maintenance,257.19,ADT FIRE AND SECURITY PLC,204
Revenue,Adult Services,Adult Social Care,Learning Disab Supp (to be reallocated),5105648108,25.09.2017,Westminster House,Property Services - Day to day Maintenance,-257.19,ADT FIRE AND SECURITY PLC,205
Revenue,Childrens Services,Children's & Education Services,Services for Young People,5105647227,13.09.2017,Youth- West Wight,Security of Buildings,140.87,ADT FIRE AND SECURITY PLC,206
Revenue,Place,Cultural and Related Services,Recreation and Sport,5105647228,13.09.2017,The Heights,Security of Buildings,53.00,ADT FIRE AND SECURITY PLC,207
Revenue,Regeneration,Central Services,Support Services,5105647226,13.09.2017,"County Hall,Newport",Security of Buildings,148.79,ADT FIRE AND SECURITY PLC,208
Capital,Place,Capital,Capital,5105647176,13.09.2017,Coastal Capital Schemes,External Design and Supervision Fees,"9,122.00",AECOM,209
Revenue,Place,Cultural and Related Services,Recreation and Sport,5105646686,06.09.2017,Medina Leisure Centre,Property Services - Day to day Maintenance,420.00,AIRTEK SERVICES IOW LTD,210
Revenue,Childrens Services,Children's & Education Services,Children Looked After,5105646689,06.09.2017,Beaulieu House,Minor Works,80.00,AIRTEK SERVICES IOW LTD,211
Revenue,Adult Services,Adult Social Care,Learning Disability Suppt-adults (18-64),5105646566,06.09.2017,Learning Disability Residential 18-64,Charges from Independent Providers,"5,950.00",AITCH CARE HOMES (LONDON) LTD,212
Revenue,Place,Environmental & Regulatory Services,"Cemetery, Cremation & Mortuary Services",5105646600,13.09.2017,Crematorium,Operational Equipment,"3,350.00",ALBANY FARM & G MACHINERY LTD,214
Revenue,Place,Environmental & Regulatory Services,"Cemetery, Cremation & Mortuary Services",5105647499,15.09.2017,Crematorium,Operational Equipment,107.54,ALBANY FARM & G MACHINERY LTD,215
Revenue,Place,Environmental & Regulatory Services,"Cemetery, Cremation & Mortuary Services",5105648133,27.09.2017,Crematorium,Operational Equipment,21.67,ALBANY FARM & G MACHINERY LTD,216
Revenue,Place,Environmental & Regulatory Services,"Cemetery, Cremation & Mortuary Services",5105648604,29.09.2017,Crematorium,Operational Equipment,104.66,ALBANY FARM & G MACHINERY LTD,217
Revenue,Place,Environmental & Regulatory Services,"Cemetery, Cremation & Mortuary Services",5105648596,29.09.2017,Crematorium,Operational Equipment,35.31,ALBANY FARM & G MACHINERY LTD,218
Revenue,Resources,Highways and Transport Services,Public Transport,5105647133,15.09.2017,Transport Fleet Administration,Vehicle Fuel Costs,"8,485.62",ALLSTAR BUSINESS SOLUTIONS LTD,226
Revenue,Adult Services,Adult Social Care,Learning Disability Suppt-adults (18-64),5105646153,06.09.2017,Learning Disability Residential 18-64,Charges from Independent Providers,"3,836.84",ALPHAGRANGE LTD,227
Revenue,Place,Highways and Transport Services,Parking Services,5105647498,15.09.2017,Car Park Permits,Printing Costs,975.00,ALSOPRINT,228
Revenue,Place,Highways and Transport Services,Parking Services,5105647497,15.09.2017,On-Street Parking Operations,Operational Equipment,725.00,ALSOPRINT,229
Revenue,Place,Environmental & Regulatory Services,Service Management and Support Services,5105646625,06.09.2017,Waste Contract Management,Consultants Fees,"6,514.75",AMEC ENVIRONMENT AND INFRASTRUCTURE UK LTD,232
Revenue,Place,Environmental & Regulatory Services,Recycling,5105648033,22.09.2017,Waste Recycling - Amey Contract,Waste Contractors,"68,982.10",AMEY (IOW) SPV LIMITED,233
Revenue,Place,Environmental & Regulatory Services,Waste Disposal,5105648033,22.09.2017,Waste Disposal - Amey Contract,Waste Contractors,"300,933.08",AMEY (IOW) SPV LIMITED,234
Capital,Place,Capital,Capital,5105647985,22.09.2017,Waste Capital Programme,Payment to Contractors - Capital,"3,313,987.25",AMEY (IOW) SPV LIMITED,235
Revenue,Place,Environmental & Regulatory Services,Waste Collection,5105648033,22.09.2017,Waste Collection - Amey Contract,Waste Contractors,"93,913.12",AMEY (IOW) SPV LIMITED,236
Revenue,Regeneration,Central Services,Support Services,5105647570,22.09.2017,Properties  - Other Properties,Grounds Maintenance,"2,822.28",AMEY (IOW) SPV LIMITED,237
Revenue,Place,Cultural and Related Services,Library Service,5105645679,01.09.2017,Public Libraries Central,Stock Purchases,"4,000.00",AMEY LG LTD,238
Revenue,Place,Cultural and Related Services,Library Service,5105647572,22.09.2017,Public Libraries Central,Stock Purchases,"4,000.00",AMEY LG LTD,239
Revenue,Adult Services,Adult Social Care,Physical Support - older people (65+),5105646155,06.09.2017,Physical Support Residential 65+,Charges from Independent Providers,"2,292.64",ANCONA CARE HOME,241
Revenue,Adult Services,Adult Social Care,Physical Support - older people (65+),5105646155,06.09.2017,Physical Support Residential 65+,Charges from Independent Providers,"1,862.00",ANCONA CARE HOME,242
Revenue,Adult Services,Adult Social Care,Physical Support - older people (65+),5105646764,08.09.2017,Physical Support Residential 65+,Charges from Independent Providers,"6,550.40",ANCONA CARE HOME,243
Revenue,Adult Services,Adult Social Care,Physical Support - older people (65+),5105646155,06.09.2017,Physical Support Residential 65+,Charges from Independent Providers,"1,862.00",ANCONA CARE HOME,244
Revenue,Adult Services,Adult Social Care,Physical Support - older people (65+),5105646155,06.09.2017,Physical Support Residential 65+,Charges from Independent Providers,"1,950.20",ANCONA CARE HOME,245
Revenue,Adult Services,Adult Social Care,Physical Support - older people (65+),5105646155,06.09.2017,Physical Support Residential 65+,Charges from Independent Providers,"1,950.20",ANCONA CARE HOME,246
Revenue,Regeneration,Central Services,Support Services,5105646703,06.09.2017,"County Hall,Newport",Catering Purchases,629.92,REDACTED PERSONAL DATA,247
Revenue,Place,Fire & Rescue Services,Fire fighting and Rescue Operations,5105648220,27.09.2017,Fire Technical Support,Vehicle Maintenance Costs,"-1,772.82",ANGLOCO LTD,248
Revenue,Place,Fire & Rescue Services,Fire fighting and Rescue Operations,5105648219,27.09.2017,Fire Technical Support,Vehicle Maintenance Costs,"1,772.82",ANGLOCO LTD,249
Revenue,Chief Executive,Central Services,Support Services,5105646619,06.09.2017,Print Unit,Printing Costs,63.80,ANTALIS MCNAUGHTON,250
Revenue,Chief Executive,Central Services,Support Services,5105646619,06.09.2017,Print Unit,Printing Costs,70.20,ANTALIS MCNAUGHTON,251
Revenue,Chief Executive,Central Services,Support Services,5105648524,29.09.2017,Print Unit,Printing Costs,63.80,ANTALIS MCNAUGHTON,252
Revenue,Chief Executive,Central Services,Support Services,5105648524,29.09.2017,Print Unit,Printing Costs,53.16,ANTALIS MCNAUGHTON,253
Revenue,Place,Cultural and Related Services,Open Spaces,5105647131,15.09.2017,Parks Mtce Miscellaneous,Operational Equipment,92.00,AQUAM WATER SERVICES LTD,255
Revenue,Place,Planning services,Building Control,5105647571,20.09.2017,Building Control,General Materials,9.69,ARCO LTD,256
Revenue,Place,Cultural and Related Services,Recreation and Sport,5105645686,06.09.2017,The Heights,Clothing & Laundry,169.92,ARCO LTD,257
Revenue,Place,Cultural and Related Services,Recreation and Sport,5105645682,06.09.2017,The Heights,Clothing & Laundry,71.40,ARCO LTD,258
Revenue,Adult Services,Adult Social Care,Central Codes (to be reallocated),5105648002,21.09.2017,Community Outreach,Clothing & Laundry,-21.96,ARCO LTD,259
Revenue,Adult Services,Adult Social Care,Central Codes (to be reallocated),5105648002,21.09.2017,Community Outreach,Clothing & Laundry,-9.60,ARCO LTD,260
Revenue,Adult Services,Adult Social Care,Central Codes (to be reallocated),5105648002,21.09.2017,Community Outreach,Clothing & Laundry,-10.98,ARCO LTD,261
Revenue,Adult Services,Adult Social Care,Learning Disab Supp (to be reallocated),5105648107,27.09.2017,40 Venner Avenue,Maintenance of Operational Equipment,112.00,ARJO MED AB LTD,262
Revenue,Adult Services,Adult Social Care,Learning Disab Supp (to be reallocated),5105638394,20.09.2017,Plean Dene,Maintenance of Operational Equipment,119.19,ARJO MED AB LTD,263
Revenue,Adult Services,Adult Social Care,Learning Disab Supp (to be reallocated),5105647725,20.09.2017,Plean Dene,Maintenance of Operational Equipment,-74.00,ARJO MED AB LTD,264
Revenue,Place,Cultural and Related Services,Library Service,5105647556,15.09.2017,Public Libraries Central,Professional Subscriptions,75.00,ASSOCIATION OF SENIOR CHILDREN'S AND EDUCATION LIBRARIANS,266
Revenue,Place,Environmental & Regulatory Services,"Cemetery, Cremation & Mortuary Services",5105648621,29.09.2017,Crematorium,Operational Equipment,"1,817.92",ASHDOWN SUPPLIES,267
Revenue,Adult Services,Adult Social Care,Learning Disability Support-older people,5105648260,29.09.2017,Learning Disability Residential 65+,Charges from Independent Providers,"4,220.33",ASPENGLADE LTD,268
Revenue,Adult Services,Adult Social Care,Central Codes (to be reallocated),5105648507,29.09.2017,Adelaide Resource Centre,Property Services - Day to day Maintenance,104.07,ASSA ABLOY ENTRANCE SYSTEMS LTD,269
Revenue,Childrens Services,Children's & Education Services,Other Education and Community Budget,5105648095,22.09.2017,Learning & Development Running Costs,Minor Works,216.00,ASSA ABLOY ENTRANCE SYSTEMS LTD,270
Revenue,Place,Highways and Transport Services,"Airports, Harbours & Toll Facilities",5105646669,06.09.2017,Ferry Operation,Operational Equipment,13.95,ATLANTIS MARINE POWER LTD,271
Revenue,Place,Highways and Transport Services,"Airports, Harbours & Toll Facilities",5105646669,06.09.2017,Ferry Operation,Operational Equipment,317.58,ATLANTIS MARINE POWER LTD,272
Revenue,Place,Highways and Transport Services,"Airports, Harbours & Toll Facilities",5105646669,06.09.2017,Ferry Operation,Operational Equipment,113.58,ATLANTIS MARINE POWER LTD,273
Revenue,Place,Cultural and Related Services,Culture and Heritage,5105645948,06.09.2017,Dinosaur Isle Museum (Sandown Geology),Stock Purchases,227.49,AURORA WORLD UK LTD,274
Revenue,Adult Services,Balance Sheet,Balance Sheet,5105646134,06.09.2017,REDACTED PERSONAL DATA,Order Settlement to Bal Sht GL,"1,950.20",AUTUMN HOUSE CARE LTD,275
Revenue,Adult Services,Adult Social Care,Physical Support - older people (65+),5105646134,06.09.2017,Physical Support Residential 65+,Charges from Independent Providers,"1,950.20",AUTUMN HOUSE CARE LTD,276
Revenue,Adult Services,Adult Social Care,Support - Memory /Cognition-older people (65+),5105646134,06.09.2017,Memory & Cognition Residential 65+,Charges from Independent Providers,"2,292.64",AUTUMN HOUSE CARE LTD,277
Revenue,Adult Services,Adult Social Care,Support - Memory /Cognition-older people (65+),5105646134,06.09.2017,Memory & Cognition Residential 65+,Charges from Independent Providers,"2,292.64",AUTUMN HOUSE CARE LTD,278
Revenue,Adult Services,Adult Social Care,Support - Memory /Cognition-older people (65+),5105646134,06.09.2017,Memory & Cognition Residential 65+,Charges from Independent Providers,"2,292.64",AUTUMN HOUSE CARE LTD,279
Revenue,Adult Services,Adult Social Care,Physical Support - older people (65+),5105646134,06.09.2017,Physical Support Residential 65+,Charges from Independent Providers,"2,292.64",AUTUMN HOUSE CARE LTD,280
Revenue,Adult Services,Adult Social Care,Support - Memory /Cognition-older people (65+),5105646134,06.09.2017,Memory & Cognition Residential 65+,Charges from Independent Providers,"2,292.64",AUTUMN HOUSE CARE LTD,281
Revenue,Adult Services,Adult Social Care,Physical Support - older people (65+),5105646134,06.09.2017,Physical Support Residential 65+,Charges from Independent Providers,"2,292.64",AUTUMN HOUSE CARE LTD,282
Revenue,Adult Services,Adult Social Care,Physical Support - older people (65+),5105646134,06.09.2017,Physical Support Residential 65+,Charges from Independent Providers,"1,950.20",AUTUMN HOUSE CARE LTD,283
Revenue,Adult Services,Adult Social Care,Support - Memory /Cognition-older people (65+),5105647141,13.09.2017,Memory & Cognition Residential 65+,Charges from Independent Providers,"6,268.50",AUTUMN HOUSE CARE LTD,284
Revenue,Adult Services,Adult Social Care,Physical Support - older people (65+),5105647533,15.09.2017,Physical Support Residential 65+,Charges from Independent Providers,76.26,AUTUMN HOUSE CARE LTD,285
Revenue,Adult Services,Adult Social Care,Physical Support - older people (65+),5105646134,06.09.2017,Physical Support Residential 65+,Charges from Independent Providers,"2,292.64",AUTUMN HOUSE CARE LTD,286
Revenue,Adult Services,Adult Social Care,Physical Support - older people (65+),5105646134,06.09.2017,Physical Support Residential 65+,Charges from Independent Providers,"1,950.20",AUTUMN HOUSE CARE LTD,287
Revenue,Adult Services,Adult Social Care,Support - Memory /Cognition-older people (65+),5105646134,06.09.2017,Memory & Cognition Residential 65+,Charges from Independent Providers,"2,292.64",AUTUMN HOUSE CARE LTD,288
Revenue,Adult Services,Adult Social Care,Support - Memory /Cognition-older people (65+),5105646134,06.09.2017,Memory & Cognition Residential 65+,Charges from Independent Providers,"2,292.64",AUTUMN HOUSE CARE LTD,289
Revenue,Adult Services,Adult Social Care,Support - Memory /Cognition-older people (65+),5105646134,06.09.2017,Memory & Cognition Residential 65+,Charges from Independent Providers,"2,292.64",AUTUMN HOUSE CARE LTD,290
Revenue,Adult Services,Adult Social Care,Support - Memory /Cognition-older people (65+),5105646134,06.09.2017,Memory & Cognition Residential 65+,Charges from Independent Providers,"2,292.64",AUTUMN HOUSE CARE LTD,291
Revenue,Adult Services,Adult Social Care,Support - Memory /Cognition-older people (65+),5105646134,06.09.2017,Memory & Cognition Residential 65+,Charges from Independent Providers,"2,292.64",AUTUMN HOUSE CARE LTD,292
Revenue,Adult Services,Adult Social Care,Support - Memory /Cognition-older people (65+),5105646134,06.09.2017,Memory & Cognition Residential 65+,Charges from Independent Providers,"2,292.64",AUTUMN HOUSE CARE LTD,293
Revenue,Adult Services,Adult Social Care,Support - Memory /Cognition-older people (65+),5105646134,06.09.2017,Memory & Cognition Residential 65+,Charges from Independent Providers,"2,292.64",AUTUMN HOUSE CARE LTD,294
Revenue,Adult Services,Adult Social Care,Support - Memory /Cognition-older people (65+),5105646134,06.09.2017,Memory & Cognition Residential 65+,Charges from Independent Providers,"1,950.20",AUTUMN HOUSE CARE LTD,295
Revenue,Adult Services,Adult Social Care,Support - Memory /Cognition-older people (65+),5105646134,06.09.2017,Memory & Cognition Residential 65+,Charges from Independent Providers,"2,292.64",AUTUMN HOUSE CARE LTD,296
Revenue,Adult Services,Adult Social Care,Support - Memory /Cognition-older people (65+),5105646134,06.09.2017,Memory & Cognition Residential 65+,Charges from Independent Providers,"2,292.64",AUTUMN HOUSE CARE LTD,297
Revenue,Adult Services,Adult Social Care,Physical Support - older people (65+),5105646134,06.09.2017,Physical Support Residential 65+,Charges from Independent Providers,"2,292.64",AUTUMN HOUSE CARE LTD,298
Revenue,Adult Services,Adult Social Care,Support - Memory /Cognition-older people (65+),5105646134,06.09.2017,Memory & Cognition Residential 65+,Charges from Independent Providers,"2,292.64",AUTUMN HOUSE CARE LTD,299
Revenue,Adult Services,Adult Social Care,Support - Memory /Cognition-older people (65+),5105646134,06.09.2017,Memory & Cognition Residential 65+,Charges from Independent Providers,"2,292.64",AUTUMN HOUSE CARE LTD,300
Revenue,Adult Services,Adult Social Care,Mental Health Support-older people (65+),5105646134,06.09.2017,Mental Health Residential 65+,Charges from Independent Providers,"2,292.64",AUTUMN HOUSE CARE LTD,301
Revenue,Adult Services,Adult Social Care,Physical Support - older people (65+),5105646575,06.09.2017,Physical Support Residential 65+,Charges from Independent Providers,"2,240.56",AVON PARK RESIDENTIAL HOME,302
Revenue,Place,Cultural and Related Services,Service Management and Support Services,5105646058,08.09.2017,Duke of Edingburgh Award,General Materials,171.40,AWARD SCHEME LTD,303
Revenue,Place,Cultural and Related Services,Service Management and Support Services,5105646060,06.09.2017,Duke of Edingburgh Award,General Materials,2.08,AWARD SCHEME LTD,304
Revenue,Place,Cultural and Related Services,Service Management and Support Services,5105646058,08.09.2017,Duke of Edingburgh Award,General Materials,6.25,AWARD SCHEME LTD,305
Revenue,Childrens Services,Children's & Education Services,Children Looked After,5105646780,08.09.2017,In-house Fostering,Boarding Out Allowances,234.52,REDACTED PERSONAL DATA,306
Revenue,Childrens Services,Children's & Education Services,Children Looked After,5105648275,29.09.2017,In-house Fostering,Boarding Out Allowances,234.52,REDACTED PERSONAL DATA,307
Revenue,Childrens Services,Children's & Education Services,Children Looked After,5105647802,22.09.2017,In-house Fostering,Boarding Out Allowances,234.52,REDACTED PERSONAL DATA,308
Revenue,Childrens Services,Children's & Education Services,Children Looked After,5105647317,15.09.2017,In-house Fostering,Boarding Out Allowances,234.52,REDACTED PERSONAL DATA,309
Revenue,Childrens Services,Children's & Education Services,Children Looked After,5105647317,15.09.2017,Leaving Care Costs,Support Children,50.00,REDACTED PERSONAL DATA,310
Revenue,Childrens Services,Children's & Education Services,Children Looked After,5105647802,22.09.2017,Leaving Care Costs,Support Children,50.00,REDACTED PERSONAL DATA,311
Revenue,Childrens Services,Children's & Education Services,Children Looked After,5105648275,29.09.2017,Leaving Care Costs,Support Children,50.00,REDACTED PERSONAL DATA,312
Revenue,Childrens Services,Children's & Education Services,Children Looked After,5105646029,01.09.2017,Leaving Care Costs,Accommodation Costs - Service Users,500.00,REDACTED PERSONAL DATA,313
Revenue,Childrens Services,Children's & Education Services,Children Looked After,5105646780,08.09.2017,Leaving Care Costs,Support Children,50.00,REDACTED PERSONAL DATA,314
Revenue,Place,Cultural and Related Services,Open Spaces,5105646990,08.09.2017,Fort Victoria,Payment to Private Contractors,125.31,B & Q FINANCIAL SERVICES,315
Revenue,Resources,Central Services,Support Services,5105647851,22.09.2017,Staff Benefits,Payment to Private Contractors,100.00,REDACTED PERSONAL DATA,318
Revenue,Resources,Central Services,Support Services,5105647851,22.09.2017,Staff Benefits,Payment to Private Contractors,100.00,REDACTED PERSONAL DATA,319
Revenue,Place,Housing Services,Homelessness,5105647746,22.09.2017,Leaseholds by LA,Accommodation Costs - Leaseholder Payments,799.50,REDACTED PERSONAL DATA,320
Revenue,Place,Housing Services,Homelessness,5105647746,22.09.2017,Leaseholds by LA,Accommodation Costs - Leaseholder Payments,888.33,REDACTED PERSONAL DATA,321
Revenue,Place,Housing Services,Homelessness,5105647746,22.09.2017,Leaseholds by LA,Accommodation Costs - Leaseholder Payments,866.67,REDACTED PERSONAL DATA,322
Capital,Corporate Items,Balance Sheet,Balance Sheet,5105646558,06.09.2017,Balance Sheet,Order Settlement to Bal Sht GL,160.16,B&M INVESTMENTS LTD,328
Revenue,Adult Services,Adult Social Care,Physical Support - older people (65+),5105646558,06.09.2017,Physical Support Residential 65+,Charges from Independent Providers,"1,920.80",B&M INVESTMENTS LTD,329
Revenue,Place,Fire & Rescue Services,Fire fighting and Rescue Operations,5105647624,27.09.2017,Fire Technical Support,Vehicle Maintenance Costs,"4,732.28",BABCOCK CRITICAL SERVICES LTD,330
Revenue,Place,Cultural and Related Services,Recreation and Sport,5105647241,20.09.2017,Play Development,Operational Equipment,300.00,BADMINTON ENGLAND LTD,331
Revenue,Resources,Central Services,Support Services,5105645620,06.09.2017,Litigation Costs,Legal Fees - Other Parties,125.00,REDACTED PERSONAL DATA,332
Revenue,Place,Fire & Rescue Services,Fire fighting and Rescue Operations,5105646737,06.09.2017,Fire Technical Support,Payment to Private Contractors,"7,164.92",BALLYCLARE LTD,333
Revenue,Place,Fire & Rescue Services,Fire fighting and Rescue Operations,5105646738,06.09.2017,Fire Technical Support,Payment to Private Contractors,877.76,BALLYCLARE LTD,334
Revenue,Place,Fire & Rescue Services,Fire fighting and Rescue Operations,5105646740,06.09.2017,Fire Technical Support,Payment to Private Contractors,-159.13,BALLYCLARE LTD,335
Revenue,Adult Services,Adult Social Care,Social Care Activities,5105648091,27.09.2017,Commissioning Manager Individual Support,Consultants Fees,"3,100.00",BALTIMORE CONSULTING LIMITED,336
Revenue,Adult Services,Adult Social Care,Social Care Activities,5105647054,20.09.2017,Commissioning Manager Individual Support,Consultants Fees,"3,100.00",BALTIMORE CONSULTING LIMITED,337
Revenue,Childrens Services,Children's & Education Services,Management & Support Services,5105646108,06.09.2017,Specialist Service Business Admin,Stationery,5.16,SUPPLIES TEAM LTD,338
Revenue,Place,Cultural and Related Services,Culture and Heritage,5105645955,06.09.2017,Dinosaur Isle Museum (Sandown Geology),Stationery,85.70,SUPPLIES TEAM LTD,339
Revenue,Place,Environmental & Regulatory Services,Regulatory Services,5105646073,08.09.2017,Licensing Services,Stationery,2.28,SUPPLIES TEAM LTD,340
Revenue,Place,Environmental & Regulatory Services,Regulatory Services,5105646073,08.09.2017,Licensing Services,Stationery,25.71,SUPPLIES TEAM LTD,341
Revenue,Place,Environmental & Regulatory Services,Regulatory Services,5105646073,08.09.2017,Licensing Services,Stationery,0.53,SUPPLIES TEAM LTD,342
Revenue,Place,Environmental & Regulatory Services,Regulatory Services,5105646073,08.09.2017,Licensing Services,Stationery,1.61,SUPPLIES TEAM LTD,343
Revenue,Place,Environmental & Regulatory Services,Regulatory Services,5105646073,08.09.2017,Licensing Services,Stationery,0.53,SUPPLIES TEAM LTD,344
Revenue,Childrens Services,Children's & Education Services,Safeguarding Children/Young Peoples Svs,5105646073,08.09.2017,LSCB (Local Safeguarding Childrens Board),Stationery,17.14,SUPPLIES TEAM LTD,345
Revenue,Resources,Central Services,Support Services,5105646603,06.09.2017,Corproate Business Hub,Stationery,1.48,SUPPLIES TEAM LTD,346
Revenue,Resources,Central Services,Central Services to the Public,5105648462,29.09.2017,Revenues & Benefits Operational Support,Stationery,1.08,SUPPLIES TEAM LTD,347
Revenue,Resources,Central Services,Central Services to the Public,5105648462,29.09.2017,Revenues & Benefits Operational Support,Stationery,1.32,SUPPLIES TEAM LTD,348
Revenue,Resources,Central Services,Central Services to the Public,5105648462,29.09.2017,Revenues & Benefits Operational Support,Stationery,2.69,SUPPLIES TEAM LTD,349
Revenue,Childrens Services,Children's & Education Services,Youth Justice,5105648462,29.09.2017,Youth Offending Team,Stationery,17.14,SUPPLIES TEAM LTD,350
Revenue,Place,Housing Services,Private Sector Housing Renewal,5105647154,13.09.2017,Renewal & Enforcement,Stationery,4.49,SUPPLIES TEAM LTD,351
Revenue,Childrens Services,Children's & Education Services,Other Education and Community Budget,5105647154,13.09.2017,Education & Participation,Stationery,8.04,SUPPLIES TEAM LTD,352
Revenue,Childrens Services,Children's & Education Services,Other Education and Community Budget,5105647154,13.09.2017,Education & Participation,Stationery,6.45,SUPPLIES TEAM LTD,353
Revenue,Childrens Services,Children's & Education Services,Other Education and Community Budget,5105647154,13.09.2017,Education & Participation,Stationery,0.24,SUPPLIES TEAM LTD,354
Revenue,Resources,Central Services,Support Services,5105647154,13.09.2017,Corproate Business Hub,Stationery,0.80,SUPPLIES TEAM LTD,355
Revenue,Resources,Central Services,Support Services,5105647154,13.09.2017,Corproate Business Hub,Stationery,4.49,SUPPLIES TEAM LTD,356
Revenue,Resources,Central Services,Support Services,5105647154,13.09.2017,Corproate Business Hub,Stationery,34.28,SUPPLIES TEAM LTD,357
Revenue,Place,Planning services,Building Control,5105647161,22.09.2017,Building Control,Stationery,0.08,SUPPLIES TEAM LTD,358
Revenue,Place,Planning services,Building Control,5105647161,22.09.2017,Building Control,Stationery,10.68,SUPPLIES TEAM LTD,359
Revenue,Place,Planning services,Building Control,5105647161,22.09.2017,Building Control,Stationery,5.58,SUPPLIES TEAM LTD,360
Revenue,Place,Planning services,Building Control,5105647161,22.09.2017,Building Control,Stationery,3.56,SUPPLIES TEAM LTD,361
Revenue,Place,Planning services,Building Control,5105647161,22.09.2017,Building Control,Stationery,0.38,SUPPLIES TEAM LTD,362
Revenue,Place,Cultural and Related Services,Culture and Heritage,5105647159,13.09.2017,Medina Theatre,Stationery,48.24,SUPPLIES TEAM LTD,363
Revenue,Adult Services,Adult Social Care,Assistive Equipment & Technology,5105646948,13.09.2017,Wightcare,Stationery,25.50,SUPPLIES TEAM LTD,364
Revenue,Childrens Services,Children's & Education Services,Other Education and Community Budget,5105646107,01.09.2017,Education Welfare Service,Stationery,85.70,SUPPLIES TEAM LTD,365
Revenue,Resources,Central Services,Support Services,5105646109,06.09.2017,Pension Administration,Stationery,3.11,SUPPLIES TEAM LTD,366
Revenue,Resources,Central Services,Support Services,5105646109,06.09.2017,Human Resources,Stationery,2.72,SUPPLIES TEAM LTD,367
Revenue,Resources,Central Services,Support Services,5105646109,06.09.2017,Human Resources,Stationery,0.53,SUPPLIES TEAM LTD,368
Revenue,Childrens Services,Children's & Education Services,Other Education and Community Budget,5105646108,06.09.2017,Education Welfare Service,Stationery,31.30,SUPPLIES TEAM LTD,369
Revenue,Childrens Services,Children's & Education Services,Other Education and Community Budget,5105646108,06.09.2017,Education Welfare Service,Stationery,1.00,SUPPLIES TEAM LTD,370
Revenue,Childrens Services,Children's & Education Services,Other Education and Community Budget,5105646108,06.09.2017,Education Welfare Service,Stationery,0.80,SUPPLIES TEAM LTD,371
Revenue,Childrens Services,Children's & Education Services,Other Education and Community Budget,5105646108,06.09.2017,Education Welfare Service,Stationery,0.80,SUPPLIES TEAM LTD,372
Revenue,Childrens Services,Children's & Education Services,Management & Support Services,5105646108,06.09.2017,Specialist Service Business Admin,Stationery,2.01,SUPPLIES TEAM LTD,373
Revenue,Childrens Services,Children's & Education Services,Management & Support Services,5105646108,06.09.2017,Specialist Service Business Admin,Stationery,0.22,SUPPLIES TEAM LTD,374
Revenue,Childrens Services,Children's & Education Services,Management & Support Services,5105646108,06.09.2017,Specialist Service Business Admin,Stationery,8.16,SUPPLIES TEAM LTD,375
Revenue,Resources,Central Services,Central Services to the Public,5105645964,01.09.2017,National Non Domestic Rates,Stationery,1.39,SUPPLIES TEAM LTD,376
Revenue,Resources,Central Services,Central Services to the Public,5105645964,01.09.2017,National Non Domestic Rates,Stationery,0.27,SUPPLIES TEAM LTD,377
Revenue,Resources,Central Services,Central Services to the Public,5105645964,01.09.2017,National Non Domestic Rates,Stationery,0.08,SUPPLIES TEAM LTD,378
Revenue,Resources,Central Services,Central Services to the Public,5105645964,01.09.2017,National Non Domestic Rates,Stationery,3.43,SUPPLIES TEAM LTD,379
Revenue,Place,Cultural and Related Services,Library Service,5105646086,06.09.2017,Public Libraries Central,Stationery,13.32,SUPPLIES TEAM LTD,380
Revenue,Place,Cultural and Related Services,Culture and Heritage,5105646086,06.09.2017,Archives,Stationery,9.60,SUPPLIES TEAM LTD,381
Revenue,Place,Cultural and Related Services,Recreation and Sport,5105645269,28.09.2017,Medina Leisure Centre,Stationery,17.14,SUPPLIES TEAM LTD,382
Revenue,Resources,Central Services,Support Services,5105646603,06.09.2017,County Hall Central Mail Room,Stationery,1.08,SUPPLIES TEAM LTD,383
Revenue,Place,Cultural and Related Services,Service Management and Support Services,5105646603,06.09.2017,Leisure Management & Admin,Stationery,0.33,SUPPLIES TEAM LTD,384
Revenue,Place,Cultural and Related Services,Service Management and Support Services,5105646603,06.09.2017,Leisure Management & Admin,Stationery,0.51,SUPPLIES TEAM LTD,385
Revenue,Regeneration,Central Services,Support Services,5105646603,06.09.2017,Strategic Assets Team,Stationery,0.40,SUPPLIES TEAM LTD,386
Revenue,Resources,Central Services,Support Services,5105646603,06.09.2017,Legal Services Section,Stationery,17.14,SUPPLIES TEAM LTD,387
Revenue,Place,Cultural and Related Services,Recreation and Sport,5105648519,28.09.2017,Medina Leisure Centre,Stationery,-17.14,SUPPLIES TEAM LTD,388
Revenue,Place,Cultural and Related Services,Service Management and Support Services,5105648462,29.09.2017,Leisure Management & Admin,Stationery,0.54,SUPPLIES TEAM LTD,389
Revenue,Place,Cultural and Related Services,Service Management and Support Services,5105648462,29.09.2017,Leisure Management & Admin,Stationery,0.16,SUPPLIES TEAM LTD,390
Revenue,Place,Cultural and Related Services,Service Management and Support Services,5105648462,29.09.2017,Leisure Management & Admin,Stationery,0.16,SUPPLIES TEAM LTD,391
Revenue,Place,Cultural and Related Services,Service Management and Support Services,5105648462,29.09.2017,Leisure Management & Admin,Stationery,1.07,SUPPLIES TEAM LTD,392
Revenue,Place,Cultural and Related Services,Service Management and Support Services,5105648462,29.09.2017,Leisure Management & Admin,Stationery,1.17,SUPPLIES TEAM LTD,393
Revenue,Place,Cultural and Related Services,Service Management and Support Services,5105648462,29.09.2017,Leisure Management & Admin,Stationery,1.00,SUPPLIES TEAM LTD,394
Revenue,Place,Cultural and Related Services,Service Management and Support Services,5105648462,29.09.2017,Leisure Management & Admin,Stationery,17.14,SUPPLIES TEAM LTD,395
Revenue,Resources,Central Services,Support Services,5105647154,13.09.2017,Legal Services Section,Stationery,5.58,SUPPLIES TEAM LTD,396
Revenue,Resources,Central Services,Support Services,5105647154,13.09.2017,Legal Services Section,Stationery,1.92,SUPPLIES TEAM LTD,397
Revenue,Resources,Central Services,Support Services,5105647154,13.09.2017,Legal Services Section,Stationery,2.46,SUPPLIES TEAM LTD,398
Revenue,Resources,Central Services,Support Services,5105647154,13.09.2017,Legal Services Section,Stationery,8.57,SUPPLIES TEAM LTD,399
Revenue,Resources,Central Services,Support Services,5105647154,13.09.2017,Legal Services Section,Stationery,34.28,SUPPLIES TEAM LTD,400
Revenue,Resources,Central Services,Support Services,5105647154,13.09.2017,Legal Services Section,Stationery,8.53,SUPPLIES TEAM LTD,401
Revenue,Resources,Central Services,Support Services,5105647154,13.09.2017,Legal Services Section,Stationery,6.32,SUPPLIES TEAM LTD,402
Revenue,Place,Cultural and Related Services,Library Service,5105647152,22.09.2017,Public Libraries Central,Stationery,15.13,SUPPLIES TEAM LTD,403
Revenue,Resources,Central Services,Support Services,5105647158,22.09.2017,ICT CCR,Stationery,0.48,SUPPLIES TEAM LTD,404
Revenue,Place,Central Services,Central Services to the Public,5105647158,22.09.2017,"Registration Of Births,Deaths, Marriages",Stationery,1.38,SUPPLIES TEAM LTD,405
Revenue,Place,Central Services,Central Services to the Public,5105647158,22.09.2017,"Registration Of Births,Deaths, Marriages",Stationery,4.30,SUPPLIES TEAM LTD,406
Revenue,Place,Cultural and Related Services,Recreation and Sport,5105646994,08.09.2017,Medina Leisure Centre,Stationery,1.17,SUPPLIES TEAM LTD,407
Revenue,Place,Cultural and Related Services,Recreation and Sport,5105646994,08.09.2017,Medina Leisure Centre,Stationery,0.76,SUPPLIES TEAM LTD,408
Revenue,Place,Cultural and Related Services,Recreation and Sport,5105646994,08.09.2017,Medina Leisure Centre,Stationery,1.60,SUPPLIES TEAM LTD,409
Revenue,Place,Cultural and Related Services,Recreation and Sport,5105646994,08.09.2017,Medina Leisure Centre,Stationery,0.80,SUPPLIES TEAM LTD,410
Revenue,Place,Cultural and Related Services,Recreation and Sport,5105646994,08.09.2017,Medina Leisure Centre,Stationery,9.98,SUPPLIES TEAM LTD,411
Revenue,Place,Cultural and Related Services,Recreation and Sport,5105647255,20.09.2017,Medina Leisure Centre,Stationery,6.44,SUPPLIES TEAM LTD,412
Revenue,Place,Cultural and Related Services,Recreation and Sport,5105646994,08.09.2017,Medina Leisure Centre,Stationery,4.44,SUPPLIES TEAM LTD,413
Revenue,Place,Cultural and Related Services,Recreation and Sport,5105646994,08.09.2017,Medina Leisure Centre,Stationery,15.84,SUPPLIES TEAM LTD,414
Revenue,Childrens Services,Children's & Education Services,Children Looked After,5105646937,13.09.2017,Beaulieu House,Stationery,0.53,SUPPLIES TEAM LTD,415
Revenue,Childrens Services,Children's & Education Services,Children Looked After,5105646937,13.09.2017,Beaulieu House,Stationery,0.78,SUPPLIES TEAM LTD,416
Revenue,Childrens Services,Children's & Education Services,Children Looked After,5105646937,13.09.2017,Beaulieu House,Stationery,14.86,SUPPLIES TEAM LTD,417
Revenue,Childrens Services,Children's & Education Services,Children Looked After,5105646937,13.09.2017,Beaulieu House,Stationery,0.54,SUPPLIES TEAM LTD,418
Revenue,Childrens Services,Children's & Education Services,Children Looked After,5105646937,13.09.2017,Beaulieu House,Stationery,3.30,SUPPLIES TEAM LTD,419
Revenue,Childrens Services,Children's & Education Services,Children Looked After,5105646937,13.09.2017,Beaulieu House,Stationery,1.61,SUPPLIES TEAM LTD,420
Revenue,Childrens Services,Children's & Education Services,Children Looked After,5105646937,13.09.2017,Beaulieu House,Stationery,17.14,SUPPLIES TEAM LTD,421
Revenue,Childrens Services,Children's & Education Services,Children Looked After,5105646937,13.09.2017,Beaulieu House,Stationery,1.17,SUPPLIES TEAM LTD,422
Revenue,Childrens Services,Children's & Education Services,Other Education and Community Budget,5105647994,22.09.2017,Commissioning ACL,General Materials,9.41,SUPPLIES TEAM LTD,423
Revenue,Childrens Services,Children's & Education Services,Other Education and Community Budget,5105647994,22.09.2017,Commissioning ACL,General Materials,21.64,SUPPLIES TEAM LTD,424
Revenue,Place,Cultural and Related Services,Recreation and Sport,5105645960,08.09.2017,Medina Leisure Centre,Stationery,14.18,SUPPLIES TEAM LTD,425
Revenue,Childrens Services,Children's & Education Services,Family Support Services,5105646083,06.09.2017,Disabled Childrens Intervention Team,Stationery,4.83,SUPPLIES TEAM LTD,426
Revenue,Resources,Central Services,Central Services to the Public,5105645964,01.09.2017,National Non Domestic Rates,Stationery,0.33,SUPPLIES TEAM LTD,427
Revenue,Resources,Central Services,Central Services to the Public,5105645964,01.09.2017,National Non Domestic Rates,Stationery,0.08,SUPPLIES TEAM LTD,428
Revenue,Resources,Housing Services,Housing Benefits Administration,5105645964,01.09.2017,Benefit Reviews & Overpayments,Stationery,0.54,SUPPLIES TEAM LTD,429
Revenue,Resources,Housing Services,Housing Benefits Administration,5105645964,01.09.2017,Housing Benefit,Stationery,2.28,SUPPLIES TEAM LTD,430
Revenue,Resources,Housing Services,Housing Benefits Administration,5105645964,01.09.2017,Housing Benefit,Stationery,0.33,SUPPLIES TEAM LTD,431
Revenue,Resources,Parking Services,Off Street Parking,5105645964,01.09.2017,Parking Services,Stationery,1.60,SUPPLIES TEAM LTD,432
Revenue,Resources,Parking Services,Off Street Parking,5105645964,01.09.2017,Parking Services,Stationery,0.27,SUPPLIES TEAM LTD,433
Revenue,Resources,Parking Services,Off Street Parking,5105645964,01.09.2017,Parking Services,Stationery,0.68,SUPPLIES TEAM LTD,434
Revenue,Resources,Parking Services,Off Street Parking,5105645964,01.09.2017,Parking Services,Stationery,7.50,SUPPLIES TEAM LTD,435
Revenue,Adult Services,Adult Social Care,Central Codes (to be reallocated),5105646074,15.09.2017,Community Outreach,Stationery,25.71,SUPPLIES TEAM LTD,436
Revenue,Place,Highways and Transport Services,"Airports, Harbours & Toll Facilities",5105646603,06.09.2017,Ferry Operation,Stationery,0.54,SUPPLIES TEAM LTD,437
Revenue,Place,Highways and Transport Services,"Airports, Harbours & Toll Facilities",5105646603,06.09.2017,Ferry Operation,Stationery,8.57,SUPPLIES TEAM LTD,438
Revenue,Place,Highways and Transport Services,"Airports, Harbours & Toll Facilities",5105646603,06.09.2017,Ferry Operation,Stationery,17.14,SUPPLIES TEAM LTD,439
Revenue,Place,Highways and Transport Services,"Airports, Harbours & Toll Facilities",5105646603,06.09.2017,Ferry Operation,Stationery,17.14,SUPPLIES TEAM LTD,440
Revenue,Place,Highways and Transport Services,"Airports, Harbours & Toll Facilities",5105646603,06.09.2017,Ferry Operation,Stationery,17.14,SUPPLIES TEAM LTD,441
Revenue,Place,Highways and Transport Services,"Airports, Harbours & Toll Facilities",5105646603,06.09.2017,Ferry Operation,Stationery,8.32,SUPPLIES TEAM LTD,442
Revenue,Place,Highways and Transport Services,"Airports, Harbours & Toll Facilities",5105646603,06.09.2017,Ferry Operation,Stationery,30.40,SUPPLIES TEAM LTD,443
Revenue,Place,Highways and Transport Services,"Airports, Harbours & Toll Facilities",5105646603,06.09.2017,Ferry Operation,Stationery,32.06,SUPPLIES TEAM LTD,444
Revenue,Adult Services,Adult Social Care,Commissioning & Service Delivery,5105647990,27.09.2017,Adult Social Care Enterprise House,Stationery,12.52,SUPPLIES TEAM LTD,445
Revenue,Adult Services,Adult Social Care,Commissioning & Service Delivery,5105647990,27.09.2017,Adult Social Care Enterprise House,Stationery,25.71,SUPPLIES TEAM LTD,446
Revenue,Adult Services,Adult Social Care,Commissioning & Service Delivery,5105647990,27.09.2017,Adult Social Care Enterprise House,Stationery,7.40,SUPPLIES TEAM LTD,447
Revenue,Adult Services,Adult Social Care,Commissioning & Service Delivery,5105647990,27.09.2017,Adult Social Care Enterprise House,Stationery,1.20,SUPPLIES TEAM LTD,448
Revenue,Adult Services,Adult Social Care,Commissioning & Service Delivery,5105647990,27.09.2017,Adult Social Care Enterprise House,Stationery,1.95,SUPPLIES TEAM LTD,449
Revenue,Adult Services,Adult Social Care,Commissioning & Service Delivery,5105647990,27.09.2017,Adult Social Care Enterprise House,Stationery,0.66,SUPPLIES TEAM LTD,450
Revenue,Adult Services,Adult Social Care,Commissioning & Service Delivery,5105647990,27.09.2017,Adult Social Care Enterprise House,Stationery,2.46,SUPPLIES TEAM LTD,451
Revenue,Adult Services,Adult Social Care,Commissioning & Service Delivery,5105647990,27.09.2017,Adult Social Care Enterprise House,Stationery,4.37,SUPPLIES TEAM LTD,452
Revenue,Childrens Services,Children's & Education Services,Management & Support Services,5105648464,29.09.2017,"Speech, Language and Communication",Stationery,6.64,SUPPLIES TEAM LTD,453
Revenue,Adult Services,Adult Social Care,Commissioning & Service Delivery,5105648461,29.09.2017,Adult Social Care Enterprise House,Stationery,1.98,SUPPLIES TEAM LTD,454
Revenue,Adult Services,Adult Social Care,Commissioning & Service Delivery,5105648461,29.09.2017,Adult Social Care Enterprise House,Stationery,17.14,SUPPLIES TEAM LTD,455
Revenue,Adult Services,Adult Social Care,Commissioning & Service Delivery,5105648461,29.09.2017,Adult Social Care Enterprise House,Stationery,1.00,SUPPLIES TEAM LTD,456
Revenue,Adult Services,Adult Social Care,Commissioning & Service Delivery,5105648461,29.09.2017,Adult Social Care Enterprise House,Stationery,3.69,SUPPLIES TEAM LTD,457
Revenue,Adult Services,Adult Social Care,Commissioning & Service Delivery,5105648461,29.09.2017,Adult Social Care Enterprise House,Stationery,1.61,SUPPLIES TEAM LTD,458
Revenue,Adult Services,Adult Social Care,Commissioning & Service Delivery,5105648461,29.09.2017,Adult Social Care Enterprise House,Stationery,44.40,SUPPLIES TEAM LTD,459
Revenue,Place,Cultural and Related Services,Recreation and Sport,5105648084,22.09.2017,The Heights,Stationery,34.28,SUPPLIES TEAM LTD,460
Revenue,Childrens Services,Children's & Education Services,Management & Support Services,5105648511,29.09.2017,"Speech, Language and Communication",Stationery,6.64,SUPPLIES TEAM LTD,461
Revenue,Adult Services,Adult Social Care,Commissioning & Service Delivery,5105647155,22.09.2017,Adult Social Care Enterprise House,Stationery,34.28,SUPPLIES TEAM LTD,462
Revenue,Adult Services,Adult Social Care,Commissioning & Service Delivery,5105647155,22.09.2017,Adult Social Care Enterprise House,Stationery,4.49,SUPPLIES TEAM LTD,463
Revenue,Place,Highways and Transport Services,"Airports, Harbours & Toll Facilities",5105646942,08.09.2017,Ferry Operation,Stationery,4.00,SUPPLIES TEAM LTD,464
Revenue,Place,Planning services,Management & Support Services,5105647161,22.09.2017,Planning Management,Stationery,4.92,SUPPLIES TEAM LTD,465
Revenue,Place,Planning services,Management & Support Services,5105647161,22.09.2017,Planning Management,Stationery,0.54,SUPPLIES TEAM LTD,466
Revenue,Place,Planning services,Management & Support Services,5105647158,22.09.2017,Planning Management,Stationery,51.42,SUPPLIES TEAM LTD,467
Revenue,Place,Planning services,Management & Support Services,5105647158,22.09.2017,Planning Management,Stationery,18.78,SUPPLIES TEAM LTD,468
Revenue,Place,Planning services,Management & Support Services,5105647158,22.09.2017,Planning Management,Stationery,26.36,SUPPLIES TEAM LTD,469
Revenue,Place,Planning services,Management & Support Services,5105647256,13.09.2017,Planning Management,Stationery,0.54,SUPPLIES TEAM LTD,470
Revenue,Place,Planning services,Management & Support Services,5105646951,08.09.2017,Planning Management,Stationery,126.62,SUPPLIES TEAM LTD,471
Revenue,Place,Environmental & Regulatory Services,"Cemetery, Cremation & Mortuary Services",5105646938,13.09.2017,Crematorium,Stationery,2.73,SUPPLIES TEAM LTD,472
Revenue,Place,Environmental & Regulatory Services,"Cemetery, Cremation & Mortuary Services",5105646938,13.09.2017,Crematorium,Stationery,1.98,SUPPLIES TEAM LTD,473
Revenue,Place,Environmental & Regulatory Services,"Cemetery, Cremation & Mortuary Services",5105646938,13.09.2017,Crematorium,Stationery,1.98,SUPPLIES TEAM LTD,474
Revenue,Place,Environmental & Regulatory Services,"Cemetery, Cremation & Mortuary Services",5105646938,13.09.2017,Crematorium,Stationery,6.26,SUPPLIES TEAM LTD,475
Revenue,Place,Environmental & Regulatory Services,"Cemetery, Cremation & Mortuary Services",5105646938,13.09.2017,Crematorium,Stationery,17.14,SUPPLIES TEAM LTD,476
Revenue,Place,Environmental & Regulatory Services,"Cemetery, Cremation & Mortuary Services",5105646938,13.09.2017,Crematorium,Stationery,3.60,SUPPLIES TEAM LTD,477
Revenue,Adult Services,Adult Social Care,Commissioning & Service Delivery,5105646941,08.09.2017,Adult Social Care Enterprise House,Stationery,13.98,SUPPLIES TEAM LTD,478
Revenue,Adult Services,Adult Social Care,Commissioning & Service Delivery,5105646941,08.09.2017,Adult Social Care Enterprise House,Stationery,34.28,SUPPLIES TEAM LTD,479
Revenue,Adult Services,Adult Social Care,Commissioning & Service Delivery,5105646941,08.09.2017,Adult Social Care Enterprise House,Stationery,4.30,SUPPLIES TEAM LTD,480
Revenue,Adult Services,Adult Social Care,Commissioning & Service Delivery,5105646941,08.09.2017,Adult Social Care Enterprise House,Stationery,17.90,SUPPLIES TEAM LTD,481
Revenue,Adult Services,Adult Social Care,Commissioning & Service Delivery,5105646996,08.09.2017,Learning Disability Homes Management & Admin,Stationery,1.07,SUPPLIES TEAM LTD,482
Revenue,Adult Services,Adult Social Care,Commissioning & Service Delivery,5105646996,08.09.2017,Learning Disability Homes Management & Admin,Stationery,1.07,SUPPLIES TEAM LTD,483
Revenue,Adult Services,Adult Social Care,Commissioning & Service Delivery,5105646996,08.09.2017,Learning Disability Homes Management & Admin,Stationery,1.07,SUPPLIES TEAM LTD,484
Revenue,Adult Services,Adult Social Care,Commissioning & Service Delivery,5105646996,08.09.2017,Learning Disability Homes Management & Admin,Stationery,1.48,SUPPLIES TEAM LTD,485
Revenue,Adult Services,Adult Social Care,Commissioning & Service Delivery,5105646996,08.09.2017,Learning Disability Homes Management & Admin,Stationery,2.00,SUPPLIES TEAM LTD,486
Revenue,Adult Services,Adult Social Care,Commissioning & Service Delivery,5105646996,08.09.2017,Learning Disability Homes Management & Admin,Stationery,34.28,SUPPLIES TEAM LTD,487
Revenue,Adult Services,Adult Social Care,Commissioning & Service Delivery,5105646996,08.09.2017,Learning Disability Homes Management & Admin,Stationery,29.72,SUPPLIES TEAM LTD,488
Revenue,Adult Services,Adult Social Care,Commissioning & Service Delivery,5105646996,08.09.2017,Learning Disability Homes Management & Admin,Stationery,1.59,SUPPLIES TEAM LTD,489
Revenue,Adult Services,Adult Social Care,Commissioning & Service Delivery,5105646996,08.09.2017,Learning Disability Homes Management & Admin,Stationery,1.17,SUPPLIES TEAM LTD,490
Revenue,Adult Services,Adult Social Care,Commissioning & Service Delivery,5105646996,08.09.2017,Learning Disability Homes Management & Admin,Stationery,0.70,SUPPLIES TEAM LTD,491
Revenue,Adult Services,Adult Social Care,Commissioning & Service Delivery,5105646996,08.09.2017,Learning Disability Homes Management & Admin,Stationery,0.17,SUPPLIES TEAM LTD,492
Revenue,Adult Services,Adult Social Care,Commissioning & Service Delivery,5105646996,08.09.2017,Learning Disability Homes Management & Admin,Stationery,0.50,SUPPLIES TEAM LTD,493
Revenue,Adult Services,Adult Social Care,Commissioning & Service Delivery,5105647257,13.09.2017,Learning Disability Homes Management & Admin,Stationery,4.96,SUPPLIES TEAM LTD,494
Revenue,Adult Services,Adult Social Care,Commissioning & Service Delivery,5105646996,08.09.2017,Learning Disability Homes Management & Admin,Stationery,2.28,SUPPLIES TEAM LTD,495
Revenue,Adult Services,Adult Social Care,Commissioning & Service Delivery,5105646996,08.09.2017,Learning Disability Homes Management & Admin,Stationery,6.50,SUPPLIES TEAM LTD,496
Revenue,Adult Services,Adult Social Care,Commissioning & Service Delivery,5105647710,22.09.2017,Learning Disability Homes Management & Admin,Stationery,1.29,SUPPLIES TEAM LTD,497
Revenue,Adult Services,Adult Social Care,Commissioning & Service Delivery,5105647008,08.09.2017,Learning Disability Homes Management & Admin,Stationery,1.17,SUPPLIES TEAM LTD,498
Revenue,Adult Services,Adult Social Care,Commissioning & Service Delivery,5105646949,08.09.2017,Learning Disability Homes Management & Admin,Stationery,2.04,SUPPLIES TEAM LTD,499
Revenue,Adult Services,Adult Social Care,Commissioning & Service Delivery,5105646996,08.09.2017,Learning Disability Homes Management & Admin,Stationery,1.22,SUPPLIES TEAM LTD,500
Revenue,Adult Services,Adult Social Care,Commissioning & Service Delivery,5105646996,08.09.2017,Learning Disability Homes Management & Admin,Stationery,1.48,SUPPLIES TEAM LTD,501
Revenue,Adult Services,Adult Social Care,Commissioning & Service Delivery,5105646996,08.09.2017,Learning Disability Homes Management & Admin,Stationery,1.39,SUPPLIES TEAM LTD,502
Revenue,Adult Services,Adult Social Care,Commissioning & Service Delivery,5105646996,08.09.2017,Learning Disability Homes Management & Admin,Stationery,0.16,SUPPLIES TEAM LTD,503
Revenue,Adult Services,Adult Social Care,Commissioning & Service Delivery,5105646996,08.09.2017,Learning Disability Homes Management & Admin,Stationery,0.54,SUPPLIES TEAM LTD,504
Revenue,Adult Services,Adult Social Care,Commissioning & Service Delivery,5105646996,08.09.2017,Learning Disability Homes Management & Admin,Stationery,1.90,SUPPLIES TEAM LTD,505
Revenue,Adult Services,Adult Social Care,Commissioning & Service Delivery,5105646996,08.09.2017,Learning Disability Homes Management & Admin,Stationery,3.00,SUPPLIES TEAM LTD,506
Revenue,Adult Services,Adult Social Care,Commissioning & Service Delivery,5105646996,08.09.2017,Learning Disability Homes Management & Admin,Stationery,24.40,SUPPLIES TEAM LTD,507
Revenue,Adult Services,Adult Social Care,Commissioning & Service Delivery,5105646996,08.09.2017,Learning Disability Homes Management & Admin,Stationery,6.64,SUPPLIES TEAM LTD,508
Revenue,Childrens Services,Children's & Education Services,Special Schools & Alternative Provision,5105644565,22.09.2017,Island Learning Centre,Stationery,4.00,SUPPLIES TEAM LTD,509
Revenue,Childrens Services,Children's & Education Services,Special Schools & Alternative Provision,5105644565,22.09.2017,Island Learning Centre,Stationery,5.34,SUPPLIES TEAM LTD,510
Revenue,Resources,Central Services,Support Services,5105645964,01.09.2017,Business Support Shared Service Centre Team,Stationery,0.51,SUPPLIES TEAM LTD,511
Revenue,Childrens Services,Children's & Education Services,Other Education and Community Budget,5105646081,01.09.2017,Learning & Development Running Costs,Stationery,8.76,SUPPLIES TEAM LTD,512
Revenue,Childrens Services,Children's & Education Services,Other Education and Community Budget,5105646081,01.09.2017,Learning & Development Running Costs,Stationery,1.95,SUPPLIES TEAM LTD,513
Revenue,Childrens Services,Children's & Education Services,Other Education and Community Budget,5105646081,01.09.2017,Learning & Development Running Costs,Stationery,0.78,SUPPLIES TEAM LTD,514
Revenue,Childrens Services,Children's & Education Services,Other Education and Community Budget,5105646081,01.09.2017,Learning & Development Running Costs,Stationery,3.40,SUPPLIES TEAM LTD,515
Revenue,Childrens Services,Children's & Education Services,Other Education and Community Budget,5105646081,01.09.2017,Learning & Development Running Costs,Stationery,2.40,SUPPLIES TEAM LTD,516
Revenue,Childrens Services,Children's & Education Services,Other Education and Community Budget,5105646081,01.09.2017,Learning & Development Running Costs,Stationery,1.60,SUPPLIES TEAM LTD,517
Revenue,Childrens Services,Children's & Education Services,Other Education and Community Budget,5105646081,01.09.2017,Learning & Development Running Costs,Stationery,11.04,SUPPLIES TEAM LTD,518
Revenue,Childrens Services,Children's & Education Services,Other Education and Community Budget,5105646081,01.09.2017,Learning & Development Running Costs,Stationery,25.71,SUPPLIES TEAM LTD,519
Revenue,Childrens Services,Children's & Education Services,Other Education and Community Budget,5105646081,01.09.2017,Learning & Development Running Costs,Stationery,16.24,SUPPLIES TEAM LTD,520
Revenue,Childrens Services,Children's & Education Services,Other Education and Community Budget,5105646081,01.09.2017,Learning & Development Running Costs,Stationery,8.44,SUPPLIES TEAM LTD,521
Revenue,Childrens Services,Children's & Education Services,Other Education and Community Budget,5105646081,01.09.2017,Learning & Development Running Costs,Stationery,2.38,SUPPLIES TEAM LTD,522
Revenue,Childrens Services,Children's & Education Services,Other Education and Community Budget,5105646081,01.09.2017,Learning & Development Running Costs,Stationery,14.44,SUPPLIES TEAM LTD,523
Revenue,Adult Services,Adult Social Care,Central Codes (to be reallocated),5105646074,15.09.2017,Gouldings Resource Centre,Stationery,1.70,SUPPLIES TEAM LTD,524
Revenue,Adult Services,Adult Social Care,Central Codes (to be reallocated),5105646074,15.09.2017,Gouldings Resource Centre,Stationery,1.23,SUPPLIES TEAM LTD,525
Revenue,Adult Services,Adult Social Care,Central Codes (to be reallocated),5105646074,15.09.2017,Gouldings Resource Centre,Stationery,0.76,SUPPLIES TEAM LTD,526
Revenue,Adult Services,Adult Social Care,Central Codes (to be reallocated),5105646074,15.09.2017,Gouldings Resource Centre,Stationery,0.53,SUPPLIES TEAM LTD,527
Revenue,Adult Services,Adult Social Care,Central Codes (to be reallocated),5105646074,15.09.2017,Gouldings Resource Centre,Stationery,9.98,SUPPLIES TEAM LTD,528
Revenue,Adult Services,Adult Social Care,Central Codes (to be reallocated),5105646074,15.09.2017,Gouldings Resource Centre,Stationery,0.78,SUPPLIES TEAM LTD,529
Revenue,Adult Services,Adult Social Care,Central Codes (to be reallocated),5105646074,15.09.2017,Gouldings Resource Centre,Stationery,0.70,SUPPLIES TEAM LTD,530
Revenue,Adult Services,Adult Social Care,Central Codes (to be reallocated),5105646074,15.09.2017,Gouldings Resource Centre,Stationery,3.01,SUPPLIES TEAM LTD,531
Revenue,Childrens Services,Children's & Education Services,Other Education and Community Budget,5105646108,06.09.2017,Learning & Development Running Costs,Stationery,17.14,SUPPLIES TEAM LTD,532
Revenue,Childrens Services,Children's & Education Services,Other Education and Community Budget,5105646108,06.09.2017,Learning & Development Running Costs,Stationery,3.42,SUPPLIES TEAM LTD,533
Revenue,Childrens Services,Children's & Education Services,Other Education and Community Budget,5105646108,06.09.2017,Learning & Development Running Costs,Stationery,8.12,SUPPLIES TEAM LTD,534
Revenue,Public Health,Public Health,Miscellaneous Public Health Services,5105646073,08.09.2017,Public Health Core Non Prescribed,Stationery,42.85,SUPPLIES TEAM LTD,535
Revenue,Childrens Services,Children's & Education Services,Safeguarding Children/Young Peoples Svs,5105646603,06.09.2017,Children's office costs,Stationery,9.90,SUPPLIES TEAM LTD,536
Revenue,Childrens Services,Children's & Education Services,Safeguarding Children/Young Peoples Svs,5105646603,06.09.2017,Children's office costs,Stationery,2.38,SUPPLIES TEAM LTD,537
Revenue,Childrens Services,Children's & Education Services,Safeguarding Children/Young Peoples Svs,5105646603,06.09.2017,Children's office costs,Stationery,6.26,SUPPLIES TEAM LTD,538
Revenue,Childrens Services,Children's & Education Services,Special Schools & Alternative Provision,5105647991,27.09.2017,Island Learning Centre,Stationery,42.85,SUPPLIES TEAM LTD,539
Revenue,Childrens Services,Children's & Education Services,Special Schools & Alternative Provision,5105647991,27.09.2017,Island Learning Centre,Stationery,1.98,SUPPLIES TEAM LTD,540
Revenue,Childrens Services,Children's & Education Services,Special Schools & Alternative Provision,5105647991,27.09.2017,Island Learning Centre,Stationery,5.94,SUPPLIES TEAM LTD,541
Revenue,Childrens Services,Children's & Education Services,Special Schools & Alternative Provision,5105647991,27.09.2017,Island Learning Centre,Stationery,0.78,SUPPLIES TEAM LTD,542
Revenue,Childrens Services,Children's & Education Services,Safeguarding Children/Young Peoples Svs,5105648462,29.09.2017,Children's office costs,Stationery,3.80,SUPPLIES TEAM LTD,543
Revenue,Childrens Services,Children's & Education Services,Safeguarding Children/Young Peoples Svs,5105648462,29.09.2017,Children's office costs,Stationery,2.46,SUPPLIES TEAM LTD,544
Revenue,Childrens Services,Children's & Education Services,Safeguarding Children/Young Peoples Svs,5105648462,29.09.2017,Children's office costs,Stationery,1.50,SUPPLIES TEAM LTD,545
Revenue,Childrens Services,Children's & Education Services,Safeguarding Children/Young Peoples Svs,5105648462,29.09.2017,Children's office costs,Stationery,1.06,SUPPLIES TEAM LTD,546
Revenue,Childrens Services,Children's & Education Services,Safeguarding Children/Young Peoples Svs,5105648462,29.09.2017,Children's office costs,Stationery,17.14,SUPPLIES TEAM LTD,547
Revenue,Childrens Services,Children's & Education Services,Special Schools & Alternative Provision,5105648463,29.09.2017,Island Learning Centre,Stationery,2.70,SUPPLIES TEAM LTD,548
Revenue,Childrens Services,Children's & Education Services,Special Schools & Alternative Provision,5105648463,29.09.2017,Island Learning Centre,Stationery,4.00,SUPPLIES TEAM LTD,549
Revenue,Childrens Services,Children's & Education Services,Special Schools & Alternative Provision,5105648463,29.09.2017,Island Learning Centre,Stationery,17.14,SUPPLIES TEAM LTD,550
Revenue,Place,Highways and Transport Services,Parking Services,5105647154,13.09.2017,On-Street Parking Operations,Stationery,4.80,SUPPLIES TEAM LTD,551
Revenue,Adult Services,Adult Social Care,Central Codes (to be reallocated),5105647151,15.09.2017,Adelaide Resource Centre,Stationery,1.59,SUPPLIES TEAM LTD,552
Revenue,Adult Services,Adult Social Care,Central Codes (to be reallocated),5105647151,15.09.2017,Adelaide Resource Centre,Stationery,1.38,SUPPLIES TEAM LTD,553
Revenue,Adult Services,Adult Social Care,Central Codes (to be reallocated),5105647151,15.09.2017,Adelaide Resource Centre,Stationery,1.07,SUPPLIES TEAM LTD,554
Revenue,Adult Services,Adult Social Care,Central Codes (to be reallocated),5105647151,15.09.2017,Adelaide Resource Centre,Stationery,1.07,SUPPLIES TEAM LTD,555
Revenue,Adult Services,Adult Social Care,Central Codes (to be reallocated),5105647151,15.09.2017,Adelaide Resource Centre,Stationery,4.32,SUPPLIES TEAM LTD,556
Revenue,Adult Services,Adult Social Care,Central Codes (to be reallocated),5105647151,15.09.2017,Adelaide Resource Centre,Stationery,2.46,SUPPLIES TEAM LTD,557
Revenue,Adult Services,Adult Social Care,Central Codes (to be reallocated),5105647151,15.09.2017,Adelaide Resource Centre,Stationery,2.46,SUPPLIES TEAM LTD,558
Revenue,Adult Services,Adult Social Care,Central Codes (to be reallocated),5105647151,15.09.2017,Adelaide Resource Centre,Stationery,3.22,SUPPLIES TEAM LTD,559
Revenue,Adult Services,Adult Social Care,Central Codes (to be reallocated),5105647151,15.09.2017,Adelaide Resource Centre,Stationery,1.23,SUPPLIES TEAM LTD,560
Revenue,Adult Services,Adult Social Care,Central Codes (to be reallocated),5105647151,15.09.2017,Adelaide Resource Centre,Stationery,1.50,SUPPLIES TEAM LTD,561
Revenue,Adult Services,Adult Social Care,Central Codes (to be reallocated),5105647151,15.09.2017,Adelaide Resource Centre,Stationery,1.90,SUPPLIES TEAM LTD,562
Revenue,Adult Services,Adult Social Care,Central Codes (to be reallocated),5105647151,15.09.2017,Adelaide Resource Centre,Stationery,4.60,SUPPLIES TEAM LTD,563
Revenue,Adult Services,Adult Social Care,Central Codes (to be reallocated),5105647151,15.09.2017,Adelaide Resource Centre,Stationery,2.79,SUPPLIES TEAM LTD,564
Revenue,Adult Services,Adult Social Care,Central Codes (to be reallocated),5105647151,15.09.2017,Adelaide Resource Centre,Stationery,42.85,SUPPLIES TEAM LTD,565
Revenue,Adult Services,Adult Social Care,Central Codes (to be reallocated),5105647151,15.09.2017,Adelaide Resource Centre,Stationery,2.47,SUPPLIES TEAM LTD,566
Revenue,Adult Services,Adult Social Care,Central Codes (to be reallocated),5105647151,15.09.2017,Adelaide Resource Centre,Stationery,2.58,SUPPLIES TEAM LTD,567
Revenue,Adult Services,Adult Social Care,Central Codes (to be reallocated),5105647151,15.09.2017,Adelaide Resource Centre,Stationery,0.66,SUPPLIES TEAM LTD,568
Revenue,Adult Services,Adult Social Care,Central Codes (to be reallocated),5105647151,15.09.2017,Adelaide Resource Centre,Stationery,2.52,SUPPLIES TEAM LTD,569
Revenue,Adult Services,Adult Social Care,Central Codes (to be reallocated),5105647151,15.09.2017,Adelaide Resource Centre,Stationery,2.52,SUPPLIES TEAM LTD,570
Revenue,Adult Services,Adult Social Care,Central Codes (to be reallocated),5105647151,15.09.2017,Adelaide Resource Centre,Stationery,0.11,SUPPLIES TEAM LTD,571
Revenue,Adult Services,Adult Social Care,Central Codes (to be reallocated),5105647151,15.09.2017,Adelaide Resource Centre,Stationery,0.67,SUPPLIES TEAM LTD,572
Revenue,Adult Services,Adult Social Care,Central Codes (to be reallocated),5105647151,15.09.2017,Adelaide Resource Centre,Stationery,1.17,SUPPLIES TEAM LTD,573
Revenue,Place,Fire & Rescue Services,Fire fighting and Rescue Operations,5105646958,08.09.2017,Business Support  - Fire,Stationery,14.13,SUPPLIES TEAM LTD,574
Revenue,Place,Fire & Rescue Services,Fire fighting and Rescue Operations,5105646958,08.09.2017,Business Support  - Fire,Stationery,50.52,SUPPLIES TEAM LTD,575
Revenue,Place,Fire & Rescue Services,Fire fighting and Rescue Operations,5105646958,08.09.2017,Business Support  - Fire,Stationery,36.75,SUPPLIES TEAM LTD,576
Revenue,Childrens Services,Children's & Education Services,Other Education and Community Budget,5105646950,13.09.2017,Learning & Development Running Costs,Stationery,25.04,SUPPLIES TEAM LTD,577
Revenue,Public Health,Public Health,Miscellaneous Public Health Services,5105647162,13.09.2017,Public Health Core Non Prescribed,Stationery,15.98,SUPPLIES TEAM LTD,578
Revenue,Adult Services,Adult Social Care,Central Codes (to be reallocated),5105646946,08.09.2017,Gouldings Resource Centre,Stationery,2.34,SUPPLIES TEAM LTD,579
Revenue,Childrens Services,Children's & Education Services,Family Support Services,5105646966,20.09.2017,Strengthening Families,Payment to Private Contractors,"32,000.00",BARNARDO'S,580
Revenue,Childrens Services,Children's & Education Services,Support Service & Management Costs,5105645137,06.09.2017,Early Help Contracts,Payment to Private Contractors,"289,036.55",BARNARDO'S,581
Revenue,Childrens Services,Children's & Education Services,Support Service & Management Costs,5105647561,20.09.2017,Early Help Contracts,Payment to Private Contractors,"289,036.55",BARNARDO'S,582
Revenue,Resources,Central Services,Support Services,5105647835,22.09.2017,Staff Benefits,Payment to Private Contractors,50.00,BARTON PRIMARY & EARLY YEARS,585
Revenue,Place,Cultural and Related Services,Recreation and Sport,5105645704,01.09.2017,Ryde Harbour,Consumable Cleaning Materials,64.72,LAKE CLEANING & CATERING SUPPLIES,586
Revenue,Childrens Services,Children's & Education Services,Children Looked After,5105647091,15.09.2017,Beaulieu House,General Materials,77.58,LAKE CLEANING & CATERING SUPPLIES,587
Revenue,Childrens Services,Children's & Education Services,Children Looked After,5105647686,20.09.2017,Beaulieu House,General Materials,102.74,LAKE CLEANING & CATERING SUPPLIES,588
Revenue,Childrens Services,Children's & Education Services,Children Looked After,5105647687,20.09.2017,Beaulieu House,General Materials,94.29,LAKE CLEANING & CATERING SUPPLIES,589
Revenue,Place,Cultural and Related Services,Recreation and Sport,5105647137,15.09.2017,Medina Leisure Centre,Consumable Cleaning Materials,117.50,LAKE CLEANING & CATERING SUPPLIES,590
Revenue,Place,Cultural and Related Services,Recreation and Sport,5105647137,15.09.2017,Medina Leisure Centre,Consumable Cleaning Materials,21.92,LAKE CLEANING & CATERING SUPPLIES,591
Revenue,Place,Cultural and Related Services,Recreation and Sport,5105647160,20.09.2017,Medina Leisure Centre,Consumable Cleaning Materials,10.92,LAKE CLEANING & CATERING SUPPLIES,592
Revenue,Place,Cultural and Related Services,Recreation and Sport,5105647160,20.09.2017,Medina Leisure Centre,Consumable Cleaning Materials,18.12,LAKE CLEANING & CATERING SUPPLIES,593
Revenue,Place,Cultural and Related Services,Recreation and Sport,5105647160,20.09.2017,Medina Leisure Centre,Consumable Cleaning Materials,18.12,LAKE CLEANING & CATERING SUPPLIES,594
Revenue,Place,Cultural and Related Services,Recreation and Sport,5105647160,20.09.2017,Medina Leisure Centre,Consumable Cleaning Materials,18.12,LAKE CLEANING & CATERING SUPPLIES,595
Revenue,Place,Cultural and Related Services,Recreation and Sport,5105647160,20.09.2017,Medina Leisure Centre,Consumable Cleaning Materials,13.44,LAKE CLEANING & CATERING SUPPLIES,596
Revenue,Place,Cultural and Related Services,Recreation and Sport,5105647160,20.09.2017,Medina Leisure Centre,Consumable Cleaning Materials,8.73,LAKE CLEANING & CATERING SUPPLIES,597
Revenue,Place,Cultural and Related Services,Recreation and Sport,5105647160,20.09.2017,Medina Leisure Centre,Consumable Cleaning Materials,94.00,LAKE CLEANING & CATERING SUPPLIES,598
Revenue,Place,Cultural and Related Services,Recreation and Sport,5105647160,20.09.2017,Medina Leisure Centre,Consumable Cleaning Materials,17.73,LAKE CLEANING & CATERING SUPPLIES,599
Revenue,Place,Cultural and Related Services,Recreation and Sport,5105647160,20.09.2017,Medina Leisure Centre,Consumable Cleaning Materials,10.42,LAKE CLEANING & CATERING SUPPLIES,600
Revenue,Place,Cultural and Related Services,Recreation and Sport,5105647160,20.09.2017,Medina Leisure Centre,Consumable Cleaning Materials,21.84,LAKE CLEANING & CATERING SUPPLIES,601
Revenue,Adult Services,Adult Social Care,Learning Disab Supp (to be reallocated),5105647508,15.09.2017,Plean Dene,Operational Equipment,24.56,LAKE CLEANING & CATERING SUPPLIES,602
Revenue,Place,Cultural and Related Services,Recreation and Sport,5105648100,27.09.2017,The Heights,Consumable Cleaning Materials,36.00,LAKE CLEANING & CATERING SUPPLIES,603
Revenue,Place,Cultural and Related Services,Recreation and Sport,5105647638,20.09.2017,The Heights,Consumable Cleaning Materials,123.36,LAKE CLEANING & CATERING SUPPLIES,604
Revenue,Place,Cultural and Related Services,Recreation and Sport,5105648592,29.09.2017,The Heights,Consumable Cleaning Materials,7.79,LAKE CLEANING & CATERING SUPPLIES,605
Revenue,Place,Cultural and Related Services,Recreation and Sport,5105648438,29.09.2017,The Heights,Consumable Cleaning Materials,123.31,LAKE CLEANING & CATERING SUPPLIES,606
Revenue,Place,Fire & Rescue Services,Fire fighting and Rescue Operations,5105647108,15.09.2017,Fire Technical Support,Stock Purchases,75.00,LAKE CLEANING & CATERING SUPPLIES,607
Revenue,Place,Fire & Rescue Services,Fire fighting and Rescue Operations,5105647108,15.09.2017,Fire Technical Support,Stock Purchases,62.04,LAKE CLEANING & CATERING SUPPLIES,608
Revenue,Place,Fire & Rescue Services,Fire fighting and Rescue Operations,5105647108,15.09.2017,Fire Technical Support,Stock Purchases,13.44,LAKE CLEANING & CATERING SUPPLIES,609
Revenue,Place,Fire & Rescue Services,Fire fighting and Rescue Operations,5105647108,15.09.2017,Fire Technical Support,Stock Purchases,21.00,LAKE CLEANING & CATERING SUPPLIES,610
Revenue,Place,Fire & Rescue Services,Fire fighting and Rescue Operations,5105647108,15.09.2017,Fire Technical Support,Stock Purchases,45.00,LAKE CLEANING & CATERING SUPPLIES,611
Revenue,Place,Fire & Rescue Services,Fire fighting and Rescue Operations,5105647108,15.09.2017,Fire Technical Support,Stock Purchases,80.16,LAKE CLEANING & CATERING SUPPLIES,612
Revenue,Place,Fire & Rescue Services,Fire fighting and Rescue Operations,5105647108,15.09.2017,Fire Technical Support,Stock Purchases,47.70,LAKE CLEANING & CATERING SUPPLIES,613
Revenue,Adult Services,Adult Social Care,Support - Memory /Cognition-older people (65+),5105646260,06.09.2017,Memory & Cognition Nursing 65+,Charges from Independent Providers,"2,269.40",BEAUMONT LODGE LTD,614
Revenue,Adult Services,Adult Social Care,Learning Disability Suppt-adults (18-64),5105646473,06.09.2017,Learning Disability Residential 18-64,Charges from Independent Providers,"16,584.68",BEECHWOOD COLLEGE,615
Revenue,Adult Services,Adult Social Care,Learning Disability Suppt-adults (18-64),5105646741,06.09.2017,Learning Disability Residential 18-64,Charges from Independent Providers,"-16,584.68",BEECHWOOD COLLEGE,616
Revenue,Resources,Central Services,Support Services,5105647784,22.09.2017,Staff Benefits,Payment to Private Contractors,243.00,BERRY HILL CHILDCARE LIMITED,620
Revenue,Place,Housing Services,Homelessness,5105648626,29.09.2017,B&B Properties,Accommodation Costs - Bed & Breakfast,"6,286.00",BERTRAM LODGE,621
Revenue,Adult Services,Adult Social Care,Learning Disab Supp (to be reallocated),5105645969,20.09.2017,Seagulls,Operational Equipment,160.03,BETA PAK LTD,622
Revenue,Adult Services,Adult Social Care,Learning Disab Supp (to be reallocated),5105646746,06.09.2017,Saxonbury,Operational Equipment,281.07,BETA PAK LTD,623
Revenue,Adult Services,Adult Social Care,Learning Disab Supp (to be reallocated),5105646972,08.09.2017,Saxonbury,Operational Equipment,7.74,BETA PAK LTD,624
Revenue,Adult Services,Adult Social Care,Learning Disab Supp (to be reallocated),5105647475,22.09.2017,Saxonbury,Operational Equipment,10.88,BETA PAK LTD,625
Revenue,Adult Services,Adult Social Care,Learning Disab Supp (to be reallocated),5105647601,20.09.2017,Saxonbury,Operational Equipment,166.39,BETA PAK LTD,626
Revenue,Adult Services,Adult Social Care,Learning Disab Supp (to be reallocated),5105648221,27.09.2017,Saxonbury,Operational Equipment,236.23,BETA PAK LTD,627
Revenue,Adult Services,Adult Social Care,Learning Disab Supp (to be reallocated),5105647551,15.09.2017,Seagulls,Operational Equipment,57.81,BETA PAK LTD,628
Revenue,Adult Services,Adult Social Care,Learning Disab Supp (to be reallocated),5105645493,06.09.2017,Westminster House,Operational Equipment,28.08,BETA PAK LTD,629
Revenue,Adult Services,Adult Social Care,Learning Disab Supp (to be reallocated),5105646969,08.09.2017,40 Venner Avenue,Operational Equipment,281.17,BETA PAK LTD,630
Revenue,Adult Services,Adult Social Care,Learning Disab Supp (to be reallocated),5105646975,08.09.2017,40 Venner Avenue,Operational Equipment,9.98,BETA PAK LTD,631
Revenue,Adult Services,Adult Social Care,Learning Disab Supp (to be reallocated),5105647293,15.09.2017,40 Venner Avenue,Operational Equipment,10.99,BETA PAK LTD,632
Revenue,Adult Services,Adult Social Care,Learning Disab Supp (to be reallocated),5105648168,27.09.2017,40 Venner Avenue,Operational Equipment,8.18,BETA PAK LTD,633
Revenue,Adult Services,Adult Social Care,Learning Disab Supp (to be reallocated),5105647201,13.09.2017,Westminster House,Operational Equipment,64.53,BETA PAK LTD,634
Revenue,Adult Services,Adult Social Care,Learning Disab Supp (to be reallocated),5105646974,08.09.2017,Westminster House,Operational Equipment,37.25,BETA PAK LTD,635
Revenue,Adult Services,Adult Social Care,Learning Disab Supp (to be reallocated),5105645975,08.09.2017,Plean Dene,Operational Equipment,113.51,BETA PAK LTD,636
Revenue,Adult Services,Adult Social Care,Learning Disab Supp (to be reallocated),5105644974,06.09.2017,Plean Dene,Operational Equipment,7.69,BETA PAK LTD,637
Revenue,Adult Services,Adult Social Care,Learning Disab Supp (to be reallocated),5105645636,15.09.2017,Plean Dene,Operational Equipment,92.46,BETA PAK LTD,638
Revenue,Adult Services,Adult Social Care,Learning Disab Supp (to be reallocated),5105648222,27.09.2017,Plean Dene,Operational Equipment,21.66,BETA PAK LTD,639
Revenue,Adult Services,Adult Social Care,Learning Disab Supp (to be reallocated),5105647147,22.09.2017,Plean Dene,Operational Equipment,67.35,BETA PAK LTD,640
Revenue,Adult Services,Adult Social Care,Learning Disab Supp (to be reallocated),5105648453,29.09.2017,Plean Dene,Operational Equipment,70.00,BETA PAK LTD,641
Revenue,Adult Services,Adult Social Care,Learning Disab Supp (to be reallocated),5105646968,08.09.2017,31 Carter Avenue,Operational Equipment,166.94,BETA PAK LTD,642
Revenue,Adult Services,Adult Social Care,Learning Disab Supp (to be reallocated),5105647474,15.09.2017,The Laurels,Operational Equipment,487.65,BETA PAK LTD,643
Revenue,Adult Services,Adult Social Care,Learning Disab Supp (to be reallocated),5105648152,29.09.2017,Overbrook,Operational Equipment,7.89,BETA PAK LTD,644
Revenue,Childrens Services,Children's & Education Services,Other Education and Community Budget,5105648080,22.09.2017,Learning & Development Running Costs,Catering Purchases,63.46,BETA PAK LTD,645
Revenue,Childrens Services,Children's & Education Services,Other Education and Community Budget,5105647632,20.09.2017,Learning & Development Running Costs,Catering Purchases,27.37,BETA PAK LTD,646
Revenue,Adult Services,Adult Social Care,Central Codes (to be reallocated),5105645719,01.09.2017,Adelaide Resource Centre,Consumable Cleaning Materials,315.98,BETA PAK LTD,647
Revenue,Adult Services,Adult Social Care,Central Codes (to be reallocated),5105648513,29.09.2017,Adelaide Resource Centre,Consumable Cleaning Materials,485.49,BETA PAK LTD,648
Revenue,Childrens Services,Children's & Education Services,Other Education and Community Budget,5105647082,13.09.2017,Specialist Cross-Council Training,Training,"6,375.00",BEVAN YOUNG ASSOCIATES,649
Revenue,Childrens Services,Children's & Education Services,Other Education and Community Budget,5105647082,13.09.2017,Specialist Cross-Council Training,Training,"1,360.00",BEVAN YOUNG ASSOCIATES,650
Revenue,Place,Cultural and Related Services,Recreation and Sport,5105646660,06.09.2017,The Heights,Stock Purchases,223.25,3663 (BFS GROUP LTD),651
Revenue,Place,Cultural and Related Services,Recreation and Sport,5105646659,06.09.2017,The Heights,Stock Purchases,69.16,3663 (BFS GROUP LTD),652
Revenue,Place,Cultural and Related Services,Recreation and Sport,5105646659,06.09.2017,The Heights,Stock Purchases,112.46,3663 (BFS GROUP LTD),653
Revenue,Adult Services,Adult Social Care,Central Codes (to be reallocated),5105646658,06.09.2017,Gouldings Resource Centre,Catering Purchases,304.90,3663 (BFS GROUP LTD),654
Revenue,Adult Services,Adult Social Care,Central Codes (to be reallocated),5105646658,06.09.2017,Gouldings Resource Centre,Catering Purchases,26.63,3663 (BFS GROUP LTD),655
Revenue,Adult Services,Adult Social Care,Central Codes (to be reallocated),5105648079,22.09.2017,Gouldings Resource Centre,Catering Purchases,44.60,3663 (BFS GROUP LTD),656
Revenue,Adult Services,Adult Social Care,Central Codes (to be reallocated),5105648175,27.09.2017,Gouldings Resource Centre,Catering Purchases,258.57,3663 (BFS GROUP LTD),657
Revenue,Adult Services,Adult Social Care,Central Codes (to be reallocated),5105648175,27.09.2017,Gouldings Resource Centre,Catering Purchases,14.86,3663 (BFS GROUP LTD),658
Revenue,Adult Services,Adult Social Care,Central Codes (to be reallocated),5105647594,20.09.2017,Adelaide Resource Centre,Catering Purchases,95.63,3663 (BFS GROUP LTD),659
Revenue,Adult Services,Adult Social Care,Central Codes (to be reallocated),5105647506,15.09.2017,Adelaide Resource Centre,Catering Purchases,142.20,3663 (BFS GROUP LTD),660
Revenue,Adult Services,Adult Social Care,Central Codes (to be reallocated),5105647102,15.09.2017,Adelaide Resource Centre,Catering Purchases,-66.81,3663 (BFS GROUP LTD),661
Revenue,Adult Services,Adult Social Care,Central Codes (to be reallocated),5105647282,15.09.2017,Adelaide Resource Centre,Catering Purchases,350.32,3663 (BFS GROUP LTD),662
Revenue,Adult Services,Adult Social Care,Central Codes (to be reallocated),5105647282,15.09.2017,Adelaide Resource Centre,Catering Purchases,11.31,3663 (BFS GROUP LTD),663
Revenue,Adult Services,Adult Social Care,Central Codes (to be reallocated),5105647506,15.09.2017,Adelaide Resource Centre,Catering Purchases,23.36,3663 (BFS GROUP LTD),664
Revenue,Adult Services,Adult Social Care,Central Codes (to be reallocated),5105647595,20.09.2017,Adelaide Resource Centre,Catering Purchases,132.34,3663 (BFS GROUP LTD),665
Revenue,Adult Services,Adult Social Care,Central Codes (to be reallocated),5105647596,20.09.2017,Adelaide Resource Centre,Catering Purchases,214.82,3663 (BFS GROUP LTD),666
Revenue,Adult Services,Adult Social Care,Central Codes (to be reallocated),5105647596,20.09.2017,Adelaide Resource Centre,Catering Purchases,13.84,3663 (BFS GROUP LTD),667
Revenue,Adult Services,Adult Social Care,Central Codes (to be reallocated),5105647595,20.09.2017,Adelaide Resource Centre,Catering Purchases,18.63,3663 (BFS GROUP LTD),668
Revenue,Place,Cultural and Related Services,Library Service,5105647650,20.09.2017,Public Libraries Central,Computer Maintenance,594.00,BIBLIOTHECA LTD,669
Revenue,Place,Cultural and Related Services,Library Service,5105647650,20.09.2017,Public Libraries Central,Computer Maintenance,"5,213.62",BIBLIOTHECA LTD,670
Revenue,Place,Environmental & Regulatory Services,Service Management and Support Services,5105646750,20.09.2017,Waste Contract Management,Professional Services,"16,583.22",BIFFA WASTE SERVICES LTD,671
Revenue,Childrens Services,Children's & Education Services,Children Looked After,5105647899,22.09.2017,Leaving Care Costs,Support Children,401.00,REDACTED PERSONAL DATA,672
Revenue,Resources,Central Services,Central Services to the Public,5105645936,08.09.2017,Council Tax Benefit,Printing Costs,6.50,BISHOPS PRINTERS LTD,679
Revenue,Resources,Central Services,Support Services,5105647783,22.09.2017,Staff Benefits,Payment to Private Contractors,175.00,BLACKBERRY LANE PRE-SCHOOL,680
Revenue,Resources,Central Services,Support Services,5105647783,22.09.2017,Staff Benefits,Payment to Private Contractors,243.00,BLACKBERRY LANE PRE-SCHOOL,681
Revenue,Childrens Services,Children's & Education Services,Children Looked After,5105648164,29.09.2017,Purchased Fostering,Charges from Independent Providers,"3,485.33",BLUE SKY FOSTERING LTD,682
Revenue,Place,Environmental & Regulatory Services,(Street) Cleansing (not highways),5105647656,20.09.2017,Beach Cleaning,Payment to Private Contractors,233.09,BLUELINE SECURITY MANAGEMENT LTD,683
Revenue,Place,Highways and Transport Services,"Airports, Harbours & Toll Facilities",5105647017,20.09.2017,Ferry Operation,Payment to Private Contractors,"1,441.75",BLUELINE SECURITY MANAGEMENT LTD,684
Revenue,Childrens Services,Children's & Education Services,Children Looked After,5105647103,20.09.2017,Beaulieu House,Operational Equipment,36.95,BOC LTD,685
Revenue,Childrens Services,Children's & Education Services,Other Education and Community Budget,5105647721,20.09.2017,Commissioning ACL,Grants to External Bodies,"2,439.00",BODSTER EQUINE ASSISTED LEARN CIC,686
Revenue,Childrens Services,Children's & Education Services,Family Support Services,5105647520,15.09.2017,Short Breaks,Charges from Independent Providers,395.83,BODSTER EQUINE ASSISTED LEARN CIC,687
Revenue,Adult Services,Adult Social Care,Learning Disab Supp (to be reallocated),5105647200,13.09.2017,40 Venner Avenue,Catering Purchases,21.50,BOOKER CASH & CARRY LTD,688
Revenue,Adult Services,Adult Social Care,Learning Disab Supp (to be reallocated),5105647524,15.09.2017,40 Venner Avenue,Catering Purchases,10.30,BOOKER CASH & CARRY LTD,689
Revenue,Adult Services,Adult Social Care,Learning Disab Supp (to be reallocated),5105647200,13.09.2017,40 Venner Avenue,Catering Purchases,9.48,BOOKER CASH & CARRY LTD,690
Revenue,Adult Services,Adult Social Care,Learning Disab Supp (to be reallocated),5105645957,13.09.2017,Plean Dene,Catering Purchases,5.85,BOOKER CASH & CARRY LTD,691
Revenue,Adult Services,Adult Social Care,Learning Disab Supp (to be reallocated),5105645958,08.09.2017,Plean Dene,Catering Purchases,13.69,BOOKER CASH & CARRY LTD,692
Revenue,Adult Services,Adult Social Care,Learning Disab Supp (to be reallocated),5105645959,08.09.2017,Plean Dene,Catering Purchases,168.45,BOOKER CASH & CARRY LTD,693
Revenue,Adult Services,Adult Social Care,Learning Disab Supp (to be reallocated),5105645959,08.09.2017,Plean Dene,Catering Purchases,47.52,BOOKER CASH & CARRY LTD,694
Revenue,Adult Services,Adult Social Care,Learning Disab Supp (to be reallocated),5105646742,06.09.2017,Plean Dene,Catering Purchases,128.74,BOOKER CASH & CARRY LTD,695
Revenue,Adult Services,Adult Social Care,Learning Disab Supp (to be reallocated),5105646742,06.09.2017,Plean Dene,Catering Purchases,27.91,BOOKER CASH & CARRY LTD,696
Revenue,Adult Services,Adult Social Care,Learning Disab Supp (to be reallocated),5105647479,20.09.2017,Plean Dene,Catering Purchases,9.53,BOOKER CASH & CARRY LTD,697
Revenue,Adult Services,Adult Social Care,Learning Disab Supp (to be reallocated),5105646977,08.09.2017,Plean Dene,Catering Purchases,15.84,BOOKER CASH & CARRY LTD,698
Revenue,Adult Services,Adult Social Care,Learning Disab Supp (to be reallocated),5105646981,08.09.2017,Plean Dene,Catering Purchases,16.59,BOOKER CASH & CARRY LTD,699
Revenue,Adult Services,Adult Social Care,Learning Disab Supp (to be reallocated),5105646936,20.09.2017,Plean Dene,Catering Purchases,8.99,BOOKER CASH & CARRY LTD,700
Revenue,Adult Services,Adult Social Care,Learning Disab Supp (to be reallocated),5105647024,08.09.2017,Plean Dene,Catering Purchases,3.70,BOOKER CASH & CARRY LTD,701
Revenue,Adult Services,Adult Social Care,Learning Disab Supp (to be reallocated),5105647670,20.09.2017,Plean Dene,Catering Purchases,255.42,BOOKER CASH & CARRY LTD,702
Revenue,Adult Services,Adult Social Care,Learning Disab Supp (to be reallocated),5105647645,20.09.2017,Plean Dene,Catering Purchases,3.23,BOOKER CASH & CARRY LTD,703
Revenue,Adult Services,Adult Social Care,Learning Disab Supp (to be reallocated),5105648526,29.09.2017,Plean Dene,Catering Purchases,17.38,BOOKER CASH & CARRY LTD,704
Revenue,Adult Services,Adult Social Care,Learning Disab Supp (to be reallocated),5105648624,29.09.2017,Plean Dene,Catering Purchases,5.57,BOOKER CASH & CARRY LTD,705
Revenue,Adult Services,Adult Social Care,Learning Disab Supp (to be reallocated),5105647670,20.09.2017,Plean Dene,Catering Purchases,20.56,BOOKER CASH & CARRY LTD,706
Revenue,Public Health,Public Health,Sexual Health,5105646077,01.09.2017,STI Tests & Treatment,Payment to Private Contractors,30.00,BOOTS THE CHEMIST LTD (Ryde),707
Revenue,Public Health,Public Health,Sexual Health,5105646077,01.09.2017,STI Tests & Treatment,Payment to Private Contractors,8.04,BOOTS THE CHEMIST LTD (Ryde),708
Revenue,Public Health,Public Health,Substance Misuse,5105646077,01.09.2017,Drug Misuse Adult- Treatment,Payment to Private Contractors,609.00,BOOTS THE CHEMIST LTD (Ryde),709
Revenue,Public Health,Public Health,Substance Misuse,5105646077,01.09.2017,Drug Misuse Adult- Treatment,Payment to Private Contractors,618.00,BOOTS THE CHEMIST LTD (Ryde),710
Revenue,Public Health,Public Health,Sexual Health,5105646077,01.09.2017,Contraception,Payment to Private Contractors,408.50,BOOTS THE CHEMIST LTD (Ryde),711
Revenue,Public Health,Public Health,Sexual Health,5105646077,01.09.2017,Contraception,Payment to Private Contractors,57.20,BOOTS THE CHEMIST LTD (Ryde),712
Revenue,Public Health,Public Health,Sexual Health,5105646077,01.09.2017,Contraception,Payment to Private Contractors,112.40,BOOTS THE CHEMIST LTD (Ryde),713
Revenue,Public Health,Public Health,Substance Misuse,5105646105,01.09.2017,Drug Misuse Adult- Treatment,Payment to Private Contractors,56.00,BOOTS UK LTD (107 HIGH ST SANDOWN),714
Revenue,Public Health,Public Health,Substance Misuse,5105646105,01.09.2017,Drug Misuse Adult- Treatment,Payment to Private Contractors,152.00,BOOTS UK LTD (107 HIGH ST SANDOWN),715
Revenue,Public Health,Public Health,Sexual Health,5105646105,01.09.2017,Contraception,Payment to Private Contractors,129.00,BOOTS UK LTD (107 HIGH ST SANDOWN),716
Revenue,Public Health,Public Health,Sexual Health,5105646105,01.09.2017,Contraception,Payment to Private Contractors,15.60,BOOTS UK LTD (107 HIGH ST SANDOWN),717
Revenue,Public Health,Public Health,Sexual Health,5105646105,01.09.2017,Contraception,Payment to Private Contractors,28.10,BOOTS UK LTD (107 HIGH ST SANDOWN),718
Revenue,Public Health,Public Health,Substance Misuse,5105646087,01.09.2017,Drug Misuse Adult- Treatment,Payment to Private Contractors,52.50,BOOTS UK LTD (COWES),719
Revenue,Public Health,Public Health,Substance Misuse,5105646087,01.09.2017,Drug Misuse Adult- Treatment,Payment to Private Contractors,70.00,BOOTS UK LTD (COWES),720
Revenue,Public Health,Public Health,Sexual Health,5105646087,01.09.2017,Contraception,Payment to Private Contractors,43.00,BOOTS UK LTD (COWES),721
Revenue,Public Health,Public Health,Sexual Health,5105646087,01.09.2017,Contraception,Payment to Private Contractors,10.40,BOOTS UK LTD (COWES),722
Revenue,Public Health,Public Health,Substance Misuse,5105646089,01.09.2017,Drug Misuse Adult- Treatment,Payment to Private Contractors,44.00,BOOTS UK LTD (FRESHWATER),723
Revenue,Public Health,Public Health,Sexual Health,5105646089,01.09.2017,Contraception,Payment to Private Contractors,64.50,BOOTS UK LTD (FRESHWATER),724
Revenue,Public Health,Public Health,Sexual Health,5105646089,01.09.2017,Contraception,Payment to Private Contractors,10.40,BOOTS UK LTD (FRESHWATER),725
Revenue,Public Health,Public Health,Sexual Health,5105646089,01.09.2017,Contraception,Payment to Private Contractors,14.05,BOOTS UK LTD (FRESHWATER),726
Revenue,Public Health,Public Health,Sexual Health,5105646092,01.09.2017,STI Tests & Treatment,Payment to Private Contractors,90.00,BOOTS UK LTD (NEWPORT),727
Revenue,Public Health,Public Health,Sexual Health,5105646092,01.09.2017,STI Tests & Treatment,Payment to Private Contractors,30.00,BOOTS UK LTD (NEWPORT),728
Revenue,Public Health,Public Health,Sexual Health,5105646092,01.09.2017,STI Tests & Treatment,Payment to Private Contractors,24.12,BOOTS UK LTD (NEWPORT),729
Revenue,Public Health,Public Health,Substance Misuse,5105646092,01.09.2017,Drug Misuse Adult- Treatment,Payment to Private Contractors,94.50,BOOTS UK LTD (NEWPORT),730
Revenue,Public Health,Public Health,Substance Misuse,5105646092,01.09.2017,Drug Misuse Adult- Treatment,Payment to Private Contractors,284.00,BOOTS UK LTD (NEWPORT),731
Revenue,Public Health,Public Health,Sexual Health,5105646092,01.09.2017,Contraception,Payment to Private Contractors,387.00,BOOTS UK LTD (NEWPORT),732
Revenue,Public Health,Public Health,Sexual Health,5105646092,01.09.2017,Contraception,Payment to Private Contractors,52.00,BOOTS UK LTD (NEWPORT),733
Revenue,Public Health,Public Health,Sexual Health,5105646092,01.09.2017,Contraception,Payment to Private Contractors,112.40,BOOTS UK LTD (NEWPORT),734
Revenue,Public Health,Public Health,Substance Misuse,5105646094,01.09.2017,Drug Misuse Adult- Treatment,Payment to Private Contractors,52.50,BOOTS UK LTD (SANDOWN LARGE STORE),735
Revenue,Public Health,Public Health,Substance Misuse,5105646094,01.09.2017,Drug Misuse Adult- Treatment,Payment to Private Contractors,140.00,BOOTS UK LTD (SANDOWN LARGE STORE),736
Revenue,Public Health,Public Health,Sexual Health,5105646094,01.09.2017,Contraception,Payment to Private Contractors,43.00,BOOTS UK LTD (SANDOWN LARGE STORE),737
Revenue,Public Health,Public Health,Sexual Health,5105646094,01.09.2017,Contraception,Payment to Private Contractors,10.40,BOOTS UK LTD (SANDOWN LARGE STORE),738
Revenue,Public Health,Public Health,Sexual Health,5105646093,01.09.2017,Contraception,Payment to Private Contractors,21.50,BOOTS UK LTD (SHANKLIN),739
Revenue,Public Health,Public Health,Sexual Health,5105646093,01.09.2017,Contraception,Payment to Private Contractors,14.05,BOOTS UK LTD (SHANKLIN),740
Revenue,Public Health,Public Health,Substance Misuse,5105646085,01.09.2017,Drug Misuse Adult- Treatment,Payment to Private Contractors,49.00,BOOTS UK LTD (TOWER HOUSE),741
Revenue,Public Health,Public Health,Substance Misuse,5105646085,01.09.2017,Drug Misuse Adult- Treatment,Payment to Private Contractors,78.00,BOOTS UK LTD (TOWER HOUSE),742
Revenue,Public Health,Public Health,Sexual Health,5105646085,01.09.2017,Contraception,Payment to Private Contractors,43.00,BOOTS UK LTD (TOWER HOUSE),743
Revenue,Public Health,Public Health,Sexual Health,5105646085,01.09.2017,Contraception,Payment to Private Contractors,28.10,BOOTS UK LTD (TOWER HOUSE),744
Revenue,Public Health,Public Health,Substance Misuse,5105646091,01.09.2017,Drug Misuse Adult- Treatment,Payment to Private Contractors,35.00,BOOTS UK LTD,745
Revenue,Public Health,Public Health,Substance Misuse,5105646091,01.09.2017,Drug Misuse Adult- Treatment,Payment to Private Contractors,92.00,BOOTS UK LTD,746
Revenue,Public Health,Public Health,Sexual Health,5105646091,01.09.2017,Contraception,Payment to Private Contractors,43.00,BOOTS UK LTD,747
Revenue,Public Health,Public Health,Sexual Health,5105646091,01.09.2017,Contraception,Payment to Private Contractors,5.20,BOOTS UK LTD,748
Revenue,Public Health,Public Health,Sexual Health,5105646091,01.09.2017,Contraception,Payment to Private Contractors,14.05,BOOTS UK LTD,749
Revenue,Public Health,Public Health,Substance Misuse,5105646088,01.09.2017,Drug Misuse Adult- Treatment,Payment to Private Contractors,20.00,BOOTS UK LTD (YLB BEMBRIDGE),750
Revenue,Childrens Services,Children's & Education Services,Family Support Services,5105646955,13.09.2017,S17 Child Protection,Support Children,75.00,BOSTICO INTERNATIONAL,751
Revenue,Childrens Services,Children's & Education Services,Family Support Services,5105645934,06.09.2017,S17 Child Protection,Professional Services,276.31,BOSTICO INTERNATIONAL,752
Revenue,Childrens Services,Children's & Education Services,Family Support Services,5105645938,08.09.2017,S17 Referral & Assesment,Professional Services,154.50,BOSTICO INTERNATIONAL,753
Revenue,Childrens Services,Children's & Education Services,Family Support Services,5105646682,13.09.2017,S17 Child Protection,Professional Services,269.81,BOSTICO INTERNATIONAL,754
Revenue,Childrens Services,Children's & Education Services,Family Support Services,5105646953,13.09.2017,S17 Referral & Assesment,Professional Services,334.18,BOSTICO INTERNATIONAL,755
Revenue,Childrens Services,Children's & Education Services,Family Support Services,5105646935,08.09.2017,S17 Referral & Assesment,Professional Services,45.00,BOSTICO INTERNATIONAL,756
Revenue,Childrens Services,Children's & Education Services,Family Support Services,5105647098,13.09.2017,S17 Referral & Assesment,Professional Services,298.98,BOSTICO INTERNATIONAL,757
Revenue,Childrens Services,Children's & Education Services,Safeguarding Children/Young Peoples Svs,5105648076,22.09.2017,Children In Need 1,Professional Services,483.04,BOSTICO INTERNATIONAL,758
Revenue,Childrens Services,Children's & Education Services,Services for Young People,5105646726,06.09.2017,Youth Commissioning,Payments to Voluntary and Other Associations,243.45,BRADING COMMUNITY PARTNERSHIP,759
Revenue,Childrens Services,Children's & Education Services,Services for Young People,5105646727,06.09.2017,Youth Commissioning,Payments to Voluntary and Other Associations,450.00,BRADING COMMUNITY PARTNERSHIP,760
Revenue,Childrens Services,Children's & Education Services,Services for Young People,5105647136,15.09.2017,Youth Commissioning,Payments to Voluntary and Other Associations,960.46,BRADING COMMUNITY PARTNERSHIP,761
Revenue,Resources,Central Services,Support Services,5105647780,22.09.2017,Staff Benefits,Payment to Private Contractors,243.00,BRADING PRIMARY SCHOOL,763
Revenue,Place,Housing Services,Homelessness,5105647769,22.09.2017,Leaseholds by LA,Accommodation Costs - Leaseholder Payments,216.66,BRAMBLE LETTINGS,764
Revenue,Place,Housing Services,Homelessness,5105647769,22.09.2017,Leaseholds by LA,Accommodation Costs - Leaseholder Payments,281.66,BRAMBLE LETTINGS,765
Revenue,Place,Housing Services,Homelessness,5105647769,22.09.2017,Leaseholds by LA,Accommodation Costs - Leaseholder Payments,746.81,BRAMBLE LETTINGS,766
Revenue,Place,Housing Services,Homelessness,5105647769,22.09.2017,Leaseholds by LA,Accommodation Costs - Leaseholder Payments,746.81,BRAMBLE LETTINGS,767
Revenue,Place,Housing Services,Homelessness,5105647769,22.09.2017,Leaseholds by LA,Accommodation Costs - Leaseholder Payments,746.81,BRAMBLE LETTINGS,768
Revenue,Place,Housing Services,Homelessness,5105647769,22.09.2017,Leaseholds by LA,Accommodation Costs - Leaseholder Payments,746.81,BRAMBLE LETTINGS,769
Revenue,Place,Housing Services,Homelessness,5105647769,22.09.2017,Leaseholds by LA,Accommodation Costs - Leaseholder Payments,746.81,BRAMBLE LETTINGS,770
Revenue,Place,Housing Services,Homelessness,5105647769,22.09.2017,Leaseholds by LA,Accommodation Costs - Leaseholder Payments,746.81,BRAMBLE LETTINGS,771
Revenue,Place,Housing Services,Homelessness,5105647769,22.09.2017,Leaseholds by LA,Accommodation Costs - Leaseholder Payments,746.81,BRAMBLE LETTINGS,772
Revenue,Place,Housing Services,Homelessness,5105647769,22.09.2017,Leaseholds by LA,Accommodation Costs - Leaseholder Payments,746.81,BRAMBLE LETTINGS,773
Revenue,Place,Housing Services,Homelessness,5105647769,22.09.2017,Leaseholds by LA,Accommodation Costs - Leaseholder Payments,769.43,BRAMBLE LETTINGS,774
Revenue,Place,Housing Services,Homelessness,5105647769,22.09.2017,Leaseholds by LA,Accommodation Costs - Leaseholder Payments,746.81,BRAMBLE LETTINGS,775
Revenue,Place,Housing Services,Homelessness,5105647769,22.09.2017,Leaseholds by LA,Accommodation Costs - Leaseholder Payments,588.38,BRAMBLE LETTINGS,776
Revenue,Place,Housing Services,Homelessness,5105647769,22.09.2017,Leaseholds by LA,Accommodation Costs - Leaseholder Payments,746.81,BRAMBLE LETTINGS,777
Revenue,Place,Housing Services,Homelessness,5105647769,22.09.2017,Leaseholds by LA,Accommodation Costs - Leaseholder Payments,588.38,BRAMBLE LETTINGS,778
Revenue,Place,Housing Services,Homelessness,5105647769,22.09.2017,Leaseholds by LA,Accommodation Costs - Leaseholder Payments,588.38,BRAMBLE LETTINGS,779
Revenue,Place,Housing Services,Homelessness,5105647769,22.09.2017,Leaseholds by LA,Accommodation Costs - Leaseholder Payments,588.38,BRAMBLE LETTINGS,780
Revenue,Place,Housing Services,Homelessness,5105647769,22.09.2017,Leaseholds by LA,Accommodation Costs - Leaseholder Payments,588.38,BRAMBLE LETTINGS,781
Revenue,Place,Housing Services,Homelessness,5105647769,22.09.2017,Leaseholds by LA,Accommodation Costs - Leaseholder Payments,588.38,BRAMBLE LETTINGS,782
Revenue,Place,Housing Services,Homelessness,5105647769,22.09.2017,Leaseholds by LA,Accommodation Costs - Leaseholder Payments,746.81,BRAMBLE LETTINGS,783
Revenue,Place,Housing Services,Homelessness,5105647769,22.09.2017,Leaseholds by LA,Accommodation Costs - Leaseholder Payments,746.81,BRAMBLE LETTINGS,784
Revenue,Place,Housing Services,Homelessness,5105647769,22.09.2017,Leaseholds by LA,Accommodation Costs - Leaseholder Payments,746.81,BRAMBLE LETTINGS,785
Revenue,Place,Housing Services,Homelessness,5105647769,22.09.2017,Leaseholds by LA,Accommodation Costs - Leaseholder Payments,746.81,BRAMBLE LETTINGS,786
Revenue,Place,Housing Services,Homelessness,5105647769,22.09.2017,Leaseholds by LA,Accommodation Costs - Leaseholder Payments,746.81,BRAMBLE LETTINGS,787
Revenue,Childrens Services,Children's & Education Services,Services for Young People,5105646656,06.09.2017,Youth Commissioning,Payments to Voluntary and Other Associations,"1,629.00",BREAKOUT,788
Revenue,Childrens Services,Children's & Education Services,Services for Young People,5105646657,06.09.2017,Youth Commissioning,Payments to Voluntary and Other Associations,"1,629.00",BREAKOUT,789
Revenue,Childrens Services,Children's & Education Services,Services for Young People,5105647560,15.09.2017,Youth Commissioning,Payments to Voluntary and Other Associations,"1,629.00",BREAKOUT,790
Revenue,Place,Environmental & Regulatory Services,(Street) Cleansing (not highways),5105647514,15.09.2017,Beach Cleaning,Beach Cleansing Contractors,"14,876.00",BRIGHSTONE LANDSCAPING LTD,795
Revenue,Place,Environmental & Regulatory Services,(Street) Cleansing (not highways),5105646690,06.09.2017,Beach Cleaning,Payment to Private Contractors,30.08,BRIGHSTONE LANDSCAPING LTD,796
Revenue,Place,Environmental & Regulatory Services,(Street) Cleansing (not highways),5105647109,13.09.2017,Beach Cleaning,Payment to Private Contractors,240.00,BRIGHSTONE LANDSCAPING LTD,797
Revenue,Place,Cultural and Related Services,Recreation and Sport,5105647112,13.09.2017,Ryde Concessions,Payment to Private Contractors,"1,360.00",BRIGHSTONE LANDSCAPING LTD,798
Revenue,Place,Cultural and Related Services,Open Spaces,5105648516,29.09.2017,Play Areas Health & Safety work,Payment to Private Contractors,55.00,BRIGHSTONE LANDSCAPING LTD,799
Revenue,Place,Cultural and Related Services,Open Spaces,5105648227,27.09.2017,Public Shelters - Ryde,Payment to Private Contractors,49.97,BRIGHSTONE LANDSCAPING LTD,800
Revenue,Place,Cultural and Related Services,Recreation and Sport,5105646690,06.09.2017,Slipways & Steps (Beaches),Payment to Private Contractors,204.92,BRIGHSTONE LANDSCAPING LTD,801
Revenue,Place,Cultural and Related Services,Recreation and Sport,5105648227,27.09.2017,Beach Safety & Inspection / Beach Awards,Payment to Private Contractors,45.03,BRIGHSTONE LANDSCAPING LTD,802
Revenue,Childrens Services,Children's & Education Services,Children Looked After,5105646110,20.09.2017,Leaving Care Costs,Payments to/Aid Provided to Clients,57.90,BRIGHTON AND HOVE CITY COUNCIL,803
Revenue,Place,Highways and Transport Services,Parking Services,5105647720,27.09.2017,Parking Management,Professional Subscriptions,888.00,BRITISH PARKING ASSOCIATION,804
Revenue,Adult Services,Adult Social Care,Learning Disability Suppt-adults (18-64),5105646124,06.09.2017,Learning Disability Residential 18-64,Charges from Independent Providers,"6,840.12",BROADHAM CARE LTD,805
Revenue,Adult Services,Adult Social Care,Social Support -Substance Misuse Support,5105647705,20.09.2017,Substance Misuse Other ST Support,Charges from Independent Providers,"1,290.71",BROADREACH HOUSE,809
Revenue,Adult Services,Adult Social Care,Social Support -Substance Misuse Support,5105647706,20.09.2017,Substance Misuse Other ST Support,Charges from Independent Providers,"-1,290.71",BROADREACH HOUSE,810
Revenue,Adult Services,Adult Social Care,Social Support -Substance Misuse Support,5105646628,06.09.2017,Substance Misuse Other ST Support,Charges from Independent Providers,935.71,BROADREACH HOUSE,811
Revenue,Adult Services,Adult Social Care,Social Support -Substance Misuse Support,5105646628,06.09.2017,Substance Misuse Other ST Support,Charges from Independent Providers,"1,216.43",BROADREACH HOUSE,812
Revenue,Place,Cultural and Related Services,Open Spaces,5105647590,20.09.2017,Other Grounds Maintenance,Payment to Private Contractors,107.50,BROXAP LTD,813
Revenue,Adult Services,Adult Social Care,Sensory Support - older people (65+),5105646174,06.09.2017,Sensory Support Residential 65+,Charges from Independent Providers,"1,862.00",BUCKLAND CARE LTD,814
Revenue,Adult Services,Adult Social Care,Physical Support - older people (65+),5105646114,06.09.2017,Physical Support Residential 65+,Charges from Independent Providers,626.85,BUCKLAND CARE LTD,815
Revenue,Adult Services,Adult Social Care,Physical Support - older people (65+),5105646174,06.09.2017,Physical Support Residential 65+,Charges from Independent Providers,"1,950.20",BUCKLAND CARE LTD,816
Revenue,Adult Services,Adult Social Care,Physical Support - older people (65+),5105646174,06.09.2017,Physical Support Residential 65+,Charges from Independent Providers,"1,950.20",BUCKLAND CARE LTD,817
Revenue,Adult Services,Adult Social Care,Physical Support - older people (65+),5105647048,13.09.2017,Physical Support Residential 65+,Charges from Independent Providers,731.50,BUCKLAND CARE LTD,818
Revenue,Adult Services,Adult Social Care,Physical Support - older people (65+),5105648068,27.09.2017,Physical Support Residential 65+,Charges from Independent Providers,"1,130.50",BUCKLAND CARE LTD,819
Revenue,Adult Services,Adult Social Care,Support - Memory /Cognition-older people (65+),5105648256,29.09.2017,Memory & Cognition Residential 65+,Charges from Independent Providers,"1,393.00",BUCKLAND CARE LTD,820
Revenue,Adult Services,Adult Social Care,Support - Memory /Cognition-older people (65+),5105646174,06.09.2017,Memory & Cognition Residential 65+,Charges from Independent Providers,"1,950.20",BUCKLAND CARE LTD,821
Revenue,Adult Services,Adult Social Care,Support - Memory /Cognition-older people (65+),5105646174,06.09.2017,Memory & Cognition Residential 65+,Charges from Independent Providers,"1,950.20",BUCKLAND CARE LTD,822
Revenue,Adult Services,Adult Social Care,Physical Support - older people (65+),5105646174,06.09.2017,Physical Support Residential 65+,Charges from Independent Providers,"1,950.20",BUCKLAND CARE LTD,823
Revenue,Adult Services,Adult Social Care,Physical Support - older people (65+),5105646174,06.09.2017,Physical Support Residential 65+,Charges from Independent Providers,"1,950.20",BUCKLAND CARE LTD,824
Revenue,Adult Services,Adult Social Care,Physical Support - older people (65+),5105646174,06.09.2017,Physical Support Residential 65+,Charges from Independent Providers,"2,292.64",BUCKLAND CARE LTD,825
Revenue,Adult Services,Adult Social Care,Physical Support - older people (65+),5105646174,06.09.2017,Physical Support Residential 65+,Charges from Independent Providers,"2,292.64",BUCKLAND CARE LTD,826
Revenue,Adult Services,Adult Social Care,Physical Support - older people (65+),5105646174,06.09.2017,Physical Support Residential 65+,Charges from Independent Providers,"1,862.00",BUCKLAND CARE LTD,827
Revenue,Adult Services,Adult Social Care,Support - Memory /Cognition-older people (65+),5105646174,06.09.2017,Memory & Cognition Residential 65+,Charges from Independent Providers,557.20,BUCKLAND CARE LTD,828
Revenue,Adult Services,Adult Social Care,Physical Support - older people (65+),5105646174,06.09.2017,Physical Support Residential 65+,Charges from Independent Providers,"1,862.00",BUCKLAND CARE LTD,829
Revenue,Adult Services,Adult Social Care,Physical Support - older people (65+),5105646174,06.09.2017,Physical Support Residential 65+,Charges from Independent Providers,"2,292.64",BUCKLAND CARE LTD,830
Revenue,Adult Services,Adult Social Care,Support - Memory /Cognition-older people (65+),5105646174,06.09.2017,Memory & Cognition Residential 65+,Charges from Independent Providers,"2,292.64",BUCKLAND CARE LTD,831
Revenue,Adult Services,Adult Social Care,Physical Support - older people (65+),5105646174,06.09.2017,Physical Support Residential 65+,Charges from Independent Providers,"1,862.00",BUCKLAND CARE LTD,832
Revenue,Adult Services,Adult Social Care,Physical Support - older people (65+),5105646174,06.09.2017,Physical Support Residential 65+,Charges from Independent Providers,"1,862.00",BUCKLAND CARE LTD,833
Revenue,Adult Services,Adult Social Care,Support - Memory /Cognition-older people (65+),5105646174,06.09.2017,Memory & Cognition Residential 65+,Charges from Independent Providers,"1,950.20",BUCKLAND CARE LTD,834
Revenue,Adult Services,Adult Social Care,Support - Memory /Cognition-older people (65+),5105646174,06.09.2017,Memory & Cognition Residential 65+,Charges from Independent Providers,"2,292.64",BUCKLAND CARE LTD,835
Revenue,Adult Services,Adult Social Care,Physical Support - older people (65+),5105646174,06.09.2017,Physical Support Residential 65+,Charges from Independent Providers,"2,292.64",BUCKLAND CARE LTD,836
Revenue,Adult Services,Balance Sheet,Balance Sheet,5105646174,06.09.2017,REDACTED PERSONAL DATA,Order Settlement to Bal Sht GL,"2,292.64",BUCKLAND CARE LTD,837
Revenue,Adult Services,Adult Social Care,Physical Support - adults (18-64),5105646174,06.09.2017,Physical Support Residential 18-64,Charges from Independent Providers,"2,292.64",BUCKLAND CARE LTD,838
Revenue,Adult Services,Adult Social Care,Physical Support - adults (18-64),5105646161,06.09.2017,Physical Support Nursing 18-64,Charges from Independent Providers,"2,572.08",BUCKLAND CARE LTD,839
Revenue,Adult Services,Adult Social Care,Mental Health Support-older people (65+),5105646161,06.09.2017,Mental Health Nursing 65+,Charges from Independent Providers,"2,572.08",BUCKLAND CARE LTD,840
Revenue,Adult Services,Adult Social Care,Physical Support - adults (18-64),5105646161,06.09.2017,Physical Support Nursing 18-64,Charges from Independent Providers,"2,572.08",BUCKLAND CARE LTD,841
Revenue,Adult Services,Balance Sheet,Balance Sheet,5105646161,06.09.2017,REDACTED PERSONAL DATA,Order Settlement to Bal Sht GL,"2,572.08",BUCKLAND CARE LTD,842
Revenue,Adult Services,Adult Social Care,Support - Memory /Cognition-older people (65+),5105646161,06.09.2017,Memory & Cognition Residential 65+,Charges from Independent Providers,"2,292.64",BUCKLAND CARE LTD,843
Revenue,Adult Services,Adult Social Care,Physical Support - older people (65+),5105647698,20.09.2017,Physical Support Residential 65+,Charges from Independent Providers,"3,520.84",BUCKLAND CARE LTD,844
Revenue,Adult Services,Adult Social Care,Physical Support - older people (65+),5105648103,27.09.2017,Physical Support Residential 65+,Charges from Independent Providers,"1,146.32",BUCKLAND CARE LTD,845
Revenue,Adult Services,Adult Social Care,Physical Support - older people (65+),5105647698,20.09.2017,Physical Support Residential 65+,Charges from Independent Providers,"5,731.60",BUCKLAND CARE LTD,846
Revenue,Adult Services,Adult Social Care,Physical Support - older people (65+),5105647698,20.09.2017,Physical Support Residential 65+,Charges from Independent Providers,"6,468.52",BUCKLAND CARE LTD,847
Revenue,Adult Services,Adult Social Care,Physical Support - older people (65+),5105646161,06.09.2017,Physical Support Residential 65+,Charges from Independent Providers,"2,292.64",BUCKLAND CARE LTD,848
Revenue,Adult Services,Adult Social Care,Support - Memory /Cognition-older people (65+),5105646161,06.09.2017,Memory & Cognition Nursing 65+,Regular Respite Care,"2,517.48",BUCKLAND CARE LTD,849
Revenue,Adult Services,Adult Social Care,Commissioning & Service Delivery,5105646161,06.09.2017,"Funded Nursing Care, Registered Nursing Care Contribution",Charges from Independent Providers,620.20,BUCKLAND CARE LTD,850
Revenue,Adult Services,Adult Social Care,Commissioning & Service Delivery,5105646161,06.09.2017,"Funded Nursing Care, Registered Nursing Care Contribution",Charges from Independent Providers,620.20,BUCKLAND CARE LTD,851
Revenue,Adult Services,Adult Social Care,Commissioning & Service Delivery,5105646161,06.09.2017,"Funded Nursing Care, Registered Nursing Care Contribution",Charges from Independent Providers,620.20,BUCKLAND CARE LTD,852
Revenue,Adult Services,Adult Social Care,Commissioning & Service Delivery,5105646161,06.09.2017,"Funded Nursing Care, Registered Nursing Care Contribution",Charges from Independent Providers,620.20,BUCKLAND CARE LTD,853
Revenue,Adult Services,Adult Social Care,Support - Memory /Cognition-older people (65+),5105646161,06.09.2017,Memory & Cognition Nursing 65+,Charges from Independent Providers,"2,572.08",BUCKLAND CARE LTD,854
Revenue,Adult Services,Adult Social Care,Commissioning & Service Delivery,5105646161,06.09.2017,"Funded Nursing Care, Registered Nursing Care Contribution",Charges from Independent Providers,620.20,BUCKLAND CARE LTD,855
Revenue,Adult Services,Adult Social Care,Commissioning & Service Delivery,5105646161,06.09.2017,"Funded Nursing Care, Registered Nursing Care Contribution",Charges from Independent Providers,620.20,BUCKLAND CARE LTD,856
Revenue,Adult Services,Adult Social Care,Commissioning & Service Delivery,5105646161,06.09.2017,"Funded Nursing Care, Registered Nursing Care Contribution",Charges from Independent Providers,620.20,BUCKLAND CARE LTD,857
Revenue,Adult Services,Adult Social Care,Commissioning & Service Delivery,5105646161,06.09.2017,"Funded Nursing Care, Registered Nursing Care Contribution",Charges from Independent Providers,620.20,BUCKLAND CARE LTD,858
Revenue,Adult Services,Adult Social Care,Commissioning & Service Delivery,5105646161,06.09.2017,"Funded Nursing Care, Registered Nursing Care Contribution",Charges from Independent Providers,620.20,BUCKLAND CARE LTD,859
Revenue,Adult Services,Adult Social Care,Support - Memory /Cognition-older people (65+),5105646161,06.09.2017,Memory & Cognition Nursing 65+,Charges from Independent Providers,"2,572.08",BUCKLAND CARE LTD,860
Revenue,Adult Services,Adult Social Care,Commissioning & Service Delivery,5105646161,06.09.2017,"Funded Nursing Care, Registered Nursing Care Contribution",Charges from Independent Providers,620.20,BUCKLAND CARE LTD,861
Revenue,Adult Services,Adult Social Care,Commissioning & Service Delivery,5105646161,06.09.2017,"Funded Nursing Care, Registered Nursing Care Contribution",Charges from Independent Providers,620.20,BUCKLAND CARE LTD,862
Revenue,Adult Services,Adult Social Care,Commissioning & Service Delivery,5105646161,06.09.2017,"Funded Nursing Care, Registered Nursing Care Contribution",Charges from Independent Providers,620.20,BUCKLAND CARE LTD,863
Revenue,Adult Services,Adult Social Care,Physical Support - older people (65+),5105647037,13.09.2017,Physical Support Nursing 65+,Charges from Independent Providers,"3,490.68",BUCKLAND CARE LTD,864
Revenue,Adult Services,Adult Social Care,Commissioning & Service Delivery,5105647037,13.09.2017,FNC IWC funded clients,Charges from Independent Providers,841.70,BUCKLAND CARE LTD,865
Revenue,Adult Services,Adult Social Care,Commissioning & Service Delivery,5105648547,29.09.2017,FNC IWC funded clients,Charges from Independent Providers,376.55,BUCKLAND CARE LTD,866
Revenue,Adult Services,Adult Social Care,Physical Support - older people (65+),5105648547,29.09.2017,Physical Support Nursing 65+,Charges from Independent Providers,"1,561.62",BUCKLAND CARE LTD,867
Revenue,Adult Services,Adult Social Care,Commissioning & Service Delivery,5105646161,06.09.2017,FNC IWC funded clients,Regular Respite Care,620.20,BUCKLAND CARE LTD,868
Revenue,Adult Services,Adult Social Care,Physical Support - older people (65+),5105647698,20.09.2017,Physical Support Nursing 65+,Regular Respite Care,"1,377.90",BUCKLAND CARE LTD,869
Revenue,Adult Services,Adult Social Care,Commissioning & Service Delivery,5105647698,20.09.2017,FNC IWC funded clients,Regular Respite Care,332.25,BUCKLAND CARE LTD,870
Revenue,Adult Services,Adult Social Care,Physical Support - older people (65+),5105648547,29.09.2017,Physical Support Nursing 65+,Regular Respite Care,"1,286.04",BUCKLAND CARE LTD,871
Revenue,Adult Services,Adult Social Care,Commissioning & Service Delivery,5105648547,29.09.2017,FNC IWC funded clients,Regular Respite Care,310.10,BUCKLAND CARE LTD,872
Revenue,Adult Services,Adult Social Care,Commissioning & Service Delivery,5105646161,06.09.2017,FNC IWC funded clients,Charges from Independent Providers,620.20,BUCKLAND CARE LTD,873
Revenue,Adult Services,Adult Social Care,Commissioning & Service Delivery,5105646161,06.09.2017,FNC IWC funded clients,Charges from Independent Providers,620.20,BUCKLAND CARE LTD,874
Revenue,Adult Services,Adult Social Care,Commissioning & Service Delivery,5105646161,06.09.2017,FNC IWC funded clients,Charges from Independent Providers,620.20,BUCKLAND CARE LTD,875
Revenue,Adult Services,Adult Social Care,Commissioning & Service Delivery,5105646161,06.09.2017,FNC IWC funded clients,Charges from Independent Providers,620.20,BUCKLAND CARE LTD,876
Revenue,Adult Services,Adult Social Care,Physical Support - older people (65+),5105646161,06.09.2017,Physical Support Nursing 65+,Charges from Independent Providers,"2,572.08",BUCKLAND CARE LTD,877
Revenue,Adult Services,Adult Social Care,Commissioning & Service Delivery,5105646161,06.09.2017,FNC IWC funded clients,Charges from Independent Providers,620.20,BUCKLAND CARE LTD,878
Revenue,Adult Services,Adult Social Care,Physical Support - older people (65+),5105646161,06.09.2017,Physical Support Nursing 65+,Charges from Independent Providers,"2,572.08",BUCKLAND CARE LTD,879
Revenue,Adult Services,Adult Social Care,Commissioning & Service Delivery,5105646161,06.09.2017,FNC IWC funded clients,Charges from Independent Providers,620.20,BUCKLAND CARE LTD,880
Revenue,Adult Services,Adult Social Care,Commissioning & Service Delivery,5105646161,06.09.2017,FNC IWC funded clients,Charges from Independent Providers,620.20,BUCKLAND CARE LTD,881
Revenue,Adult Services,Adult Social Care,Physical Support - older people (65+),5105646161,06.09.2017,Physical Support Nursing 65+,Charges from Independent Providers,"2,572.08",BUCKLAND CARE LTD,882
Revenue,Adult Services,Adult Social Care,Commissioning & Service Delivery,5105646161,06.09.2017,FNC IWC funded clients,Charges from Independent Providers,620.20,BUCKLAND CARE LTD,883
Revenue,Adult Services,Adult Social Care,Commissioning & Service Delivery,5105646161,06.09.2017,FNC IWC funded clients,Charges from Independent Providers,620.20,BUCKLAND CARE LTD,884
Revenue,Adult Services,Adult Social Care,Physical Support - older people (65+),5105646161,06.09.2017,Physical Support Nursing 65+,Charges from Independent Providers,"2,572.08",BUCKLAND CARE LTD,885
Revenue,Adult Services,Adult Social Care,Commissioning & Service Delivery,5105646161,06.09.2017,FNC IWC funded clients,Charges from Independent Providers,620.20,BUCKLAND CARE LTD,886
Revenue,Adult Services,Adult Social Care,Physical Support - older people (65+),5105646161,06.09.2017,Physical Support Nursing 65+,Charges from Independent Providers,"2,572.08",BUCKLAND CARE LTD,887
Revenue,Adult Services,Adult Social Care,Commissioning & Service Delivery,5105646161,06.09.2017,FNC IWC funded clients,Charges from Independent Providers,620.20,BUCKLAND CARE LTD,888
Revenue,Adult Services,Adult Social Care,Physical Support - older people (65+),5105646161,06.09.2017,Physical Support Nursing 65+,Charges from Independent Providers,"2,572.08",BUCKLAND CARE LTD,889
Revenue,Adult Services,Adult Social Care,Commissioning & Service Delivery,5105646161,06.09.2017,FNC IWC funded clients,Charges from Independent Providers,620.20,BUCKLAND CARE LTD,890
Revenue,Adult Services,Adult Social Care,Commissioning & Service Delivery,5105646161,06.09.2017,FNC IWC funded clients,Charges from Independent Providers,620.20,BUCKLAND CARE LTD,891
Revenue,Adult Services,Adult Social Care,Physical Support - older people (65+),5105646161,06.09.2017,Physical Support Nursing 65+,Charges from Independent Providers,"2,572.08",BUCKLAND CARE LTD,892
Revenue,Adult Services,Adult Social Care,Commissioning & Service Delivery,5105646161,06.09.2017,FNC IWC funded clients,Charges from Independent Providers,620.20,BUCKLAND CARE LTD,893
Revenue,Adult Services,Adult Social Care,Physical Support - older people (65+),5105646161,06.09.2017,Physical Support Nursing 65+,Charges from Independent Providers,"2,572.08",BUCKLAND CARE LTD,894
Revenue,Adult Services,Adult Social Care,Physical Support - older people (65+),5105646335,06.09.2017,Physical Support Nursing 65+,Charges from Independent Providers,"2,420.04",BUPA CARE HOME (BNH) LTD,895
Revenue,Adult Services,Adult Social Care,Mental Health Support-older people (65+),5105646485,06.09.2017,Mental Health Residential 65+,Charges from Independent Providers,"2,087.12",BUPA CARE HOMES LTD,896
Capital,Place,Capital,Capital,5105648038,22.09.2017,Cowes Floating Brdge,Payment to Contractors - Capital,"5,800.00",BURNESS CORLETT,897
Revenue,Childrens Services,Children's & Education Services,Children Looked After,5105646807,08.09.2017,Special Guardianship Order Costs,Support Children,161.49,REDACTED PERSONAL DATA,901
Revenue,Childrens Services,Children's & Education Services,Children Looked After,5105647343,15.09.2017,Special Guardianship Order Costs,Support Children,161.49,REDACTED PERSONAL DATA,902
Revenue,Childrens Services,Children's & Education Services,Children Looked After,5105647827,22.09.2017,Special Guardianship Order Costs,Support Children,161.49,REDACTED PERSONAL DATA,903
Revenue,Childrens Services,Children's & Education Services,Children Looked After,5105648300,29.09.2017,Special Guardianship Order Costs,Support Children,161.49,REDACTED PERSONAL DATA,904
Revenue,Childrens Services,Children's & Education Services,Children Looked After,5105648338,29.09.2017,Children placed with Family&Friends,Boarding Out Allowances,234.52,REDACTED PERSONAL DATA,905
Revenue,Childrens Services,Children's & Education Services,Children Looked After,5105647380,15.09.2017,Children placed with Family&Friends,Boarding Out Allowances,234.52,REDACTED PERSONAL DATA,906
Revenue,Childrens Services,Children's & Education Services,Children Looked After,5105646844,08.09.2017,Children placed with Family&Friends,Boarding Out Allowances,234.52,REDACTED PERSONAL DATA,907
Revenue,Childrens Services,Children's & Education Services,Children Looked After,5105647890,22.09.2017,Children placed with Family&Friends,Boarding Out Allowances,234.52,REDACTED PERSONAL DATA,908
Revenue,Adult Services,Adult Social Care,Learning Disability Suppt-adults (18-64),5105646761,08.09.2017,No-Barriers,Client Expenses,80.00,REDACTED PERSONAL DATA,909
Revenue,Childrens Services,Children's & Education Services,Children Looked After,5105648326,29.09.2017,Adoption Costs,Support Children,161.49,REDACTED PERSONAL DATA,913
Revenue,Childrens Services,Children's & Education Services,Children Looked After,5105647876,22.09.2017,Adoption Costs,Support Children,161.49,REDACTED PERSONAL DATA,914
Revenue,Childrens Services,Children's & Education Services,Children Looked After,5105647369,15.09.2017,Adoption Costs,Support Children,161.49,REDACTED PERSONAL DATA,915
Revenue,Childrens Services,Children's & Education Services,Children Looked After,5105646833,08.09.2017,Adoption Costs,Support Children,161.49,REDACTED PERSONAL DATA,916
Revenue,Childrens Services,Children's & Education Services,Children Looked After,5105646833,08.09.2017,Adoption Costs,Support Children,168.09,REDACTED PERSONAL DATA,917
Revenue,Childrens Services,Children's & Education Services,Children Looked After,5105647369,15.09.2017,Adoption Costs,Support Children,168.09,REDACTED PERSONAL DATA,918
Revenue,Childrens Services,Children's & Education Services,Children Looked After,5105647876,22.09.2017,Adoption Costs,Support Children,168.09,REDACTED PERSONAL DATA,919
Revenue,Childrens Services,Children's & Education Services,Children Looked After,5105648326,29.09.2017,Adoption Costs,Support Children,168.09,REDACTED PERSONAL DATA,920
Revenue,Childrens Services,Children's & Education Services,Children Looked After,5105647861,22.09.2017,Special Guardianship Order Costs,Support Children,125.79,REDACTED PERSONAL DATA,921
Revenue,Childrens Services,Children's & Education Services,Children Looked After,5105647355,15.09.2017,Special Guardianship Order Costs,Support Children,125.79,REDACTED PERSONAL DATA,922
Revenue,Childrens Services,Children's & Education Services,Children Looked After,5105648312,29.09.2017,Special Guardianship Order Costs,Support Children,125.79,REDACTED PERSONAL DATA,923
Revenue,Childrens Services,Children's & Education Services,Children Looked After,5105646819,08.09.2017,Special Guardianship Order Costs,Support Children,125.79,REDACTED PERSONAL DATA,924
Revenue,Childrens Services,Children's & Education Services,Children Looked After,5105648336,29.09.2017,In-house Fostering,Boarding Out Allowances,319.15,REDACTED PERSONAL DATA,925
Revenue,Childrens Services,Children's & Education Services,Children Looked After,5105646842,08.09.2017,In-house Fostering,Boarding Out Allowances,319.15,REDACTED PERSONAL DATA,926
Revenue,Childrens Services,Children's & Education Services,Children Looked After,5105647888,22.09.2017,In-house Fostering,Boarding Out Allowances,319.15,REDACTED PERSONAL DATA,927
Revenue,Childrens Services,Children's & Education Services,Children Looked After,5105647378,15.09.2017,In-house Fostering,Boarding Out Allowances,319.15,REDACTED PERSONAL DATA,928
Revenue,Childrens Services,Children's & Education Services,Children Looked After,5105647378,15.09.2017,In-house Fostering,Boarding Out Allowances,274.81,REDACTED PERSONAL DATA,929
Revenue,Childrens Services,Children's & Education Services,Children Looked After,5105647888,22.09.2017,In-house Fostering,Boarding Out Allowances,274.81,REDACTED PERSONAL DATA,930
Revenue,Childrens Services,Children's & Education Services,Children Looked After,5105646842,08.09.2017,In-house Fostering,Boarding Out Allowances,274.81,REDACTED PERSONAL DATA,931
Revenue,Childrens Services,Children's & Education Services,Children Looked After,5105648336,29.09.2017,In-house Fostering,Boarding Out Allowances,274.81,REDACTED PERSONAL DATA,932
Revenue,Childrens Services,Children's & Education Services,Children Looked After,5105648336,29.09.2017,In-house Fostering,Boarding Out Allowances,274.81,REDACTED PERSONAL DATA,933
Revenue,Childrens Services,Children's & Education Services,Children Looked After,5105646842,08.09.2017,In-house Fostering,Boarding Out Allowances,274.81,REDACTED PERSONAL DATA,934
Revenue,Childrens Services,Children's & Education Services,Children Looked After,5105647888,22.09.2017,In-house Fostering,Boarding Out Allowances,274.81,REDACTED PERSONAL DATA,935
Revenue,Childrens Services,Children's & Education Services,Children Looked After,5105647378,15.09.2017,In-house Fostering,Boarding Out Allowances,274.81,REDACTED PERSONAL DATA,936
Revenue,Childrens Services,Children's & Education Services,Children Looked After,5105646811,08.09.2017,Adoption Costs,Support Children,207.73,REDACTED PERSONAL DATA,940
Revenue,Childrens Services,Children's & Education Services,Children Looked After,5105646811,08.09.2017,Adoption Costs,Support Children,207.73,REDACTED PERSONAL DATA,941
Revenue,Childrens Services,Children's & Education Services,Children Looked After,5105648304,29.09.2017,Adoption Costs,Support Children,207.73,REDACTED PERSONAL DATA,942
Revenue,Childrens Services,Children's & Education Services,Children Looked After,5105647831,22.09.2017,Adoption Costs,Support Children,207.73,REDACTED PERSONAL DATA,943
Revenue,Childrens Services,Children's & Education Services,Children Looked After,5105647347,15.09.2017,Adoption Costs,Support Children,207.73,REDACTED PERSONAL DATA,944
Revenue,Childrens Services,Children's & Education Services,Children Looked After,5105647347,15.09.2017,Adoption Costs,Support Children,207.73,REDACTED PERSONAL DATA,945
Revenue,Childrens Services,Children's & Education Services,Children Looked After,5105647831,22.09.2017,Adoption Costs,Support Children,207.73,REDACTED PERSONAL DATA,946
Revenue,Childrens Services,Children's & Education Services,Children Looked After,5105648304,29.09.2017,Adoption Costs,Support Children,207.73,REDACTED PERSONAL DATA,947
Revenue,Childrens Services,Children's & Education Services,Children Looked After,5105648352,29.09.2017,Special Guardianship Order Costs,Support Children,166.96,REDACTED PERSONAL DATA,948
Revenue,Childrens Services,Children's & Education Services,Children Looked After,5105646857,08.09.2017,Special Guardianship Order Costs,Support Children,166.96,REDACTED PERSONAL DATA,949
Revenue,Childrens Services,Children's & Education Services,Children Looked After,5105647393,15.09.2017,Special Guardianship Order Costs,Support Children,166.96,REDACTED PERSONAL DATA,950
Revenue,Childrens Services,Children's & Education Services,Children Looked After,5105647904,22.09.2017,Special Guardianship Order Costs,Support Children,166.96,REDACTED PERSONAL DATA,951
Revenue,Childrens Services,Children's & Education Services,Children Looked After,5105646787,08.09.2017,In-house Fostering,Boarding Out Allowances,319.15,REDACTED PERSONAL DATA,958
Revenue,Childrens Services,Children's & Education Services,Children Looked After,5105646787,08.09.2017,In-house Fostering,Boarding Out Allowances,151.33,REDACTED PERSONAL DATA,959
Revenue,Childrens Services,Children's & Education Services,Children Looked After,5105648553,29.09.2017,In-house Fostering,Boarding Out Allowances,136.77,REDACTED PERSONAL DATA,960
Revenue,Childrens Services,Children's & Education Services,Children Looked After,5105648553,29.09.2017,In-house Fostering,Boarding Out Allowances,64.85,REDACTED PERSONAL DATA,961
Revenue,Childrens Services,Children's & Education Services,Children Looked After,5105647323,15.09.2017,In-house Fostering,Boarding Out Allowances,151.33,REDACTED PERSONAL DATA,962
Revenue,Childrens Services,Children's & Education Services,Children Looked After,5105647323,15.09.2017,In-house Fostering,Boarding Out Allowances,319.15,REDACTED PERSONAL DATA,963
Revenue,Childrens Services,Children's & Education Services,Children Looked After,5105646057,01.09.2017,In-house Fostering,Boarding Out Allowances,274.81,REDACTED PERSONAL DATA,968
Revenue,Childrens Services,Children's & Education Services,Children Looked After,5105646782,08.09.2017,In-house Fostering,Boarding Out Allowances,274.81,REDACTED PERSONAL DATA,969
Revenue,Childrens Services,Children's & Education Services,Children Looked After,5105646828,08.09.2017,Special Guardianship Order Costs,Support Children,161.49,REDACTED PERSONAL DATA,974
Revenue,Childrens Services,Children's & Education Services,Children Looked After,5105647364,15.09.2017,Special Guardianship Order Costs,Support Children,161.49,REDACTED PERSONAL DATA,975
Revenue,Childrens Services,Children's & Education Services,Children Looked After,5105647870,22.09.2017,Special Guardianship Order Costs,Support Children,161.49,REDACTED PERSONAL DATA,976
Revenue,Childrens Services,Children's & Education Services,Children Looked After,5105648321,29.09.2017,Special Guardianship Order Costs,Support Children,161.49,REDACTED PERSONAL DATA,977
Revenue,Childrens Services,Children's & Education Services,Children Looked After,5105646805,08.09.2017,Adoption Costs,Support Children,168.39,REDACTED PERSONAL DATA,978
Revenue,Childrens Services,Children's & Education Services,Children Looked After,5105648298,29.09.2017,Adoption Costs,Support Children,168.39,REDACTED PERSONAL DATA,979
Revenue,Childrens Services,Children's & Education Services,Children Looked After,5105647341,15.09.2017,Adoption Costs,Support Children,168.39,REDACTED PERSONAL DATA,980
Revenue,Childrens Services,Children's & Education Services,Children Looked After,5105647825,22.09.2017,Adoption Costs,Support Children,168.39,REDACTED PERSONAL DATA,981
Revenue,Adult Services,Adult Social Care,Assistive Equipment & Technology,5105647096,15.09.2017,Community Equipment Store,Consultants Fees,800.00,CADDIS BUILDING CONSULTANCY LTD,982
Revenue,Regeneration,Central Services,Support Services,5105647095,15.09.2017,"Enterprise House, Newport",Consultants Fees,"1,000.00",CADDIS BUILDING CONSULTANCY LTD,983
Revenue,Childrens Services,Children's & Education Services,Management & Support Services,5105646987,13.09.2017,Pre 16 Independ. & Non-Maint. Special Schls & Independ. Specialist Provision,Charges from Independent Providers,"57,262.67",CAMBIAN ASPERGER SYNDROME SERVICES LTD,984
Revenue,Childrens Services,Children's & Education Services,Management & Support Services,5105648610,29.09.2017,Pre 16 Independ. & Non-Maint. Special Schls & Independ. Specialist Provision,Charges from Independent Providers,"2,689.58",CAMBIAN ASPERGER SYNDROME SERVICES LTD,985
Revenue,Childrens Services,Children's & Education Services,Management & Support Services,5105648611,29.09.2017,Pre 16 Independ. & Non-Maint. Special Schls & Independ. Specialist Provision,Charges from Independent Providers,926.63,CAMBIAN ASPERGER SYNDROME SERVICES LTD,986
Revenue,Childrens Services,Children's & Education Services,Post-16 Provision,5105646989,13.09.2017,Post 16 Independ. & Non-Maint. Special Schls & Independ. Specialist Provision,Charges from Independent Providers,"21,275.67",CAMBIAN ASPERGER SYNDROME SERVICES LTD,987
Revenue,Childrens Services,Children's & Education Services,Children Looked After,5105646989,13.09.2017,NHS Funded Placements,Charges from Independent Providers,"1,995.66",CAMBIAN ASPERGER SYNDROME SERVICES LTD,988
Revenue,Childrens Services,Children's & Education Services,Children Looked After,5105646989,13.09.2017,Purchased Residential,Charges from Independent Providers,"19,280.00",CAMBIAN ASPERGER SYNDROME SERVICES LTD,989
Revenue,Childrens Services,Children's & Education Services,Children Looked After,5105648611,29.09.2017,Purchased Residential,Charges from Independent Providers,"4,404.97",CAMBIAN ASPERGER SYNDROME SERVICES LTD,990
Revenue,Childrens Services,Children's & Education Services,Children Looked After,5105648610,29.09.2017,Purchased Residential,Charges from Independent Providers,"12,785.62",CAMBIAN ASPERGER SYNDROME SERVICES LTD,991
Revenue,Place,Highways and Transport Services,"Airports, Harbours & Toll Facilities",5105648506,29.09.2017,Ferry Operation,Operational Equipment,198.00,CAPCOM LAND SEA & AIR COMMUN.LTD,992
Revenue,Adult Services,Adult Social Care,Assistive Equipment & Technology,5105646971,13.09.2017,Community Equipment Store,Operational Equipment,329.00,CARE & INDEPENDENCE LTD,993
Revenue,Adult Services,Adult Social Care,Assistive Equipment & Technology,5105646971,13.09.2017,Community Equipment Store,Operational Equipment,12.50,CARE & INDEPENDENCE LTD,994
Revenue,Adult Services,Adult Social Care,Assistive Equipment & Technology,5105648483,29.09.2017,Community Equipment Store,Operational Equipment,380.00,CARE & INDEPENDENCE LTD,995
Revenue,Adult Services,Adult Social Care,Assistive Equipment & Technology,5105648483,29.09.2017,Community Equipment Store,Operational Equipment,12.50,CARE & INDEPENDENCE LTD,996
Revenue,Childrens Services,Children's & Education Services,Family Support Services,5105647685,20.09.2017,Short Breaks,Charges from Independent Providers,840.00,CARE CONNECT IOW CIC,997
Revenue,Childrens Services,Children's & Education Services,Family Support Services,5105648098,27.09.2017,Short Breaks,Charges from Independent Providers,"1,509.50",CARE CONNECT IOW CIC,998
Revenue,Adult Services,Adult Social Care,Social Support - Support for Carer,5105644602,06.09.2017,Carers Services,Grants to External Bodies,"19,455.00",CARERS IW,999
Revenue,Childrens Services,Children's & Education Services,Family Support Services,5105648251,29.09.2017,Agency Domiciliary Care,Charges from Independent Providers,98.40,CAREWATCH (SOUTHAMPTON NEW FOREST & IOW),1000
Revenue,Resources,Central Services,Support Services,5105647779,22.09.2017,Staff Benefits,Payment to Private Contractors,243.00,CARISBROOKE CLEVER CLOGGS DAY CARE,1002
Revenue,Adult Services,Adult Social Care,Physical Support - older people (65+),5105646457,06.09.2017,Physical Support Residential 65+,Charges from Independent Providers,"1,847.44",CARNALEA LIMITED,1005
Capital,Childrens Services,Capital,Capital,5105635352,27.09.2017,Children Services Early Years,Payment to Contractors - Capital,695.00,CATER WIGHT,1006
Capital,Childrens Services,Capital,Capital,5105647097,15.09.2017,Children Services Early Years,Payment to Contractors - Capital,"3,990.00",CATER WIGHT,1007
Capital,Childrens Services,Capital,Capital,5105647097,15.09.2017,Children Services Early Years,Payment to Contractors - Capital,450.00,CATER WIGHT,1008
Capital,Childrens Services,Capital,Capital,5105647097,15.09.2017,Children Services Early Years,Payment to Contractors - Capital,"1,950.00",CATER WIGHT,1009
Capital,Childrens Services,Capital,Capital,5105647097,15.09.2017,Children Services Early Years,Payment to Contractors - Capital,"1,150.00",CATER WIGHT,1010
Capital,Childrens Services,Capital,Capital,5105647097,15.09.2017,Children Services Early Years,Payment to Contractors - Capital,265.00,CATER WIGHT,1011
Capital,Childrens Services,Capital,Capital,5105647097,15.09.2017,Children Services Early Years,Payment to Contractors - Capital,"1,695.00",CATER WIGHT,1012
Capital,Childrens Services,Capital,Capital,5105647097,15.09.2017,Children Services Early Years,Payment to Contractors - Capital,375.00,CATER WIGHT,1013
Capital,Childrens Services,Capital,Capital,5105647097,15.09.2017,Children Services Early Years,Payment to Contractors - Capital,"1,150.00",CATER WIGHT,1014
Capital,Childrens Services,Capital,Capital,5105647097,15.09.2017,Children Services Early Years,Payment to Contractors - Capital,165.00,CATER WIGHT,1015
Capital,Childrens Services,Capital,Capital,5105647097,15.09.2017,Children Services Early Years,Payment to Contractors - Capital,160.00,CATER WIGHT,1016
Capital,Childrens Services,Capital,Capital,5105647097,15.09.2017,Children Services Early Years,Payment to Contractors - Capital,220.00,CATER WIGHT,1017
Capital,Childrens Services,Capital,Capital,5105647097,15.09.2017,Children Services Early Years,Payment to Contractors - Capital,150.00,CATER WIGHT,1018
Capital,Childrens Services,Capital,Capital,5105647097,15.09.2017,Children Services Early Years,Payment to Contractors - Capital,"1,200.00",CATER WIGHT,1019
Capital,Childrens Services,Capital,Capital,5105647097,15.09.2017,Children Services Early Years,Payment to Contractors - Capital,"1,595.00",CATER WIGHT,1020
Capital,Childrens Services,Capital,Capital,5105647097,15.09.2017,Children Services Early Years,Payment to Contractors - Capital,"1,200.00",CATER WIGHT,1021
Capital,Childrens Services,Capital,Capital,5105647097,15.09.2017,Children Services Early Years,Payment to Contractors - Capital,275.00,CATER WIGHT,1022
Revenue,Childrens Services,Children's & Education Services,Special Schools & Alternative Provision,5105648137,27.09.2017,Island Learning Centre,Purchase of Books,1.00,CO-ORDINATION GROUP PUBLICATIONS,1023
Revenue,Childrens Services,Children's & Education Services,Special Schools & Alternative Provision,5105648137,27.09.2017,Island Learning Centre,Purchase of Books,25.00,CO-ORDINATION GROUP PUBLICATIONS,1024
Revenue,Childrens Services,Children's & Education Services,Special Schools & Alternative Provision,5105648137,27.09.2017,Island Learning Centre,Purchase of Books,100.00,CO-ORDINATION GROUP PUBLICATIONS,1025
Revenue,Childrens Services,Children's & Education Services,Special Schools & Alternative Provision,5105648137,27.09.2017,Island Learning Centre,Purchase of Books,9.00,CO-ORDINATION GROUP PUBLICATIONS,1026
Revenue,Childrens Services,Children's & Education Services,Special Schools & Alternative Provision,5105648137,27.09.2017,Island Learning Centre,Purchase of Books,110.00,CO-ORDINATION GROUP PUBLICATIONS,1027
Revenue,Childrens Services,Children's & Education Services,Special Schools & Alternative Provision,5105648137,27.09.2017,Island Learning Centre,Purchase of Books,110.00,CO-ORDINATION GROUP PUBLICATIONS,1028
Revenue,Childrens Services,Children's & Education Services,Special Schools & Alternative Provision,5105648137,27.09.2017,Island Learning Centre,Purchase of Books,50.00,CO-ORDINATION GROUP PUBLICATIONS,1029
Revenue,Childrens Services,Children's & Education Services,Special Schools & Alternative Provision,5105648137,27.09.2017,Island Learning Centre,Purchase of Books,65.00,CO-ORDINATION GROUP PUBLICATIONS,1030
Revenue,Childrens Services,Children's & Education Services,Special Schools & Alternative Provision,5105648137,27.09.2017,Island Learning Centre,Purchase of Books,65.00,CO-ORDINATION GROUP PUBLICATIONS,1031
Revenue,Childrens Services,Children's & Education Services,Special Schools & Alternative Provision,5105648137,27.09.2017,Island Learning Centre,Purchase of Books,5.00,CO-ORDINATION GROUP PUBLICATIONS,1032
Revenue,Childrens Services,Children's & Education Services,Special Schools & Alternative Provision,5105648137,27.09.2017,Island Learning Centre,Purchase of Books,65.00,CO-ORDINATION GROUP PUBLICATIONS,1033
Revenue,Childrens Services,Children's & Education Services,Special Schools & Alternative Provision,5105648137,27.09.2017,Island Learning Centre,Purchase of Books,33.75,CO-ORDINATION GROUP PUBLICATIONS,1034
Revenue,Childrens Services,Children's & Education Services,Special Schools & Alternative Provision,5105648137,27.09.2017,Island Learning Centre,Purchase of Books,25.00,CO-ORDINATION GROUP PUBLICATIONS,1035
Revenue,Childrens Services,Children's & Education Services,Special Schools & Alternative Provision,5105648137,27.09.2017,Island Learning Centre,Purchase of Books,50.00,CO-ORDINATION GROUP PUBLICATIONS,1036
Revenue,Childrens Services,Children's & Education Services,Special Schools & Alternative Provision,5105648137,27.09.2017,Island Learning Centre,Purchase of Books,12.50,CO-ORDINATION GROUP PUBLICATIONS,1037
Revenue,Childrens Services,Children's & Education Services,Special Schools & Alternative Provision,5105648137,27.09.2017,Island Learning Centre,Purchase of Books,2.00,CO-ORDINATION GROUP PUBLICATIONS,1038
Revenue,Childrens Services,Children's & Education Services,Special Schools & Alternative Provision,5105648137,27.09.2017,Island Learning Centre,Purchase of Books,7.50,CO-ORDINATION GROUP PUBLICATIONS,1039
Revenue,Childrens Services,Children's & Education Services,Special Schools & Alternative Provision,5105648137,27.09.2017,Island Learning Centre,Purchase of Books,62.50,CO-ORDINATION GROUP PUBLICATIONS,1040
Capital,Place,Capital,Capital,5105645700,22.09.2017,Coastal Capital Schemes,External Design and Supervision Fees,"7,136.64",CH2M HILL UNITED KINGDOM LTD,1041
Revenue,Childrens Services,Children's & Education Services,Management & Support Services,5105647708,22.09.2017,Pre 16 Independ. & Non-Maint. Special Schls & Independ. Specialist Provision,Charges from Independent Providers,"2,887.65",CHANNELS AND CHOICES LTD,1042
Revenue,Childrens Services,Children's & Education Services,Children Looked After,5105647057,13.09.2017,Purchased Residential,Charges from Independent Providers,"16,828.35",CHANNELS AND CHOICES LTD,1043
Revenue,Adult Services,Adult Social Care,Central Codes (to be reallocated),5105647069,13.09.2017,Mental Health Day Services,Property Services - Day to day Maintenance,406.65,CHANT LOCK & SECURITY SERVICE,1044
Revenue,Childrens Services,Children's & Education Services,Children Looked After,5105646670,06.09.2017,Beaulieu House,Minor Works,68.74,CHANT LOCK & SECURITY SERVICE,1045
Revenue,Childrens Services,Children's & Education Services,Children Looked After,5105648089,22.09.2017,Beaulieu House,Minor Works,189.24,CHANT LOCK & SECURITY SERVICE,1046
Revenue,Place,Cultural and Related Services,Open Spaces,5105646671,06.09.2017,Parks Mtce Miscellaneous,Operational Equipment,78.48,CHANT LOCK & SECURITY SERVICE,1047
Revenue,Place,Cultural and Related Services,Culture and Heritage,5105646756,13.09.2017,Cothey Bottom Store RYDE,Property Services - Day to day Maintenance,492.31,CHANT LOCK & SECURITY SERVICE,1048
Revenue,Place,Cultural and Related Services,Recreation and Sport,5105647543,15.09.2017,Beach Safety & Inspection / Beach Awards,Payment to Private Contractors,87.25,CHANT LOCK & SECURITY SERVICE,1049
Revenue,Regeneration,Central Services,Support Services,5105646623,06.09.2017,17 Fairlee Road,Minor Works,42.50,CHANT LOCK & SECURITY SERVICE,1050
Revenue,Adult Services,Adult Social Care,Learning Disab Supp (to be reallocated),5105647528,15.09.2017,Saxonbury,Catering Purchases,35.70,CHAPEL NURSERIES,1051
Revenue,Adult Services,Adult Social Care,Learning Disab Supp (to be reallocated),5105647614,20.09.2017,Plean Dene,Catering Purchases,46.00,CHAPEL NURSERIES,1052
Revenue,Adult Services,Adult Social Care,Learning Disab Supp (to be reallocated),5105647592,20.09.2017,Plean Dene,Catering Purchases,41.50,CHAPEL NURSERIES,1053
Revenue,Adult Services,Adult Social Care,Learning Disab Supp (to be reallocated),5105647547,15.09.2017,Plean Dene,Catering Purchases,49.10,CHAPEL NURSERIES,1054
Revenue,Place,Cultural and Related Services,Culture and Heritage,5105647591,15.09.2017,Dinosaur Isle Museum (Sandown Geology),Stock Purchases,"1,765.05",IPLS AG,1055
Revenue,Resources,Central Services,Support Services,5105647837,22.09.2017,Staff Benefits,Payment to Private Contractors,243.00,CHATTERBOX NURSERY LTD,1058
Revenue,Resources,Central Services,Support Services,5105647837,22.09.2017,Staff Benefits,Payment to Private Contractors,243.00,CHATTERBOX NURSERY LTD,1059
Revenue,Resources,Central Services,Support Services,5105647837,22.09.2017,Staff Benefits,Payment to Private Contractors,124.00,CHATTERBOX NURSERY LTD,1060
Revenue,Resources,Central Services,Support Services,5105647837,22.09.2017,Staff Benefits,Payment to Private Contractors,243.00,CHATTERBOX NURSERY LTD,1061
Revenue,Resources,Central Services,Support Services,5105647837,22.09.2017,Staff Benefits,Payment to Private Contractors,188.50,CHATTERBOX NURSERY LTD,1062
Revenue,Resources,Central Services,Support Services,5105647837,22.09.2017,Staff Benefits,Payment to Private Contractors,188.50,CHATTERBOX NURSERY LTD,1063
Revenue,Adult Services,Adult Social Care,Support - Memory /Cognition-older people (65+),5105646553,06.09.2017,Memory & Cognition Residential 65+,Charges from Independent Providers,"3,000.20",CHD CARE LTD,1064
Revenue,Adult Services,Adult Social Care,Support - Memory /Cognition-older people (65+),5105646553,06.09.2017,Memory & Cognition Residential 65+,Charges from Independent Providers,405.16,CHD CARE LTD,1065
Revenue,Adult Services,Adult Social Care,Physical Support - older people (65+),5105646133,06.09.2017,Physical Support Residential 65+,Charges from Independent Providers,"1,862.00",CHERRY TREES I.W. LTD,1066
Revenue,Adult Services,Adult Social Care,Physical Support - older people (65+),5105646133,06.09.2017,Physical Support Residential 65+,Charges from Independent Providers,"2,292.64",CHERRY TREES I.W. LTD,1067
Revenue,Adult Services,Adult Social Care,Physical Support - older people (65+),5105646133,06.09.2017,Physical Support Residential 65+,Charges from Independent Providers,"1,862.00",CHERRY TREES I.W. LTD,1068
Revenue,Adult Services,Adult Social Care,Physical Support - older people (65+),5105646133,06.09.2017,Physical Support Residential 65+,Charges from Independent Providers,"1,950.20",CHERRY TREES I.W. LTD,1069
Revenue,Adult Services,Adult Social Care,Physical Support - older people (65+),5105646133,06.09.2017,Physical Support Residential 65+,Charges from Independent Providers,"2,292.64",CHERRY TREES I.W. LTD,1070
Revenue,Adult Services,Adult Social Care,Support - Memory /Cognition-older people (65+),5105646133,06.09.2017,Memory & Cognition Residential 65+,Charges from Independent Providers,"1,862.00",CHERRY TREES I.W. LTD,1071
Revenue,Adult Services,Adult Social Care,Physical Support - older people (65+),5105646133,06.09.2017,Physical Support Residential 65+,Charges from Independent Providers,"1,862.00",CHERRY TREES I.W. LTD,1072
Revenue,Adult Services,Adult Social Care,Physical Support - older people (65+),5105646133,06.09.2017,Physical Support Residential 65+,Charges from Independent Providers,"1,862.00",CHERRY TREES I.W. LTD,1073
Revenue,Adult Services,Adult Social Care,Physical Support - older people (65+),5105646133,06.09.2017,Physical Support Residential 65+,Charges from Independent Providers,"1,862.00",CHERRY TREES I.W. LTD,1074
Revenue,Adult Services,Adult Social Care,Physical Support - older people (65+),5105646133,06.09.2017,Physical Support Residential 65+,Charges from Independent Providers,532.28,CHERRY TREES I.W. LTD,1075
Revenue,Adult Services,Adult Social Care,Physical Support - older people (65+),5105646133,06.09.2017,Physical Support Residential 65+,Charges from Independent Providers,"1,862.00",CHERRY TREES I.W. LTD,1076
Revenue,Adult Services,Balance Sheet,Balance Sheet,5105646133,06.09.2017,REDACTED PERSONAL DATA,Order Settlement to Bal Sht GL,"3,388.00",CHERRY TREES I.W. LTD,1077
Revenue,Adult Services,Adult Social Care,Mental Health Support-older people (65+),5105646133,06.09.2017,Mental Health Residential 65+,Charges from Independent Providers,"2,292.64",CHERRY TREES I.W. LTD,1078
Revenue,Resources,Central Services,Support Services,5105647781,22.09.2017,Staff Benefits,Payment to Private Contractors,72.00,CHILLERTON & ROOKLEY CP SCHOOL,1080
Revenue,Resources,Central Services,Support Services,5105647781,22.09.2017,Staff Benefits,Payment to Private Contractors,40.00,CHILLERTON & ROOKLEY CP SCHOOL,1081
Revenue,Resources,Central Services,Support Services,5105647781,22.09.2017,Staff Benefits,Payment to Private Contractors,5.00,CHILLERTON & ROOKLEY CP SCHOOL,1082
Revenue,Place,Cultural and Related Services,Library Service,5105647603,20.09.2017,Cowes Library,Publications,108.45,CHIVERTONS OF COWES,1083
Revenue,Adult Services,Adult Social Care,Learning Disability Suppt-adults (18-64),5105646567,06.09.2017,Learning Disability Residential 18-64,Charges from Independent Providers,"6,701.24",CHOICE LTD,1084
Revenue,Adult Services,Adult Social Care,Mental Health Support - adults (18-64),5105646119,06.09.2017,Mental Health Residential 18-64,Charges from Independent Providers,"2,898.00",CHOICE SUPPORT,1085
Revenue,Adult Services,Adult Social Care,Mental Health Support-older people (65+),5105646119,06.09.2017,Mental Health Residential 65+,Charges from Independent Providers,"2,898.00",CHOICE SUPPORT,1086
Revenue,Childrens Services,Children's & Education Services,Other Education and Community Budget,5105646677,06.09.2017,Adult Community Learning,Licences,8.00,CITY AND GUILDS,1088
Revenue,Childrens Services,Children's & Education Services,Other Education and Community Budget,5105646680,06.09.2017,Adult Community Learning,Licences,16.00,CITY AND GUILDS,1089
Revenue,Childrens Services,Children's & Education Services,Other Education and Community Budget,5105647283,15.09.2017,Adult Community Learning,Licences,16.00,CITY AND GUILDS,1090
Revenue,Childrens Services,Children's & Education Services,Other Education and Community Budget,5105647284,15.09.2017,Adult Community Learning,Licences,16.00,CITY AND GUILDS,1091
Revenue,Childrens Services,Children's & Education Services,Other Education and Community Budget,5105647286,15.09.2017,Adult Community Learning,Licences,16.00,CITY AND GUILDS,1092
Revenue,Childrens Services,Children's & Education Services,Other Education and Community Budget,5105647285,15.09.2017,Adult Community Learning,Licences,8.00,CITY AND GUILDS,1093
Revenue,Childrens Services,Children's & Education Services,Other Education and Community Budget,5105648008,22.09.2017,Adult Community Learning,Licences,16.00,CITY AND GUILDS,1094
Revenue,Childrens Services,Children's & Education Services,Other Education and Community Budget,5105647647,20.09.2017,Adult Community Learning,Licences,16.00,CITY AND GUILDS,1095
Revenue,Childrens Services,Children's & Education Services,Other Education and Community Budget,5105648009,22.09.2017,Adult Community Learning,Licences,25.00,CITY AND GUILDS,1096
Revenue,Childrens Services,Children's & Education Services,Other Education and Community Budget,5105648007,22.09.2017,Adult Community Learning,Licences,16.00,CITY AND GUILDS,1097
Revenue,Childrens Services,Children's & Education Services,Other Education and Community Budget,5105648026,22.09.2017,Adult Community Learning,Licences,8.00,CITY AND GUILDS,1098
Revenue,Childrens Services,Children's & Education Services,Other Education and Community Budget,5105647287,15.09.2017,Specialist Cross-Council Training,Training,"2,496.00",CITY AND GUILDS,1099
Revenue,Childrens Services,Children's & Education Services,Other Education and Community Budget,5105647281,15.09.2017,Specialist Cross-Council Training,Training,"1,000.00",CITY AND GUILDS,1100
Revenue,Place,Cultural and Related Services,Library Service,5105647245,20.09.2017,Public Libraries Central,Computer Maintenance,578.56,CIVICA UK LTD,1101
Revenue,Place,Housing Services,Homelessness,5105647712,20.09.2017,"Options,Prevention & Register Team",Computer Maintenance,"2,530.28",CIVICA UK LTD,1102
Revenue,Place,Housing Services,Homelessness,5105648480,29.09.2017,"Options,Prevention & Register Team",Computer Maintenance,735.12,CIVICA UK LTD,1103
Revenue,Resources,Central Services,Support Services,5105647235,13.09.2017,Procurement and Contract Management,Legal Fees - Other Parties,"2,000.00",CLARKE WILLMOTT LLP,1104
Revenue,Resources,Central Services,Support Services,5105647235,13.09.2017,Procurement and Contract Management,Legal Fees - Other Parties,"2,000.00",CLARKE WILLMOTT LLP,1105
Revenue,Resources,Central Services,Support Services,5105647030,08.09.2017,Procurement and Contract Management,Legal Fees - Other Parties,"5,000.00",CLARKE WILLMOTT LLP,1106
Revenue,Resources,Central Services,Support Services,5105647566,15.09.2017,Litigation Costs,Legal Fees - Other Parties,850.00,CLARKE WILLMOTT LLP,1107
Revenue,Resources,Central Services,Support Services,5105647566,15.09.2017,Litigation Costs,Legal Fees - Other Parties,12.00,CLARKE WILLMOTT LLP,1108
Revenue,Regeneration,Planning services,Economic Development,5105647254,13.09.2017,Director of Regeneration,Legal Fees - Other Parties,750.00,CLARKE WILLMOTT LLP,1109
Revenue,Regeneration,Planning services,Economic Development,5105647254,13.09.2017,Director of Regeneration,Legal Fees - Other Parties,93.80,CLARKE WILLMOTT LLP,1110
Revenue,Regeneration,Planning services,Economic Development,5105647254,13.09.2017,Director of Regeneration,Legal Fees - Other Parties,994.96,CLARKE WILLMOTT LLP,1111
Revenue,Resources,Central Services,Support Services,5105647842,22.09.2017,Staff Benefits,Payment to Private Contractors,100.00,CLUB COOL C/O COWES PRIMARY SCHOOL,1112
Revenue,Place,Cultural and Related Services,Recreation and Sport,5105646993,20.09.2017,Commercial Sales Team,Printing Costs,5.83,CLUBBERCISE LTD,1113
Revenue,Place,Cultural and Related Services,Recreation and Sport,5105646993,20.09.2017,Commercial Sales Team,Printing Costs,247.50,CLUBBERCISE LTD,1114
Revenue,Place,Cultural and Related Services,Recreation and Sport,5105647078,20.09.2017,Commercial Sales Team,Printing Costs,240.00,CLUBBERCISE LTD,1115
Revenue,Place,Cultural and Related Services,Recreation and Sport,5105647711,20.09.2017,Commercial Sales Team,Printing Costs,-250.00,CLUBBERCISE LTD,1116
Revenue,Place,Cultural and Related Services,Recreation and Sport,5105647711,20.09.2017,Commercial Sales Team,Printing Costs,-5.83,CLUBBERCISE LTD,1117
Revenue,Place,Cultural and Related Services,Recreation and Sport,5105647078,20.09.2017,Commercial Sales Team,Printing Costs,5.83,CLUBBERCISE LTD,1118
Revenue,Adult Services,Adult Social Care,Mental Health Support-older people (65+),5105646539,06.09.2017,Mental Health Nursing 65+,Charges from Independent Providers,"7,581.84",REDACTED PERSONAL DATA,1119
Revenue,Adult Services,Adult Social Care,Mental Health Support-older people (65+),5105646539,06.09.2017,Mental Health Nursing 65+,Charges from Independent Providers,"7,383.88",REDACTED PERSONAL DATA,1120
Revenue,Adult Services,Adult Social Care,Support - Memory /Cognition-older people (65+),5105646539,06.09.2017,Memory & Cognition Residential 65+,Charges from Independent Providers,"2,376.08",REDACTED PERSONAL DATA,1121
Revenue,Childrens Services,Children's & Education Services,Other Education and Community Budget,5105647727,20.09.2017,Education & Participation,Vehicle Hire External,335.96,COMMUNITY ACTION ISLE OF WIGHT,1122
Revenue,Place,Cultural and Related Services,Library Service,5105646076,06.09.2017,Bembridge Library,Grants to External Bodies,"4,000.00",COMMUNITY ACTION ISLE OF WIGHT,1123
Revenue,Childrens Services,Children's & Education Services,Services for Young People,5105646674,20.09.2017,Youth Commissioning,Payments to Voluntary and Other Associations,"1,005.58",COMMUNITY ACTION ISLE OF WIGHT,1124
Revenue,Childrens Services,Children's & Education Services,Services for Young People,5105646679,06.09.2017,Youth Commissioning,Payments to Voluntary and Other Associations,"1,005.58",COMMUNITY ACTION ISLE OF WIGHT,1125
Revenue,Place,Cultural and Related Services,Library Service,5105646676,06.09.2017,Brighstone Library,Grants to External Bodies,"2,000.00",COMMUNITY ACTION ISLE OF WIGHT,1126
Revenue,Childrens Services,Children's & Education Services,Children Looked After,5105647641,20.09.2017,Purchased Fostering,Charges from Independent Providers,"5,704.20",FAMILIES FOSTERING LTD,1127
Revenue,Childrens Services,Children's & Education Services,Children Looked After,5105647640,20.09.2017,Purchased Fostering,Charges from Independent Providers,"5,894.34",FAMILIES FOSTERING LTD,1128
Revenue,Childrens Services,Children's & Education Services,Children Looked After,5105647513,15.09.2017,Purchased Fostering,Charges from Independent Providers,"5,704.20",FAMILIES FOSTERING LTD,1129
Revenue,Place,Cultural and Related Services,Recreation and Sport,5105648014,22.09.2017,The Heights,Maintenance of Operational Equipment,177.65,COMPLETE POOL CONTROLS LTD,1130
Revenue,Place,Cultural and Related Services,Recreation and Sport,5105648014,22.09.2017,The Heights,Maintenance of Operational Equipment,12.50,COMPLETE POOL CONTROLS LTD,1131
Revenue,Childrens Services,Children's & Education Services,Management & Support Services,5105644917,15.09.2017,Special Discretionary Grants,Schools Learn Res - Specialised Edu Equip,13.45,CONNEVANS LTD,1132
Revenue,Childrens Services,Children's & Education Services,Management & Support Services,5105644917,15.09.2017,Special Discretionary Grants,Schools Learn Res - Specialised Edu Equip,302.40,CONNEVANS LTD,1133
Revenue,Place,Environmental & Regulatory Services,Regulatory Services,5105646943,20.09.2017,Environmental Health - Environmental Regulation & Protection,Professional Services,912.50,CO-OPERATIVE FUNERALCARE LTD,1134
Revenue,Childrens Services,Children's & Education Services,Children Looked After,5105647681,20.09.2017,In-house Fostering,Professional Services,563.00,CORAM ACADEMY LTD,1135
Revenue,Childrens Services,Children's & Education Services,Children Looked After,5105647072,13.09.2017,In-house Fostering,Professional Services,"2,591.00",CORAM CHILDREN'S LEGAL CENTRE LTD,1136
Revenue,Adult Services,Adult Social Care,Physical Support - older people (65+),5105646166,06.09.2017,Physical Support Residential 65+,Charges from Independent Providers,"1,862.00",CORNELIA HEIGHTS CARE HOME,1137
Revenue,Adult Services,Adult Social Care,Physical Support - older people (65+),5105646166,06.09.2017,Physical Support Residential 65+,Charges from Independent Providers,"1,950.20",CORNELIA HEIGHTS CARE HOME,1138
Revenue,Adult Services,Adult Social Care,Support - Memory /Cognition-older people (65+),5105647786,22.09.2017,Memory & Cognition Residential 65+,Charges from Independent Providers,"1,719.48",CORNELIA HEIGHTS CARE HOME,1139
Revenue,Adult Services,Adult Social Care,Physical Support - older people (65+),5105648126,27.09.2017,Physical Support Residential 65+,Charges from Independent Providers,532.00,CORNELIA HEIGHTS CARE HOME,1140
Revenue,Adult Services,Adult Social Care,Support - Memory /Cognition-older people (65+),5105646166,06.09.2017,Memory & Cognition Residential 65+,Charges from Independent Providers,"1,862.00",CORNELIA HEIGHTS CARE HOME,1141
Revenue,Adult Services,Adult Social Care,Physical Support - older people (65+),5105646166,06.09.2017,Physical Support Residential 65+,Charges from Independent Providers,"1,862.00",CORNELIA HEIGHTS CARE HOME,1142
Revenue,Adult Services,Adult Social Care,Physical Support - older people (65+),5105646166,06.09.2017,Physical Support Residential 65+,Charges from Independent Providers,"1,862.00",CORNELIA HEIGHTS CARE HOME,1143
Revenue,Adult Services,Adult Social Care,Support - Memory /Cognition-older people (65+),5105646166,06.09.2017,Memory & Cognition Residential 65+,Charges from Independent Providers,"2,292.64",CORNELIA HEIGHTS CARE HOME,1144
Revenue,Adult Services,Adult Social Care,Physical Support - older people (65+),5105646166,06.09.2017,Physical Support Residential 65+,Charges from Independent Providers,"1,950.20",CORNELIA HEIGHTS CARE HOME,1145
Revenue,Adult Services,Adult Social Care,Mental Health Support - adults (18-64),5105646166,06.09.2017,Mental Health Residential 18-64,Charges from Independent Providers,"1,862.00",CORNELIA HEIGHTS CARE HOME,1146
Revenue,Adult Services,Adult Social Care,Physical Support - older people (65+),5105646166,06.09.2017,Physical Support Residential 65+,Charges from Independent Providers,332.50,CORNELIA HEIGHTS CARE HOME,1147
Revenue,Adult Services,Adult Social Care,Support - Memory /Cognition-older people (65+),5105646166,06.09.2017,Memory & Cognition Residential 65+,Charges from Independent Providers,"1,950.20",CORNELIA HEIGHTS CARE HOME,1148
Revenue,Adult Services,Adult Social Care,Physical Support - older people (65+),5105646166,06.09.2017,Physical Support Residential 65+,Charges from Independent Providers,"2,292.64",CORNELIA HEIGHTS CARE HOME,1149
Revenue,Adult Services,Adult Social Care,Mental Health Support-older people (65+),5105646166,06.09.2017,Mental Health Residential 65+,Charges from Independent Providers,"1,950.20",CORNELIA HEIGHTS CARE HOME,1150
Revenue,Adult Services,Adult Social Care,Social Support - Social Isolation/Other,5105647143,13.09.2017,Social Isolation/Other Residential,Charges from Independent Providers,"4,322.50",CORNELIA MANOR,1151
Revenue,Adult Services,Adult Social Care,Sensory Support - older people (65+),5105646164,06.09.2017,Sensory Support Residential 65+,Charges from Independent Providers,"1,862.00",CORNELIA MANOR,1152
Revenue,Adult Services,Adult Social Care,Physical Support - older people (65+),5105646164,06.09.2017,Physical Support Residential 65+,Charges from Independent Providers,"1,862.00",CORNELIA MANOR,1153
Revenue,Adult Services,Adult Social Care,Support - Memory /Cognition-older people (65+),5105646164,06.09.2017,Memory & Cognition Residential 65+,Charges from Independent Providers,"1,950.20",CORNELIA MANOR,1154
Revenue,Adult Services,Adult Social Care,Physical Support - older people (65+),5105646164,06.09.2017,Physical Support Residential 65+,Charges from Independent Providers,"1,950.20",CORNELIA MANOR,1155
Revenue,Adult Services,Adult Social Care,Support - Memory /Cognition-older people (65+),5105646164,06.09.2017,Memory & Cognition Residential 65+,Charges from Independent Providers,"2,292.64",CORNELIA MANOR,1156
Revenue,Adult Services,Adult Social Care,Physical Support - older people (65+),5105646164,06.09.2017,Physical Support Residential 65+,Charges from Independent Providers,"1,862.00",CORNELIA MANOR,1157
Revenue,Adult Services,Adult Social Care,Physical Support - older people (65+),5105646164,06.09.2017,Physical Support Residential 65+,Charges from Independent Providers,"1,950.20",CORNELIA MANOR,1158
Revenue,Adult Services,Adult Social Care,Physical Support - older people (65+),5105646164,06.09.2017,Physical Support Residential 65+,Charges from Independent Providers,"1,862.00",CORNELIA MANOR,1159
Revenue,Adult Services,Adult Social Care,Support - Memory /Cognition-older people (65+),5105646164,06.09.2017,Memory & Cognition Residential 65+,Charges from Independent Providers,"2,292.64",CORNELIA MANOR,1160
Revenue,Adult Services,Adult Social Care,Physical Support - older people (65+),5105646164,06.09.2017,Physical Support Residential 65+,Charges from Independent Providers,"1,862.00",CORNELIA MANOR,1161
Revenue,Adult Services,Adult Social Care,Physical Support - older people (65+),5105646164,06.09.2017,Physical Support Residential 65+,Charges from Independent Providers,"1,950.20",CORNELIA MANOR,1162
Revenue,Adult Services,Adult Social Care,Physical Support - older people (65+),5105646164,06.09.2017,Physical Support Residential 65+,Charges from Independent Providers,"1,950.20",CORNELIA MANOR,1163
Revenue,Adult Services,Adult Social Care,Physical Support - older people (65+),5105646164,06.09.2017,Physical Support Residential 65+,Charges from Independent Providers,"2,292.64",CORNELIA MANOR,1164
Revenue,Adult Services,Adult Social Care,Physical Support - older people (65+),5105646164,06.09.2017,Physical Support Residential 65+,Charges from Independent Providers,"1,862.00",CORNELIA MANOR,1165
Revenue,Adult Services,Adult Social Care,Physical Support - older people (65+),5105646164,06.09.2017,Physical Support Residential 65+,Charges from Independent Providers,"1,950.20",CORNELIA MANOR,1166
Revenue,Adult Services,Adult Social Care,Physical Support - older people (65+),5105646164,06.09.2017,Physical Support Residential 65+,Charges from Independent Providers,"2,292.64",CORNELIA MANOR,1167
Revenue,Adult Services,Adult Social Care,Physical Support - older people (65+),5105646164,06.09.2017,Physical Support Residential 65+,Charges from Independent Providers,"2,292.64",CORNELIA MANOR,1168
Revenue,Adult Services,Adult Social Care,Mental Health Support-older people (65+),5105646164,06.09.2017,Mental Health Residential 65+,Charges from Independent Providers,"1,862.00",CORNELIA MANOR,1169
Revenue,Adult Services,Adult Social Care,Support - Memory /Cognition-older people (65+),5105646524,06.09.2017,Memory & Cognition Nursing 65+,Charges from Independent Providers,"2,297.12",COSHAM COURT,1170
Revenue,Place,Cultural and Related Services,Recreation and Sport,5105646066,06.09.2017,Ryde Harbour,Payment to Private Contractors,47.90,COWES HARBOUR COMMISSION,1172
Revenue,Place,Cultural and Related Services,Recreation and Sport,5105646066,06.09.2017,Ryde Harbour,Payment to Private Contractors,100.00,COWES HARBOUR COMMISSION,1173
Revenue,Place,Cultural and Related Services,Recreation and Sport,5105646066,06.09.2017,Ryde Harbour,Payment to Private Contractors,21.00,COWES HARBOUR COMMISSION,1174
Revenue,Place,Highways and Transport Services,"Airports, Harbours & Toll Facilities",5105648231,27.09.2017,Newport Harbour Account,Payment to Private Contractors,"1,861.65",FOLLY VENTURES,1176
Revenue,Childrens Services,Children's & Education Services,Other Education and Community Budget,5105648124,27.09.2017,Specialist Cross-Council Training,Training,"2,380.00",CRIDMORE FARM CO LTD,1177
Revenue,Regeneration,Planning services,Economic Development,5105643823,08.09.2017,Director of Regeneration,Printing Costs,299.00,CROSSPRINT LTD,1178
Revenue,Childrens Services,Children's & Education Services,Children Looked After,5105646868,08.09.2017,Children placed with Family&Friends,Boarding Out Allowances,234.52,REDACTED PERSONAL DATA,1180
Revenue,Childrens Services,Children's & Education Services,Children Looked After,5105647917,22.09.2017,Children placed with Family&Friends,Boarding Out Allowances,274.81,REDACTED PERSONAL DATA,1181
Revenue,Childrens Services,Children's & Education Services,Children Looked After,5105647404,15.09.2017,Children placed with Family&Friends,Boarding Out Allowances,234.52,REDACTED PERSONAL DATA,1182
Revenue,Childrens Services,Children's & Education Services,Children Looked After,5105648363,29.09.2017,Children placed with Family&Friends,Boarding Out Allowances,274.81,REDACTED PERSONAL DATA,1183
Revenue,Childrens Services,Children's & Education Services,Children Looked After,5105648363,29.09.2017,Children placed with Family&Friends,Boarding Out Allowances,214.43,REDACTED PERSONAL DATA,1184
Revenue,Childrens Services,Children's & Education Services,Children Looked After,5105647404,15.09.2017,Children placed with Family&Friends,Boarding Out Allowances,214.43,REDACTED PERSONAL DATA,1185
Revenue,Childrens Services,Children's & Education Services,Children Looked After,5105647917,22.09.2017,Children placed with Family&Friends,Boarding Out Allowances,214.43,REDACTED PERSONAL DATA,1186
Revenue,Childrens Services,Children's & Education Services,Children Looked After,5105646868,08.09.2017,Children placed with Family&Friends,Boarding Out Allowances,214.43,REDACTED PERSONAL DATA,1187
Revenue,Childrens Services,Children's & Education Services,Children Looked After,5105646868,08.09.2017,Children placed with Family&Friends,Boarding Out Allowances,234.52,REDACTED PERSONAL DATA,1188
Revenue,Childrens Services,Children's & Education Services,Children Looked After,5105647917,22.09.2017,Children placed with Family&Friends,Boarding Out Allowances,234.52,REDACTED PERSONAL DATA,1189
Revenue,Childrens Services,Children's & Education Services,Children Looked After,5105647404,15.09.2017,Children placed with Family&Friends,Boarding Out Allowances,234.52,REDACTED PERSONAL DATA,1190
Revenue,Childrens Services,Children's & Education Services,Children Looked After,5105648363,29.09.2017,Children placed with Family&Friends,Boarding Out Allowances,234.52,REDACTED PERSONAL DATA,1191
Revenue,Childrens Services,Children's & Education Services,Children Looked After,5105647911,22.09.2017,Children placed with Family&Friends,Boarding Out Allowances,274.81,REDACTED PERSONAL DATA,1192
Revenue,Childrens Services,Children's & Education Services,Children Looked After,5105646862,08.09.2017,Children placed with Family&Friends,Boarding Out Allowances,274.81,REDACTED PERSONAL DATA,1193
Revenue,Childrens Services,Children's & Education Services,Children Looked After,5105647399,15.09.2017,Children placed with Family&Friends,Boarding Out Allowances,274.81,REDACTED PERSONAL DATA,1194
Revenue,Childrens Services,Children's & Education Services,Children Looked After,5105648358,29.09.2017,Children placed with Family&Friends,Boarding Out Allowances,274.81,REDACTED PERSONAL DATA,1195
Revenue,Childrens Services,Children's & Education Services,Children Looked After,5105646862,08.09.2017,Leaving Care Costs,Support Children,120.89,REDACTED PERSONAL DATA,1196
Revenue,Childrens Services,Children's & Education Services,Children Looked After,5105647911,22.09.2017,Leaving Care Costs,Support Children,120.89,REDACTED PERSONAL DATA,1197
Revenue,Childrens Services,Children's & Education Services,Children Looked After,5105647399,15.09.2017,Leaving Care Costs,Support Children,120.89,REDACTED PERSONAL DATA,1198
Revenue,Childrens Services,Children's & Education Services,Children Looked After,5105648358,29.09.2017,Leaving Care Costs,Support Children,120.89,REDACTED PERSONAL DATA,1199
Revenue,Childrens Services,Children's & Education Services,Children Looked After,5105648358,29.09.2017,Leaving Care Costs,Support Children,68.50,REDACTED PERSONAL DATA,1200
Revenue,Childrens Services,Children's & Education Services,Children Looked After,5105647399,15.09.2017,Leaving Care Costs,Support Children,68.50,REDACTED PERSONAL DATA,1201
Revenue,Childrens Services,Children's & Education Services,Children Looked After,5105647911,22.09.2017,Leaving Care Costs,Support Children,68.50,REDACTED PERSONAL DATA,1202
Revenue,Childrens Services,Children's & Education Services,Children Looked After,5105646862,08.09.2017,Leaving Care Costs,Support Children,68.50,REDACTED PERSONAL DATA,1203
Revenue,Childrens Services,Children's & Education Services,Children Looked After,5105648422,29.09.2017,In-house Fostering,Boarding Out Allowances,234.52,REDACTED PERSONAL DATA,1208
Revenue,Childrens Services,Children's & Education Services,Children Looked After,5105647464,15.09.2017,In-house Fostering,Boarding Out Allowances,234.52,REDACTED PERSONAL DATA,1209
Revenue,Childrens Services,Children's & Education Services,Children Looked After,5105647979,22.09.2017,In-house Fostering,Boarding Out Allowances,234.52,REDACTED PERSONAL DATA,1210
Revenue,Childrens Services,Children's & Education Services,Children Looked After,5105646928,08.09.2017,In-house Fostering,Boarding Out Allowances,234.52,REDACTED PERSONAL DATA,1211
Revenue,Childrens Services,Children's & Education Services,Children Looked After,5105646928,08.09.2017,In-house Fostering,Boarding Out Allowances,274.81,REDACTED PERSONAL DATA,1212
Revenue,Childrens Services,Children's & Education Services,Children Looked After,5105647979,22.09.2017,In-house Fostering,Boarding Out Allowances,274.81,REDACTED PERSONAL DATA,1213
Revenue,Childrens Services,Children's & Education Services,Children Looked After,5105647464,15.09.2017,In-house Fostering,Boarding Out Allowances,274.81,REDACTED PERSONAL DATA,1214
Revenue,Childrens Services,Children's & Education Services,Children Looked After,5105648422,29.09.2017,In-house Fostering,Boarding Out Allowances,274.81,REDACTED PERSONAL DATA,1215
Revenue,Place,Housing Services,Homelessness,5105647745,22.09.2017,Leaseholds by LA,Accommodation Costs - Leaseholder Payments,859.95,REDACTED PERSONAL DATA,1217
Revenue,Adult Services,Adult Social Care,Learning Disability Suppt-adults (18-64),5105646759,08.09.2017,No-Barriers,Client Expenses,60.00,REDACTED PERSONAL DATA,1218
Revenue,Childrens Services,Children's & Education Services,Children Looked After,5105646783,08.09.2017,Adoption Costs,Support Children,207.73,REDACTED PERSONAL DATA,1223
Revenue,Childrens Services,Children's & Education Services,Children Looked After,5105646783,08.09.2017,Adoption Costs,Support Children,168.39,REDACTED PERSONAL DATA,1224
Revenue,Childrens Services,Children's & Education Services,Children Looked After,5105648277,29.09.2017,Adoption Costs,Support Children,207.73,REDACTED PERSONAL DATA,1225
Revenue,Childrens Services,Children's & Education Services,Children Looked After,5105647804,22.09.2017,Adoption Costs,Support Children,207.73,REDACTED PERSONAL DATA,1226
Revenue,Childrens Services,Children's & Education Services,Children Looked After,5105647319,15.09.2017,Adoption Costs,Support Children,207.73,REDACTED PERSONAL DATA,1227
Revenue,Childrens Services,Children's & Education Services,Children Looked After,5105647319,15.09.2017,Adoption Costs,Support Children,168.39,REDACTED PERSONAL DATA,1228
Revenue,Childrens Services,Children's & Education Services,Children Looked After,5105647804,22.09.2017,Adoption Costs,Support Children,168.39,REDACTED PERSONAL DATA,1229
Revenue,Childrens Services,Children's & Education Services,Children Looked After,5105648277,29.09.2017,Adoption Costs,Support Children,168.39,REDACTED PERSONAL DATA,1230
Revenue,Place,Housing Services,Homelessness,5105647748,22.09.2017,Leaseholds by LA,Accommodation Costs - Leaseholder Payments,788.67,REDACTED PERSONAL DATA,1231
Revenue,Childrens Services,Children's & Education Services,Children Looked After,5105646768,08.09.2017,In-house Fostering,Boarding Out Allowances,214.43,REDACTED PERSONAL DATA,1232
Revenue,Childrens Services,Children's & Education Services,Children Looked After,5105646768,08.09.2017,In-house Fostering,Boarding Out Allowances,234.52,REDACTED PERSONAL DATA,1233
Revenue,Childrens Services,Children's & Education Services,Children Looked After,5105646768,08.09.2017,In-house Fostering,Boarding Out Allowances,214.43,REDACTED PERSONAL DATA,1234
